Workbook

Sheet Intructions
A1: 1. Use the "Clear Spreadsheet" Button on the "Redeck Deflections" sheet when starting a new job.
A2: 2. Enter the number of spans and span lengths in the "Redeck Deflections" sheet and click on the "Genereate Deflections Table" button.
A3: 3. Copy and paste the deflections from AASHTOWare Bridge Rating to the spreadsheet table.
A4: 4. Go to the "Deliverables" sheet and click the "Generate Deflections" Button.
A5: 5. Copy the Data on the "Deliverables" sheet to a blank spreadsheet. This information will be shared in the electronic deliverables.

Sheet Redeck Deflections
A1: Dead Load Deflections
C3: Number of Spans = | D3: 3
D5: =IF($D$3=1,"Span 1",IF($D$3=2,"Span 1",IF($D$3=3,"Span 1",IF($D$3=4,"Span 1",IF($D$3=5,"Span 1",IF($D$3=6,"Span 1",IF($D$3=7,"Span 1",IF($D$3=8,"Span 1","")))))))) -> Span 1 | E5: =IF($D$3=1,"",IF($D$3=2,"Span 2",IF($D$3=3,"Span 2",IF($D$3=4,"Span 2",IF($D$3=5,"Span 2",IF($D$3=6,"Span 2",IF($D$3=7,"Span 2",IF($D$3=8,"Span 2","")))))))) -> Span 2 | F5: =IF($D$3=1,"",IF($D$3=2,"",IF($D$3=3,"Span 3",IF($D$3=4,"Span 3",IF($D$3=5,"Span 3",IF($D$3=6,"Span 3",IF($D$3=7,"Span 3",IF($D$3=8,"Span 3","")))))))) -> Span 3 | G5: =IF($D$3=1,"",IF($D$3=2,"",IF($D$3=3,"",IF($D$3=4,"Span 4",IF($D$3=5,"Span 4",IF($D$3=6,"Span 4",IF($D$3=7,"Span 4",IF($D$3=8,"Span 4","")))))))) ->  | H5: =IF($D$3=1,"",IF($D$3=2,"",IF($D$3=3,"",IF($D$3=4,"",IF($D$3=5,"Span 5",IF($D$3=6,"Span 5",IF($D$3=7,"Span 5",IF($D$3=8,"Span 5","")))))))) ->  | I5: =IF($D$3=1,"",IF($D$3=2,"",IF($D$3=3,"",IF($D$3=4,"",IF($D$3=5,"",IF($D$3=6,"Span 6",IF($D$3=7,"Span 6",IF($D$3=8,"Span 6","")))))))) ->  | J5: =IF($D$3=1,"",IF($D$3=2,"",IF($D$3=3,"",IF($D$3=4,"",IF($D$3=5,"",IF($D$3=6,"",IF($D$3=7,"Span 7",IF($D$3=8,"Span 7","")))))))) ->  | K5: =IF($D$3=1,"",IF($D$3=2,"",IF($D$3=3,"",IF($D$3=4,"",IF($D$3=5,"",IF($D$3=6,"",IF($D$3=7,"",IF($D$3=8,"Span 8","")))))))) -> 
C6: Span Length, ft. = | D6: 110 | E6: 120 | F6: 110
H8: EXTERIOR GIRDERS | T8: INTERIOR GIRDERS
K9: Girder | L9: Intermediate diaphragms | M9: Concrete | O9: Barrier | P9: Total DL Deflection | W9: Girder | X9: Intermediate diaphragms | Y9: Concrete | AA9: Barrier | AB9: Total DL Deflection
H10: Tenth point | I10: Location | J10: Distance | K10: YDL-s1- Load Case 1 - Self Load (Stage1:D,DC) | L10: YDL-s1- Load Case 2 - Add'l Self Load (In Force/Length) (Stage 1:D,DC) | M10: YDL-s1- Load Case 3 - Haunch Load (Stage1:D,DC) | N10: YDL-s1- Load Case 4 - Concrete Deck Load (Stage1:D,DC) | O10: YDL-s2- Load Case 1 - Parapet Loads(DL2 - Barriers & Curbs: Stage 2:D,D~ | P10: Decimal Inches | Q10: Nearest 1/8" | R10: Tenth point | T10: Tenth point | U10: Location | V10: Distance | W10: YDL-s1- Load Case 1 - Self Load (Stage1:D,DC) | X10: YDL-s1- Load Case 2 - Add'l Self Load (In Force/Length) (Stage 1:D,DC) | Y10: YDL-s1- Load Case 3 - Haunch Load (Stage1:D,DC) | Z10: YDL-s1- Load Case 4 - Concrete Deck Load (Stage1:D,DC) | AA10: YDL-s2- Load Case 1 - Parapet Loads(DL2 - Barriers & Curbs: Stage 2:D,D~ | AB10: Decimal Inches | AC10: Nearest 1/8" | AD10: Tenth point
H11: 1 | I11: 0 | J11: 0 | K11: 0 | L11: 0 | M11: 0 | N11: 0 | O11: 0 | P11: =SUM('Redeck Deflections'!$K$11:$O$11) -> 0 | Q11: =IF('Redeck Deflections'!$P$11<0,MROUND(ABS('Redeck Deflections'!$P$11),0.125),MROUND('Redeck Deflections'!$P$11,0.125)*-1) -> 0 | R11: 1 | T11: 1 | U11: 0 | V11: 0 | W11: 0 | X11: 0 | Y11: 0 | Z11: 0 | AA11: 0 | AB11: =SUM('Redeck Deflections'!$W$11:$AA$11) -> 0 | AC11: =IF('Redeck Deflections'!$AB$11<0,MROUND(ABS('Redeck Deflections'!$AB$11),0.125),MROUND('Redeck Deflections'!$AB$11,0.125)*-1) -> 0 | AD11: 1
H12: 1.1 | I12: ='Redeck Deflections'!$D$6*0.1 -> 11 | J12: =Reference!$C$349 -> 11 | K12: -0.0157 | L12: -0.0074 | M12: -0.0009 | N12: -0.1297 | O12: -0.0244 | P12: =SUM('Redeck Deflections'!$K$12:$O$12) -> -0.1781 | Q12: =IF('Redeck Deflections'!$P$12<0,MROUND(ABS('Redeck Deflections'!$P$12),0.125),MROUND('Redeck Deflections'!$P$12,0.125)*-1) -> 0.125 | R12: 1.1 | T12: 1.1 | U12: ='Redeck Deflections'!$D$6*0.1 -> 11 | V12: =Reference!$C$349 -> 11 | W12: -0.0157 | X12: -0.0074 | Y12: -0.0009 | Z12: -0.1297 | AA12: -0.0244 | AB12: =SUM('Redeck Deflections'!$W$12:$AA$12) -> -0.1781 | AC12: =IF('Redeck Deflections'!$AB$12<0,MROUND(ABS('Redeck Deflections'!$AB$12),0.125),MROUND('Redeck Deflections'!$AB$12,0.125)*-1) -> 0.125 | AD12: 1.1
H13: 1.2 | I13: ='Redeck Deflections'!$D$6*0.2 -> 22 | J13: =Reference!$D$349+Reference!$D$349 -> 22 | K13: -0.0287 | L13: -0.0135 | M13: -0.0017 | N13: -0.2368 | O13: -0.0449 | P13: =SUM('Redeck Deflections'!$K$13:$O$13) -> -0.3256 | Q13: =IF('Redeck Deflections'!$P$13<0,MROUND(ABS('Redeck Deflections'!$P$13),0.125),MROUND('Redeck Deflections'!$P$13,0.125)*-1) -> 0.375 | R13: 1.2 | T13: 1.2 | U13: ='Redeck Deflections'!$D$6*0.2 -> 22 | V13: =Reference!$D$349+Reference!$D$349 -> 22 | W13: -0.0287 | X13: -0.0135 | Y13: -0.0017 | Z13: -0.2368 | AA13: -0.0449 | AB13: =SUM('Redeck Deflections'!$W$13:$AA$13) -> -0.3256 | AC13: =IF('Redeck Deflections'!$AB$13<0,MROUND(ABS('Redeck Deflections'!$AB$13),0.125),MROUND('Redeck Deflections'!$AB$13,0.125)*-1) -> 0.375 | AD13: 1.2
H14: 1.3 | I14: ='Redeck Deflections'!$D$6*0.3 -> 33 | J14: =Reference!$D$350+Reference!$D$349 -> 33 | K14: -0.037 | L14: -0.0175 | M14: -0.0022 | N14: -0.3056 | O14: -0.0588 | P14: =SUM('Redeck Deflections'!$K$14:$O$14) -> -0.4211 | Q14: =IF('Redeck Deflections'!$P$14<0,MROUND(ABS('Redeck Deflections'!$P$14),0.125),MROUND('Redeck Deflections'!$P$14,0.125)*-1) -> 0.375 | R14: 1.3 | T14: 1.3 | U14: ='Redeck Deflections'!$D$6*0.3 -> 33 | V14: =Reference!$D$350+Reference!$D$349 -> 33 | W14: -0.037 | X14: -0.0175 | Y14: -0.0022 | Z14: -0.3056 | AA14: -0.0588 | AB14: =SUM('Redeck Deflections'!$W$14:$AA$14) -> -0.4211 | AC14: =IF('Redeck Deflections'!$AB$14<0,MROUND(ABS('Redeck Deflections'!$AB$14),0.125),MROUND('Redeck Deflections'!$AB$14,0.125)*-1) -> 0.375 | AD14: 1.3
H15: 1.4 | I15: ='Redeck Deflections'!$D$6*0.4 -> 44 | J15: =Reference!$D$351+Reference!$D$349 -> 44 | K15: -0.0398 | L15: -0.0188 | M15: -0.0024 | N15: -0.3284 | O15: -0.0643 | P15: =SUM('Redeck Deflections'!$K$15:$O$15) -> -0.4537 | Q15: =IF('Redeck Deflections'!$P$15<0,MROUND(ABS('Redeck Deflections'!$P$15),0.125),MROUND('Redeck Deflections'!$P$15,0.125)*-1) -> 0.5 | R15: 1.4 | T15: 1.4 | U15: ='Redeck Deflections'!$D$6*0.4 -> 44 | V15: =Reference!$D$351+Reference!$D$349 -> 44 | W15: -0.0398 | X15: -0.0188 | Y15: -0.0024 | Z15: -0.3284 | AA15: -0.0643 | AB15: =SUM('Redeck Deflections'!$W$15:$AA$15) -> -0.4537 | AC15: =IF('Redeck Deflections'!$AB$15<0,MROUND(ABS('Redeck Deflections'!$AB$15),0.125),MROUND('Redeck Deflections'!$AB$15,0.125)*-1) -> 0.5 | AD15: 1.4
H16: 1.5 | I16: ='Redeck Deflections'!$D$6*0.5 -> 55 | J16: =Reference!$D$352+Reference!$D$349 -> 55 | K16: -0.0371 | L16: -0.0174 | M16: -0.0022 | N16: -0.3053 | O16: -0.0614 | P16: =SUM('Redeck Deflections'!$K$16:$O$16) -> -0.4234 | Q16: =IF('Redeck Deflections'!$P$16<0,MROUND(ABS('Redeck Deflections'!$P$16),0.125),MROUND('Redeck Deflections'!$P$16,0.125)*-1) -> 0.375 | R16: 1.5 | T16: 1.5 | U16: ='Redeck Deflections'!$D$6*0.5 -> 55 | V16: =Reference!$D$352+Reference!$D$349 -> 55 | W16: -0.0371 | X16: -0.0174 | Y16: -0.0022 | Z16: -0.3053 | AA16: -0.0614 | AB16: =SUM('Redeck Deflections'!$W$16:$AA$16) -> -0.4234 | AC16: =IF('Redeck Deflections'!$AB$16<0,MROUND(ABS('Redeck Deflections'!$AB$16),0.125),MROUND('Redeck Deflections'!$AB$16,0.125)*-1) -> 0.375 | AD16: 1.5
H17: 1.6 | I17: ='Redeck Deflections'!$D$6*0.6 -> 66 | J17: =Reference!$D$353+Reference!$D$349 -> 66 | K17: -0.0297 | L17: -0.0139 | M17: -0.0018 | N17: -0.2439 | O17: -0.0508 | P17: =SUM('Redeck Deflections'!$K$17:$O$17) -> -0.3401 | Q17: =IF('Redeck Deflections'!$P$17<0,MROUND(ABS('Redeck Deflections'!$P$17),0.125),MROUND('Redeck Deflections'!$P$17,0.125)*-1) -> 0.375 | R17: 1.6 | T17: 1.6 | U17: ='Redeck Deflections'!$D$6*0.6 -> 66 | V17: =Reference!$D$353+Reference!$D$349 -> 66 | W17: -0.0297 | X17: -0.0139 | Y17: -0.0018 | Z17: -0.2439 | AA17: -0.0508 | AB17: =SUM('Redeck Deflections'!$W$17:$AA$17) -> -0.3401 | AC17: =IF('Redeck Deflections'!$AB$17<0,MROUND(ABS('Redeck Deflections'!$AB$17),0.125),MROUND('Redeck Deflections'!$AB$17,0.125)*-1) -> 0.375 | AD17: 1.6
H18: 1.7 | I18: ='Redeck Deflections'!$D$6*0.7 -> 77 | J18: =Reference!$D$354+Reference!$D$349 -> 77 | K18: -0.0195 | L18: -0.0091 | M18: -0.0011 | N18: -0.1599 | O18: -0.0348 | P18: =SUM('Redeck Deflections'!$K$18:$O$18) -> -0.2244 | Q18: =IF('Redeck Deflections'!$P$18<0,MROUND(ABS('Redeck Deflections'!$P$18),0.125),MROUND('Redeck Deflections'!$P$18,0.125)*-1) -> 0.25 | R18: 1.7 | T18: 1.7 | U18: ='Redeck Deflections'!$D$6*0.7 -> 77 | V18: =Reference!$D$354+Reference!$D$349 -> 77 | W18: -0.0195 | X18: -0.0091 | Y18: -0.0011 | Z18: -0.1599 | AA18: -0.0348 | AB18: =SUM('Redeck Deflections'!$W$18:$AA$18) -> -0.2244 | AC18: =IF('Redeck Deflections'!$AB$18<0,MROUND(ABS('Redeck Deflections'!$AB$18),0.125),MROUND('Redeck Deflections'!$AB$18,0.125)*-1) -> 0.25 | AD18: 1.7
H19: 1.8 | I19: ='Redeck Deflections'!$D$6*0.8 -> 88 | J19: =Reference!$D$355+Reference!$D$349 -> 88 | K19: -0.0094 | L19: -0.0044 | M19: -0.0005 | N19: -0.0764 | O19: -0.0169 | P19: =SUM('Redeck Deflections'!$K$19:$O$19) -> -0.1076 | Q19: =IF('Redeck Deflections'!$P$19<0,MROUND(ABS('Redeck Deflections'!$P$19),0.125),MROUND('Redeck Deflections'!$P$19,0.125)*-1) -> 0.125 | R19: 1.8 | T19: 1.8 | U19: ='Redeck Deflections'!$D$6*0.8 -> 88 | V19: =Reference!$D$355+Reference!$D$349 -> 88 | W19: -0.0094 | X19: -0.0044 | Y19: -0.0005 | Z19: -0.0764 | AA19: -0.0169 | AB19: =SUM('Redeck Deflections'!$W$19:$AA$19) -> -0.1076 | AC19: =IF('Redeck Deflections'!$AB$19<0,MROUND(ABS('Redeck Deflections'!$AB$19),0.125),MROUND('Redeck Deflections'!$AB$19,0.125)*-1) -> 0.125 | AD19: 1.8
H20: 1.9 | I20: ='Redeck Deflections'!$D$6*0.9 -> 99 | J20: =Reference!$D$356+Reference!$D$349 -> 99 | K20: -0.0024 | L20: -0.0011 | M20: -0.0001 | N20: -0.0191 | O20: -0.003 | P20: =SUM('Redeck Deflections'!$K$20:$O$20) -> -0.0257 | Q20: =IF('Redeck Deflections'!$P$20<0,MROUND(ABS('Redeck Deflections'!$P$20),0.125),MROUND('Redeck Deflections'!$P$20,0.125)*-1) -> 0 | R20: 1.9 | T20: 1.9 | U20: ='Redeck Deflections'!$D$6*0.9 -> 99 | V20: =Reference!$D$356+Reference!$D$349 -> 99 | W20: -0.0024 | X20: -0.0011 | Y20: -0.0001 | Z20: -0.0191 | AA20: -0.003 | AB20: =SUM('Redeck Deflections'!$W$20:$AA$20) -> -0.0257 | AC20: =IF('Redeck Deflections'!$AB$20<0,MROUND(ABS('Redeck Deflections'!$AB$20),0.125),MROUND('Redeck Deflections'!$AB$20,0.125)*-1) -> 0 | AD20: 1.9
H21: 2 | I21: ='Redeck Deflections'!$D$6*1 -> 110 | J21: =Reference!$D$357+Reference!$D$349 -> 110 | K21: 0 | L21: 0 | M21: 0 | N21: 0 | O21: 0 | P21: =SUM('Redeck Deflections'!$K$21:$O$21) -> 0 | Q21: =IF('Redeck Deflections'!$P$21<0,MROUND(ABS('Redeck Deflections'!$P$21),0.125),MROUND('Redeck Deflections'!$P$21,0.125)*-1) -> 0 | R21: 2 | T21: 2 | U21: ='Redeck Deflections'!$D$6*1 -> 110 | V21: =Reference!$D$357+Reference!$D$349 -> 110 | W21: 0 | X21: 0 | Y21: 0 | Z21: 0 | AA21: 0 | AB21: =SUM('Redeck Deflections'!$W$21:$AA$21) -> 0 | AC21: =IF('Redeck Deflections'!$AB$21<0,MROUND(ABS('Redeck Deflections'!$AB$21),0.125),MROUND('Redeck Deflections'!$AB$21,0.125)*-1) -> 0 | AD21: 2
H22: 2 | I22: 0 | J22: =Reference!$D$358 -> 110 | K22: 0 | L22: 0 | M22: 0 | N22: 0 | O22: 0 | P22: =SUM('Redeck Deflections'!$K$22:$O$22) -> 0 | Q22: =IF('Redeck Deflections'!$P$22<0,MROUND(ABS('Redeck Deflections'!$P$22),0.125),MROUND('Redeck Deflections'!$P$22,0.125)*-1) -> 0 | R22: 2 | T22: 2 | U22: 0 | V22: =Reference!$D$358 -> 110 | W22: 0 | X22: 0 | Y22: 0 | Z22: 0 | AA22: 0 | AB22: =SUM('Redeck Deflections'!$W$22:$AA$22) -> 0 | AC22: =IF('Redeck Deflections'!$AB$22<0,MROUND(ABS('Redeck Deflections'!$AB$22),0.125),MROUND('Redeck Deflections'!$AB$22,0.125)*-1) -> 0 | AD22: 2
H23: 2.1 | I23: ='Redeck Deflections'!$E$6*0.1 -> 12 | J23: =Reference!$D$359+Reference!$C$360 -> 122 | K23: -0.0065 | L23: -0.0029 | M23: -0.0004 | N23: -0.0514 | O23: -0.0194 | P23: =SUM('Redeck Deflections'!$K$23:$O$23) -> -0.0806 | Q23: =IF('Redeck Deflections'!$P$23<0,MROUND(ABS('Redeck Deflections'!$P$23),0.125),MROUND('Redeck Deflections'!$P$23,0.125)*-1) -> 0.125 | R23: 2.1 | T23: 2.1 | U23: ='Redeck Deflections'!$E$6*0.1 -> 12 | V23: =Reference!$D$359+Reference!$C$360 -> 122 | W23: -0.0065 | X23: -0.0029 | Y23: -0.0004 | Z23: -0.0514 | AA23: -0.0194 | AB23: =SUM('Redeck Deflections'!$W$23:$AA$23) -> -0.0806 | AC23: =IF('Redeck Deflections'!$AB$23<0,MROUND(ABS('Redeck Deflections'!$AB$23),0.125),MROUND('Redeck Deflections'!$AB$23,0.125)*-1) -> 0.125 | AD23: 2.1
H24: 2.2 | I24: ='Redeck Deflections'!$E$6*0.2 -> 24 | J24: =Reference!$C$361+Reference!$D$59 -> 134 | K24: -0.02 | L24: -0.0092 | M24: -0.0012 | N24: -0.1614 | O24: -0.053 | P24: =SUM('Redeck Deflections'!$K$24:$O$24) -> -0.2448 | Q24: =IF('Redeck Deflections'!$P$24<0,MROUND(ABS('Redeck Deflections'!$P$24),0.125),MROUND('Redeck Deflections'!$P$24,0.125)*-1) -> 0.25 | R24: 2.2 | T24: 2.2 | U24: ='Redeck Deflections'!$E$6*0.2 -> 24 | V24: =Reference!$C$361+Reference!$D$59 -> 134 | W24: -0.02 | X24: -0.0092 | Y24: -0.0012 | Z24: -0.1614 | AA24: -0.053 | AB24: =SUM('Redeck Deflections'!$W$24:$AA$24) -> -0.2448 | AC24: =IF('Redeck Deflections'!$AB$24<0,MROUND(ABS('Redeck Deflections'!$AB$24),0.125),MROUND('Redeck Deflections'!$AB$24,0.125)*-1) -> 0.25 | AD24: 2.2
H25: 2.3 | I25: ='Redeck Deflections'!$E$6*0.3 -> 36 | J25: =Reference!$C$362+Reference!$D$359 -> 146 | K25: -0.036 | L25: -0.0167 | M25: -0.0021 | N25: -0.2928 | O25: -0.0863 | P25: =SUM('Redeck Deflections'!$K$25:$O$25) -> -0.4339 | Q25: =IF('Redeck Deflections'!$P$25<0,MROUND(ABS('Redeck Deflections'!$P$25),0.125),MROUND('Redeck Deflections'!$P$25,0.125)*-1) -> 0.375 | R25: 2.3 | T25: 2.3 | U25: ='Redeck Deflections'!$E$6*0.3 -> 36 | V25: =Reference!$C$362+Reference!$D$359 -> 146 | W25: -0.036 | X25: -0.0167 | Y25: -0.0021 | Z25: -0.2928 | AA25: -0.0863 | AB25: =SUM('Redeck Deflections'!$W$25:$AA$25) -> -0.4339 | AC25: =IF('Redeck Deflections'!$AB$25<0,MROUND(ABS('Redeck Deflections'!$AB$25),0.125),MROUND('Redeck Deflections'!$AB$25,0.125)*-1) -> 0.375 | AD25: 2.3
H26: 2.4 | I26: ='Redeck Deflections'!$E$6*0.4 -> 48 | J26: =Reference!$C$363+Reference!$D$359 -> 158 | K26: -0.0483 | L26: -0.0225 | M26: -0.0028 | N26: -0.3933 | O26: -0.1098 | P26: =SUM('Redeck Deflections'!$K$26:$O$26) -> -0.5767 | Q26: =IF('Redeck Deflections'!$P$26<0,MROUND(ABS('Redeck Deflections'!$P$26),0.125),MROUND('Redeck Deflections'!$P$26,0.125)*-1) -> 0.625 | R26: 2.4 | T26: 2.4 | U26: ='Redeck Deflections'!$E$6*0.4 -> 48 | V26: =Reference!$C$363+Reference!$D$359 -> 158 | W26: -0.0483 | X26: -0.0225 | Y26: -0.0028 | Z26: -0.3933 | AA26: -0.1098 | AB26: =SUM('Redeck Deflections'!$W$26:$AA$26) -> -0.5767 | AC26: =IF('Redeck Deflections'!$AB$26<0,MROUND(ABS('Redeck Deflections'!$AB$26),0.125),MROUND('Redeck Deflections'!$AB$26,0.125)*-1) -> 0.625 | AD26: 2.4
H27: 2.5 | I27: ='Redeck Deflections'!$E$6*0.5 -> 60 | J27: =Reference!$C$364+Reference!$D$359 -> 170 | K27: -0.0528 | L27: -0.0246 | M27: -0.0031 | N27: -0.4304 | O27: -0.1182 | P27: =SUM('Redeck Deflections'!$K$27:$O$27) -> -0.6291 | Q27: =IF('Redeck Deflections'!$P$27<0,MROUND(ABS('Redeck Deflections'!$P$27),0.125),MROUND('Redeck Deflections'!$P$27,0.125)*-1) -> 0.625 | R27: 2.5 | T27: 2.5 | U27: ='Redeck Deflections'!$E$6*0.5 -> 60 | V27: =Reference!$C$364+Reference!$D$359 -> 170 | W27: -0.0528 | X27: -0.0246 | Y27: -0.0031 | Z27: -0.4304 | AA27: -0.1182 | AB27: =SUM('Redeck Deflections'!$W$27:$AA$27) -> -0.6291 | AC27: =IF('Redeck Deflections'!$AB$27<0,MROUND(ABS('Redeck Deflections'!$AB$27),0.125),MROUND('Redeck Deflections'!$AB$27,0.125)*-1) -> 0.625 | AD27: 2.5
H28: 2.6 | I28: ='Redeck Deflections'!$E$6*0.6 -> 72 | J28: =Reference!$C$365+Reference!$D$359 -> 182 | K28: -0.0483 | L28: -0.0225 | M28: -0.0028 | N28: -0.3933 | O28: -0.1098 | P28: =SUM('Redeck Deflections'!$K$28:$O$28) -> -0.5767 | Q28: =IF('Redeck Deflections'!$P$28<0,MROUND(ABS('Redeck Deflections'!$P$28),0.125),MROUND('Redeck Deflections'!$P$28,0.125)*-1) -> 0.625 | R28: 2.6 | T28: 2.6 | U28: ='Redeck Deflections'!$E$6*0.6 -> 72 | V28: =Reference!$C$365+Reference!$D$359 -> 182 | W28: -0.0483 | X28: -0.0225 | Y28: -0.0028 | Z28: -0.3933 | AA28: -0.1098 | AB28: =SUM('Redeck Deflections'!$W$28:$AA$28) -> -0.5767 | AC28: =IF('Redeck Deflections'!$AB$28<0,MROUND(ABS('Redeck Deflections'!$AB$28),0.125),MROUND('Redeck Deflections'!$AB$28,0.125)*-1) -> 0.625 | AD28: 2.6
H29: 2.7 | I29: ='Redeck Deflections'!$E$6*0.7 -> 84 | J29: =Reference!$C$366+Reference!$D$359 -> 194 | K29: -0.036 | L29: -0.0167 | M29: -0.0021 | N29: -0.2928 | O29: -0.0863 | P29: =SUM('Redeck Deflections'!$K$29:$O$29) -> -0.4339 | Q29: =IF('Redeck Deflections'!$P$29<0,MROUND(ABS('Redeck Deflections'!$P$29),0.125),MROUND('Redeck Deflections'!$P$29,0.125)*-1) -> 0.375 | R29: 2.7 | T29: 2.7 | U29: ='Redeck Deflections'!$E$6*0.7 -> 84 | V29: =Reference!$C$366+Reference!$D$359 -> 194 | W29: -0.036 | X29: -0.0167 | Y29: -0.0021 | Z29: -0.2928 | AA29: -0.0863 | AB29: =SUM('Redeck Deflections'!$W$29:$AA$29) -> -0.4339 | AC29: =IF('Redeck Deflections'!$AB$29<0,MROUND(ABS('Redeck Deflections'!$AB$29),0.125),MROUND('Redeck Deflections'!$AB$29,0.125)*-1) -> 0.375 | AD29: 2.7
H30: 2.8 | I30: ='Redeck Deflections'!$E$6*0.8 -> 96 | J30: =Reference!$C$367+Reference!$D$359 -> 206 | K30: -0.02 | L30: -0.0092 | M30: -0.0012 | N30: -0.1614 | O30: -0.053 | P30: =SUM('Redeck Deflections'!$K$30:$O$30) -> -0.2448 | Q30: =IF('Redeck Deflections'!$P$30<0,MROUND(ABS('Redeck Deflections'!$P$30),0.125),MROUND('Redeck Deflections'!$P$30,0.125)*-1) -> 0.25 | R30: 2.8 | T30: 2.8 | U30: ='Redeck Deflections'!$E$6*0.8 -> 96 | V30: =Reference!$C$367+Reference!$D$359 -> 206 | W30: -0.02 | X30: -0.0092 | Y30: -0.0012 | Z30: -0.1614 | AA30: -0.053 | AB30: =SUM('Redeck Deflections'!$W$30:$AA$30) -> -0.2448 | AC30: =IF('Redeck Deflections'!$AB$30<0,MROUND(ABS('Redeck Deflections'!$AB$30),0.125),MROUND('Redeck Deflections'!$AB$30,0.125)*-1) -> 0.25 | AD30: 2.8
H31: 2.9 | I31: ='Redeck Deflections'!$E$6*0.9 -> 108 | J31: =Reference!$C$368+Reference!$D$359 -> 218 | K31: -0.0065 | L31: -0.0029 | M31: -0.0004 | N31: -0.0514 | O31: -0.0194 | P31: =SUM('Redeck Deflections'!$K$31:$O$31) -> -0.0806 | Q31: =IF('Redeck Deflections'!$P$31<0,MROUND(ABS('Redeck Deflections'!$P$31),0.125),MROUND('Redeck Deflections'!$P$31,0.125)*-1) -> 0.125 | R31: 2.9 | T31: 2.9 | U31: ='Redeck Deflections'!$E$6*0.9 -> 108 | V31: =Reference!$C$368+Reference!$D$359 -> 218 | W31: -0.0065 | X31: -0.0029 | Y31: -0.0004 | Z31: -0.0514 | AA31: -0.0194 | AB31: =SUM('Redeck Deflections'!$W$31:$AA$31) -> -0.0806 | AC31: =IF('Redeck Deflections'!$AB$31<0,MROUND(ABS('Redeck Deflections'!$AB$31),0.125),MROUND('Redeck Deflections'!$AB$31,0.125)*-1) -> 0.125 | AD31: 2.9
H32: 3 | I32: ='Redeck Deflections'!$E$6*1 -> 120 | J32: =Reference!$C$369+Reference!$D$359 -> 230 | K32: 0 | L32: 0 | M32: 0 | N32: 0 | O32: 0 | P32: =SUM('Redeck Deflections'!$K$32:$O$32) -> 0 | Q32: =IF('Redeck Deflections'!$P$32<0,MROUND(ABS('Redeck Deflections'!$P$32),0.125),MROUND('Redeck Deflections'!$P$32,0.125)*-1) -> 0 | R32: 3 | T32: 3 | U32: ='Redeck Deflections'!$E$6*1 -> 120 | V32: =Reference!$C$369+Reference!$D$359 -> 230 | W32: 0 | X32: 0 | Y32: 0 | Z32: 0 | AA32: 0 | AB32: =SUM('Redeck Deflections'!$W$32:$AA$32) -> 0 | AC32: =IF('Redeck Deflections'!$AB$32<0,MROUND(ABS('Redeck Deflections'!$AB$32),0.125),MROUND('Redeck Deflections'!$AB$32,0.125)*-1) -> 0 | AD32: 3
H33: 3 | I33: 0 | J33: =Reference!$D$369 -> 230 | K33: 0 | L33: 0 | M33: 0 | N33: 0 | O33: 0 | P33: =SUM('Redeck Deflections'!$K$33:$O$33) -> 0 | Q33: =IF('Redeck Deflections'!$P$33<0,MROUND(ABS('Redeck Deflections'!$P$33),0.125),MROUND('Redeck Deflections'!$P$33,0.125)*-1) -> 0 | R33: 3 | T33: 3 | U33: 0 | V33: =Reference!$D$369 -> 230 | W33: 0 | X33: 0 | Y33: 0 | Z33: 0 | AA33: 0 | AB33: =SUM('Redeck Deflections'!$W$33:$AA$33) -> 0 | AC33: =IF('Redeck Deflections'!$AB$33<0,MROUND(ABS('Redeck Deflections'!$AB$33),0.125),MROUND('Redeck Deflections'!$AB$33,0.125)*-1) -> 0 | AD33: 3
H34: 3.1 | I34: ='Redeck Deflections'!$F$6*0.1 -> 11 | J34: =Reference!$D$370+Reference!$C$371 -> 241 | K34: -0.0024 | L34: -0.0011 | M34: -0.0001 | N34: -0.0191 | O34: -0.003 | P34: =SUM('Redeck Deflections'!$K$34:$O$34) -> -0.0257 | Q34: =IF('Redeck Deflections'!$P$34<0,MROUND(ABS('Redeck Deflections'!$P$34),0.125),MROUND('Redeck Deflections'!$P$34,0.125)*-1) -> 0 | R34: 3.1 | T34: 3.1 | U34: ='Redeck Deflections'!$F$6*0.1 -> 11 | V34: =Reference!$D$370+Reference!$C$371 -> 241 | W34: -0.0024 | X34: -0.0011 | Y34: -0.0001 | Z34: -0.0191 | AA34: -0.003 | AB34: =SUM('Redeck Deflections'!$W$34:$AA$34) -> -0.0257 | AC34: =IF('Redeck Deflections'!$AB$34<0,MROUND(ABS('Redeck Deflections'!$AB$34),0.125),MROUND('Redeck Deflections'!$AB$34,0.125)*-1) -> 0 | AD34: 3.1
H35: 3.2 | I35: ='Redeck Deflections'!$F$6*0.2 -> 22 | J35: =Reference!$C$372+Reference!$D$370 -> 252 | K35: -0.0094 | L35: -0.0044 | M35: -0.0005 | N35: -0.0764 | O35: -0.0169 | P35: =SUM('Redeck Deflections'!$K$35:$O$35) -> -0.1076 | Q35: =IF('Redeck Deflections'!$P$35<0,MROUND(ABS('Redeck Deflections'!$P$35),0.125),MROUND('Redeck Deflections'!$P$35,0.125)*-1) -> 0.125 | R35: 3.2 | T35: 3.2 | U35: ='Redeck Deflections'!$F$6*0.2 -> 22 | V35: =Reference!$C$372+Reference!$D$370 -> 252 | W35: -0.0094 | X35: -0.0044 | Y35: -0.0005 | Z35: -0.0764 | AA35: -0.0169 | AB35: =SUM('Redeck Deflections'!$W$35:$AA$35) -> -0.1076 | AC35: =IF('Redeck Deflections'!$AB$35<0,MROUND(ABS('Redeck Deflections'!$AB$35),0.125),MROUND('Redeck Deflections'!$AB$35,0.125)*-1) -> 0.125 | AD35: 3.2
H36: 3.3 | I36: ='Redeck Deflections'!$F$6*0.3 -> 33 | J36: =Reference!$C$373+Reference!$D$370 -> 263 | K36: -0.0195 | L36: -0.0091 | M36: -0.0011 | N36: -0.1599 | O36: -0.0348 | P36: =SUM('Redeck Deflections'!$K$36:$O$36) -> -0.2244 | Q36: =IF('Redeck Deflections'!$P$36<0,MROUND(ABS('Redeck Deflections'!$P$36),0.125),MROUND('Redeck Deflections'!$P$36,0.125)*-1) -> 0.25 | R36: 3.3 | T36: 3.3 | U36: ='Redeck Deflections'!$F$6*0.3 -> 33 | V36: =Reference!$C$373+Reference!$D$370 -> 263 | W36: -0.0195 | X36: -0.0091 | Y36: -0.0011 | Z36: -0.1599 | AA36: -0.0348 | AB36: =SUM('Redeck Deflections'!$W$36:$AA$36) -> -0.2244 | AC36: =IF('Redeck Deflections'!$AB$36<0,MROUND(ABS('Redeck Deflections'!$AB$36),0.125),MROUND('Redeck Deflections'!$AB$36,0.125)*-1) -> 0.25 | AD36: 3.3
H37: 3.4 | I37: ='Redeck Deflections'!$F$6*0.4 -> 44 | J37: =Reference!$C$374+Reference!$D$370 -> 274 | K37: -0.0297 | L37: -0.0139 | M37: -0.0018 | N37: -0.2439 | O37: -0.0508 | P37: =SUM('Redeck Deflections'!$K$37:$O$37) -> -0.3401 | Q37: =IF('Redeck Deflections'!$P$37<0,MROUND(ABS('Redeck Deflections'!$P$37),0.125),MROUND('Redeck Deflections'!$P$37,0.125)*-1) -> 0.375 | R37: 3.4 | T37: 3.4 | U37: ='Redeck Deflections'!$F$6*0.4 -> 44 | V37: =Reference!$C$374+Reference!$D$370 -> 274 | W37: -0.0297 | X37: -0.0139 | Y37: -0.0018 | Z37: -0.2439 | AA37: -0.0508 | AB37: =SUM('Redeck Deflections'!$W$37:$AA$37) -> -0.3401 | AC37: =IF('Redeck Deflections'!$AB$37<0,MROUND(ABS('Redeck Deflections'!$AB$37),0.125),MROUND('Redeck Deflections'!$AB$37,0.125)*-1) -> 0.375 | AD37: 3.4
H38: 3.5 | I38: ='Redeck Deflections'!$F$6*0.5 -> 55 | J38: =Reference!$C$375+Reference!$D$370 -> 285 | K38: -0.0371 | L38: -0.0174 | M38: -0.0022 | N38: -0.3053 | O38: -0.0614 | P38: =SUM('Redeck Deflections'!$K$38:$O$38) -> -0.4234 | Q38: =IF('Redeck Deflections'!$P$38<0,MROUND(ABS('Redeck Deflections'!$P$38),0.125),MROUND('Redeck Deflections'!$P$38,0.125)*-1) -> 0.375 | R38: 3.5 | T38: 3.5 | U38: ='Redeck Deflections'!$F$6*0.5 -> 55 | V38: =Reference!$C$375+Reference!$D$370 -> 285 | W38: -0.0371 | X38: -0.0174 | Y38: -0.0022 | Z38: -0.3053 | AA38: -0.0614 | AB38: =SUM('Redeck Deflections'!$W$38:$AA$38) -> -0.4234 | AC38: =IF('Redeck Deflections'!$AB$38<0,MROUND(ABS('Redeck Deflections'!$AB$38),0.125),MROUND('Redeck Deflections'!$AB$38,0.125)*-1) -> 0.375 | AD38: 3.5
H39: 3.6 | I39: ='Redeck Deflections'!$F$6*0.6 -> 66 | J39: =Reference!$C$376+Reference!$D$370 -> 296 | K39: -0.0398 | L39: -0.0188 | M39: -0.0024 | N39: -0.3284 | O39: -0.0643 | P39: =SUM('Redeck Deflections'!$K$39:$O$39) -> -0.4537 | Q39: =IF('Redeck Deflections'!$P$39<0,MROUND(ABS('Redeck Deflections'!$P$39),0.125),MROUND('Redeck Deflections'!$P$39,0.125)*-1) -> 0.5 | R39: 3.6 | T39: 3.6 | U39: ='Redeck Deflections'!$F$6*0.6 -> 66 | V39: =Reference!$C$376+Reference!$D$370 -> 296 | W39: -0.0398 | X39: -0.0188 | Y39: -0.0024 | Z39: -0.3284 | AA39: -0.0643 | AB39: =SUM('Redeck Deflections'!$W$39:$AA$39) -> -0.4537 | AC39: =IF('Redeck Deflections'!$AB$39<0,MROUND(ABS('Redeck Deflections'!$AB$39),0.125),MROUND('Redeck Deflections'!$AB$39,0.125)*-1) -> 0.5 | AD39: 3.6
H40: 3.7 | I40: ='Redeck Deflections'!$F$6*0.7 -> 77 | J40: =Reference!$C$377+Reference!$D$370 -> 307 | K40: -0.037 | L40: -0.0175 | M40: -0.0022 | N40: -0.3056 | O40: -0.0588 | P40: =SUM('Redeck Deflections'!$K$40:$O$40) -> -0.4211 | Q40: =IF('Redeck Deflections'!$P$40<0,MROUND(ABS('Redeck Deflections'!$P$40),0.125),MROUND('Redeck Deflections'!$P$40,0.125)*-1) -> 0.375 | R40: 3.7 | T40: 3.7 | U40: ='Redeck Deflections'!$F$6*0.7 -> 77 | V40: =Reference!$C$377+Reference!$D$370 -> 307 | W40: -0.037 | X40: -0.0175 | Y40: -0.0022 | Z40: -0.3056 | AA40: -0.0588 | AB40: =SUM('Redeck Deflections'!$W$40:$AA$40) -> -0.4211 | AC40: =IF('Redeck Deflections'!$AB$40<0,MROUND(ABS('Redeck Deflections'!$AB$40),0.125),MROUND('Redeck Deflections'!$AB$40,0.125)*-1) -> 0.375 | AD40: 3.7
H41: 3.8 | I41: ='Redeck Deflections'!$F$6*0.8 -> 88 | J41: =Reference!$C$378+Reference!$D$370 -> 318 | K41: -0.0287 | L41: -0.0135 | M41: -0.0017 | N41: -0.2368 | O41: -0.0449 | P41: =SUM('Redeck Deflections'!$K$41:$O$41) -> -0.3256 | Q41: =IF('Redeck Deflections'!$P$41<0,MROUND(ABS('Redeck Deflections'!$P$41),0.125),MROUND('Redeck Deflections'!$P$41,0.125)*-1) -> 0.375 | R41: 3.8 | T41: 3.8 | U41: ='Redeck Deflections'!$F$6*0.8 -> 88 | V41: =Reference!$C$378+Reference!$D$370 -> 318 | W41: -0.0287 | X41: -0.0135 | Y41: -0.0017 | Z41: -0.2368 | AA41: -0.0449 | AB41: =SUM('Redeck Deflections'!$W$41:$AA$41) -> -0.3256 | AC41: =IF('Redeck Deflections'!$AB$41<0,MROUND(ABS('Redeck Deflections'!$AB$41),0.125),MROUND('Redeck Deflections'!$AB$41,0.125)*-1) -> 0.375 | AD41: 3.8
H42: 3.9 | I42: ='Redeck Deflections'!$F$6*0.9 -> 99 | J42: =Reference!$C$379+Reference!$D$370 -> 329 | K42: -0.0157 | L42: -0.0074 | M42: -0.0009 | N42: -0.1297 | O42: -0.0244 | P42: =SUM('Redeck Deflections'!$K$42:$O$42) -> -0.1781 | Q42: =IF('Redeck Deflections'!$P$42<0,MROUND(ABS('Redeck Deflections'!$P$42),0.125),MROUND('Redeck Deflections'!$P$42,0.125)*-1) -> 0.125 | R42: 3.9 | T42: 3.9 | U42: ='Redeck Deflections'!$F$6*0.9 -> 99 | V42: =Reference!$C$379+Reference!$D$370 -> 329 | W42: -0.0157 | X42: -0.0074 | Y42: -0.0009 | Z42: -0.1297 | AA42: -0.0244 | AB42: =SUM('Redeck Deflections'!$W$42:$AA$42) -> -0.1781 | AC42: =IF('Redeck Deflections'!$AB$42<0,MROUND(ABS('Redeck Deflections'!$AB$42),0.125),MROUND('Redeck Deflections'!$AB$42,0.125)*-1) -> 0.125 | AD42: 3.9
H43: 4 | I43: ='Redeck Deflections'!$F$6*1 -> 110 | J43: =Reference!$C$380+Reference!$D$370 -> 340 | K43: 0 | L43: 0 | M43: 0 | N43: 0 | O43: 0 | P43: =SUM('Redeck Deflections'!$K$43:$O$43) -> 0 | Q43: =IF('Redeck Deflections'!$P$43<0,MROUND(ABS('Redeck Deflections'!$P$43),0.125),MROUND('Redeck Deflections'!$P$43,0.125)*-1) -> 0 | R43: 4 | T43: 4 | U43: ='Redeck Deflections'!$F$6*1 -> 110 | V43: =Reference!$C$380+Reference!$D$370 -> 340 | W43: 0 | X43: 0 | Y43: 0 | Z43: 0 | AA43: 0 | AB43: =SUM('Redeck Deflections'!$W$43:$AA$43) -> 0 | AC43: =IF('Redeck Deflections'!$AB$43<0,MROUND(ABS('Redeck Deflections'!$AB$43),0.125),MROUND('Redeck Deflections'!$AB$43,0.125)*-1) -> 0 | AD43: 4

Sheet Deliverables
C1: Dead Load Deflections Summary | J1: Copy and Paste these Values into a Separate Spreadsheet for the Electronic Deliverables
C4: Exterior Girder | G4: Interior Girder
C5: Decimal Inches | D5: Nearest 1/8" | E5: Tenth point | G5: Decimal Inches | H5: Nearest 1/8" | I5: Tenth point
C6: 0 | D6: 0 | E6: 1 | G6: 0 | H6: 0 | I6: 1
C7: -0.1781 | D7: 0.125 | E7: 1.1 | G7: -0.1781 | H7: 0.125 | I7: 1.1
C8: -0.3256 | D8: 0.375 | E8: 1.2 | G8: -0.3256 | H8: 0.375 | I8: 1.2
C9: -0.4211 | D9: 0.375 | E9: 1.3 | G9: -0.4211 | H9: 0.375 | I9: 1.3
C10: -0.4537 | D10: 0.5 | E10: 1.4 | G10: -0.4537 | H10: 0.5 | I10: 1.4
C11: -0.4234 | D11: 0.375 | E11: 1.5 | G11: -0.4234 | H11: 0.375 | I11: 1.5
C12: -0.3401 | D12: 0.375 | E12: 1.6 | G12: -0.3401 | H12: 0.375 | I12: 1.6
C13: -0.2244 | D13: 0.25 | E13: 1.7 | G13: -0.2244 | H13: 0.25 | I13: 1.7
C14: -0.1076 | D14: 0.125 | E14: 1.8 | G14: -0.1076 | H14: 0.125 | I14: 1.8
C15: -0.0257 | D15: 0 | E15: 1.9 | G15: -0.0257 | H15: 0 | I15: 1.9
C16: 0 | D16: 0 | E16: 2 | G16: 0 | H16: 0 | I16: 2
C17: 0 | D17: 0 | E17: 2 | G17: 0 | H17: 0 | I17: 2
C18: -0.0806 | D18: 0.125 | E18: 2.1 | G18: -0.0806 | H18: 0.125 | I18: 2.1
C19: -0.2448 | D19: 0.25 | E19: 2.2 | G19: -0.2448 | H19: 0.25 | I19: 2.2
C20: -0.4339 | D20: 0.375 | E20: 2.3 | G20: -0.4339 | H20: 0.375 | I20: 2.3
C21: -0.5767 | D21: 0.625 | E21: 2.4 | G21: -0.5767 | H21: 0.625 | I21: 2.4
C22: -0.6291 | D22: 0.625 | E22: 2.5 | G22: -0.6291 | H22: 0.625 | I22: 2.5
C23: -0.5767 | D23: 0.625 | E23: 2.6 | G23: -0.5767 | H23: 0.625 | I23: 2.6
C24: -0.4339 | D24: 0.375 | E24: 2.7 | G24: -0.4339 | H24: 0.375 | I24: 2.7
C25: -0.2448 | D25: 0.25 | E25: 2.8 | G25: -0.2448 | H25: 0.25 | I25: 2.8
C26: -0.0806 | D26: 0.125 | E26: 2.9 | G26: -0.0806 | H26: 0.125 | I26: 2.9
C27: 0 | D27: 0 | E27: 3 | G27: 0 | H27: 0 | I27: 3
C28: 0 | D28: 0 | E28: 3 | G28: 0 | H28: 0 | I28: 3
C29: -0.0257 | D29: 0 | E29: 3.1 | G29: -0.0257 | H29: 0 | I29: 3.1
C30: -0.1076 | D30: 0.125 | E30: 3.2 | G30: -0.1076 | H30: 0.125 | I30: 3.2
C31: -0.2244 | D31: 0.25 | E31: 3.3 | G31: -0.2244 | H31: 0.25 | I31: 3.3
C32: -0.3401 | D32: 0.375 | E32: 3.4 | G32: -0.3401 | H32: 0.375 | I32: 3.4
C33: -0.4234 | D33: 0.375 | E33: 3.5 | G33: -0.4234 | H33: 0.375 | I33: 3.5
C34: -0.4537 | D34: 0.5 | E34: 3.6 | G34: -0.4537 | H34: 0.5 | I34: 3.6
C35: -0.4211 | D35: 0.375 | E35: 3.7 | G35: -0.4211 | H35: 0.375 | I35: 3.7
C36: -0.3256 | D36: 0.375 | E36: 3.8 | G36: -0.3256 | H36: 0.375 | I36: 3.8
C37: -0.1781 | D37: 0.125 | E37: 3.9 | G37: -0.1781 | H37: 0.125 | I37: 3.9
C38: 0 | D38: 0 | E38: 4 | G38: 0 | H38: 0 | I38: 4

Sheet Reference
A2: 1 Span | B2: EXTERIOR GIRDERS | N2: INTERIOR GIRDERS
E3: Girder | F3: Intermediate diaphragms | G3: Concrete | I3: Barrier | J3: Total DL Deflection | Q3: Girder | R3: Intermediate diaphragms | S3: Concrete | U3: Barrier | V3: Total DL Deflection
B4: Tenth point | C4: Location | D4: Distance | E4: YDL-s1- Load Case 1 - Self Load (Stage1:D,DC) | F4: YDL-s1- Load Case 2 - Add'l Self Load (In Force/Length) (Stage 1:D,DC) | G4: YDL-s1- Load Case 3 - Haunch Load (Stage1:D,DC) | H4: YDL-s1- Load Case 4 - Concrete Deck Load (Stage1:D,DC) | I4: YDL-s2- Load Case 1 - Parapet Loads(DL2 - Barriers & Curbs: Stage 2:D,D~ | J4: Decimal Inches | K4: Nearest 1/8" | L4: Tenth point | N4: Tenth point | O4: Location | P4: Distance | Q4: YDL-s1- Load Case 1 - Self Load (Stage1:D,DC) | R4: YDL-s1- Load Case 2 - Add'l Self Load (In Force/Length) (Stage 1:D,DC) | S4: YDL-s1- Load Case 3 - Haunch Load (Stage1:D,DC) | T4: YDL-s1- Load Case 4 - Concrete Deck Load (Stage1:D,DC) | U4: YDL-s2- Load Case 1 - Parapet Loads(DL2 - Barriers & Curbs: Stage 2:D,D~ | V4: Decimal Inches | W4: Nearest 1/8" | X4: Tenth point
B5: 1 | C5: 0 | D5: 0 | E5: Copy and Paste Values from Virtis | J5: =SUM('Redeck Deflections'!$K$11:$O$11) -> 0 | K5: =IF('Redeck Deflections'!$P$11<0,MROUND(ABS('Redeck Deflections'!$P$11),0.125),MROUND('Redeck Deflections'!$P$11,0.125)*-1) -> 0 | L5: 1 | N5: 1 | O5: 0 | P5: 0 | Q5: Copy and Paste Values from Virtis | V5: =SUM('Redeck Deflections'!$W$11:$AA$11) -> 0 | W5: =IF('Redeck Deflections'!$AB$11<0,MROUND(ABS('Redeck Deflections'!$AB$11),0.125),MROUND('Redeck Deflections'!$AB$11,0.125)*-1) -> 0 | X5: 1
B6: 1.1 | C6: ='Redeck Deflections'!$D$6*0.1 -> 11 | D6: =Reference!$C$349 -> 11 | J6: =SUM('Redeck Deflections'!$K$12:$O$12) -> -0.1781 | K6: =IF('Redeck Deflections'!$P$12<0,MROUND(ABS('Redeck Deflections'!$P$12),0.125),MROUND('Redeck Deflections'!$P$12,0.125)*-1) -> 0.125 | L6: 1.1 | N6: 1.1 | O6: ='Redeck Deflections'!$D$6*0.1 -> 11 | P6: =Reference!$C$349 -> 11 | V6: =SUM('Redeck Deflections'!$W$12:$AA$12) -> -0.1781 | W6: =IF('Redeck Deflections'!$AB$12<0,MROUND(ABS('Redeck Deflections'!$AB$12),0.125),MROUND('Redeck Deflections'!$AB$12,0.125)*-1) -> 0.125 | X6: 1.1
B7: 1.2 | C7: ='Redeck Deflections'!$D$6*0.2 -> 22 | D7: =Reference!$D$349+Reference!$D$349 -> 22 | J7: =SUM('Redeck Deflections'!$K$13:$O$13) -> -0.3256 | K7: =IF('Redeck Deflections'!$P$13<0,MROUND(ABS('Redeck Deflections'!$P$13),0.125),MROUND('Redeck Deflections'!$P$13,0.125)*-1) -> 0.375 | L7: 1.2 | N7: 1.2 | O7: ='Redeck Deflections'!$D$6*0.2 -> 22 | P7: =Reference!$D$349+Reference!$D$349 -> 22 | V7: =SUM('Redeck Deflections'!$W$13:$AA$13) -> -0.3256 | W7: =IF('Redeck Deflections'!$AB$13<0,MROUND(ABS('Redeck Deflections'!$AB$13),0.125),MROUND('Redeck Deflections'!$AB$13,0.125)*-1) -> 0.375 | X7: 1.2
B8: 1.3 | C8: ='Redeck Deflections'!$D$6*0.3 -> 33 | D8: =Reference!$D$350+Reference!$D$349 -> 33 | J8: =SUM('Redeck Deflections'!$K$14:$O$14) -> -0.4211 | K8: =IF('Redeck Deflections'!$P$14<0,MROUND(ABS('Redeck Deflections'!$P$14),0.125),MROUND('Redeck Deflections'!$P$14,0.125)*-1) -> 0.375 | L8: 1.3 | N8: 1.3 | O8: ='Redeck Deflections'!$D$6*0.3 -> 33 | P8: =Reference!$D$350+Reference!$D$349 -> 33 | V8: =SUM('Redeck Deflections'!$W$14:$AA$14) -> -0.4211 | W8: =IF('Redeck Deflections'!$AB$14<0,MROUND(ABS('Redeck Deflections'!$AB$14),0.125),MROUND('Redeck Deflections'!$AB$14,0.125)*-1) -> 0.375 | X8: 1.3
B9: 1.4 | C9: ='Redeck Deflections'!$D$6*0.4 -> 44 | D9: =Reference!$D$351+Reference!$D$349 -> 44 | J9: =SUM('Redeck Deflections'!$K$15:$O$15) -> -0.4537 | K9: =IF('Redeck Deflections'!$P$15<0,MROUND(ABS('Redeck Deflections'!$P$15),0.125),MROUND('Redeck Deflections'!$P$15,0.125)*-1) -> 0.5 | L9: 1.4 | N9: 1.4 | O9: ='Redeck Deflections'!$D$6*0.4 -> 44 | P9: =Reference!$D$351+Reference!$D$349 -> 44 | V9: =SUM('Redeck Deflections'!$W$15:$AA$15) -> -0.4537 | W9: =IF('Redeck Deflections'!$AB$15<0,MROUND(ABS('Redeck Deflections'!$AB$15),0.125),MROUND('Redeck Deflections'!$AB$15,0.125)*-1) -> 0.5 | X9: 1.4
B10: 1.5 | C10: ='Redeck Deflections'!$D$6*0.5 -> 55 | D10: =Reference!$D$352+Reference!$D$349 -> 55 | J10: =SUM('Redeck Deflections'!$K$16:$O$16) -> -0.4234 | K10: =IF('Redeck Deflections'!$P$16<0,MROUND(ABS('Redeck Deflections'!$P$16),0.125),MROUND('Redeck Deflections'!$P$16,0.125)*-1) -> 0.375 | L10: 1.5 | N10: 1.5 | O10: ='Redeck Deflections'!$D$6*0.5 -> 55 | P10: =Reference!$D$352+Reference!$D$349 -> 55 | V10: =SUM('Redeck Deflections'!$W$16:$AA$16) -> -0.4234 | W10: =IF('Redeck Deflections'!$AB$16<0,MROUND(ABS('Redeck Deflections'!$AB$16),0.125),MROUND('Redeck Deflections'!$AB$16,0.125)*-1) -> 0.375 | X10: 1.5
B11: 1.6 | C11: ='Redeck Deflections'!$D$6*0.6 -> 66 | D11: =Reference!$D$353+Reference!$D$349 -> 66 | J11: =SUM('Redeck Deflections'!$K$17:$O$17) -> -0.3401 | K11: =IF('Redeck Deflections'!$P$17<0,MROUND(ABS('Redeck Deflections'!$P$17),0.125),MROUND('Redeck Deflections'!$P$17,0.125)*-1) -> 0.375 | L11: 1.6 | N11: 1.6 | O11: ='Redeck Deflections'!$D$6*0.6 -> 66 | P11: =Reference!$D$353+Reference!$D$349 -> 66 | V11: =SUM('Redeck Deflections'!$W$17:$AA$17) -> -0.3401 | W11: =IF('Redeck Deflections'!$AB$17<0,MROUND(ABS('Redeck Deflections'!$AB$17),0.125),MROUND('Redeck Deflections'!$AB$17,0.125)*-1) -> 0.375 | X11: 1.6
B12: 1.7 | C12: ='Redeck Deflections'!$D$6*0.7 -> 77 | D12: =Reference!$D$354+Reference!$D$349 -> 77 | J12: =SUM('Redeck Deflections'!$K$18:$O$18) -> -0.2244 | K12: =IF('Redeck Deflections'!$P$18<0,MROUND(ABS('Redeck Deflections'!$P$18),0.125),MROUND('Redeck Deflections'!$P$18,0.125)*-1) -> 0.25 | L12: 1.7 | N12: 1.7 | O12: ='Redeck Deflections'!$D$6*0.7 -> 77 | P12: =Reference!$D$354+Reference!$D$349 -> 77 | V12: =SUM('Redeck Deflections'!$W$18:$AA$18) -> -0.2244 | W12: =IF('Redeck Deflections'!$AB$18<0,MROUND(ABS('Redeck Deflections'!$AB$18),0.125),MROUND('Redeck Deflections'!$AB$18,0.125)*-1) -> 0.25 | X12: 1.7
B13: 1.8 | C13: ='Redeck Deflections'!$D$6*0.8 -> 88 | D13: =Reference!$D$355+Reference!$D$349 -> 88 | J13: =SUM('Redeck Deflections'!$K$19:$O$19) -> -0.1076 | K13: =IF('Redeck Deflections'!$P$19<0,MROUND(ABS('Redeck Deflections'!$P$19),0.125),MROUND('Redeck Deflections'!$P$19,0.125)*-1) -> 0.125 | L13: 1.8 | N13: 1.8 | O13: ='Redeck Deflections'!$D$6*0.8 -> 88 | P13: =Reference!$D$355+Reference!$D$349 -> 88 | V13: =SUM('Redeck Deflections'!$W$19:$AA$19) -> -0.1076 | W13: =IF('Redeck Deflections'!$AB$19<0,MROUND(ABS('Redeck Deflections'!$AB$19),0.125),MROUND('Redeck Deflections'!$AB$19,0.125)*-1) -> 0.125 | X13: 1.8
B14: 1.9 | C14: ='Redeck Deflections'!$D$6*0.9 -> 99 | D14: =Reference!$D$356+Reference!$D$349 -> 99 | J14: =SUM('Redeck Deflections'!$K$20:$O$20) -> -0.0257 | K14: =IF('Redeck Deflections'!$P$20<0,MROUND(ABS('Redeck Deflections'!$P$20),0.125),MROUND('Redeck Deflections'!$P$20,0.125)*-1) -> 0 | L14: 1.9 | N14: 1.9 | O14: ='Redeck Deflections'!$D$6*0.9 -> 99 | P14: =Reference!$D$356+Reference!$D$349 -> 99 | V14: =SUM('Redeck Deflections'!$W$20:$AA$20) -> -0.0257 | W14: =IF('Redeck Deflections'!$AB$20<0,MROUND(ABS('Redeck Deflections'!$AB$20),0.125),MROUND('Redeck Deflections'!$AB$20,0.125)*-1) -> 0 | X14: 1.9
B15: 2 | C15: ='Redeck Deflections'!$D$6*1 -> 110 | D15: =Reference!$D$357+Reference!$D$349 -> 110 | J15: =SUM('Redeck Deflections'!$K$21:$O$21) -> 0 | K15: =IF('Redeck Deflections'!$P$21<0,MROUND(ABS('Redeck Deflections'!$P$21),0.125),MROUND('Redeck Deflections'!$P$21,0.125)*-1) -> 0 | L15: 2 | N15: 2 | O15: ='Redeck Deflections'!$D$6*1 -> 110 | P15: =Reference!$D$357+Reference!$D$349 -> 110 | V15: =SUM('Redeck Deflections'!$W$21:$AA$21) -> 0 | W15: =IF('Redeck Deflections'!$AB$21<0,MROUND(ABS('Redeck Deflections'!$AB$21),0.125),MROUND('Redeck Deflections'!$AB$21,0.125)*-1) -> 0 | X15: 2
A18: 2 Span | B18: EXTERIOR GIRDERS | N18: INTERIOR GIRDERS
E19: Girder | F19: Intermediate diaphragms | G19: Concrete | I19: Barrier | J19: Total DL Deflection | Q19: Girder | R19: Intermediate diaphragms | S19: Concrete | U19: Barrier | V19: Total DL Deflection
B20: Tenth point | C20: Location | D20: Distance | E20: YDL-s1- Load Case 1 - Self Load (Stage1:D,DC) | F20: YDL-s1- Load Case 2 - Add'l Self Load (In Force/Length) (Stage 1:D,DC) | G20: YDL-s1- Load Case 3 - Haunch Load (Stage1:D,DC) | H20: YDL-s1- Load Case 4 - Concrete Deck Load (Stage1:D,DC) | I20: YDL-s2- Load Case 1 - Parapet Loads(DL2 - Barriers & Curbs: Stage 2:D,D~ | J20: Decimal Inches | K20: Nearest 1/8" | L20: Tenth point | N20: Tenth point | O20: Location | P20: Distance | Q20: YDL-s1- Load Case 1 - Self Load (Stage1:D,DC) | R20: YDL-s1- Load Case 2 - Add'l Self Load (In Force/Length) (Stage 1:D,DC) | S20: YDL-s1- Load Case 3 - Haunch Load (Stage1:D,DC) | T20: YDL-s1- Load Case 4 - Concrete Deck Load (Stage1:D,DC) | U20: YDL-s2- Load Case 1 - Parapet Loads(DL2 - Barriers & Curbs: Stage 2:D,D~ | V20: Decimal Inches | W20: Nearest 1/8" | X20: Tenth point
B21: 1 | C21: 0 | D21: 0 | E21: Copy and Paste Values from Virtis | J21: =SUM('Redeck Deflections'!$K$11:$O$11) -> 0 | K21: =IF('Redeck Deflections'!$P$11<0,MROUND(ABS('Redeck Deflections'!$P$11),0.125),MROUND('Redeck Deflections'!$P$11,0.125)*-1) -> 0 | L21: 1 | N21: 1 | O21: 0 | P21: 0 | Q21: Copy and Paste Values from Virtis | V21: =SUM('Redeck Deflections'!$W$11:$AA$11) -> 0 | W21: =IF('Redeck Deflections'!$AB$11<0,MROUND(ABS('Redeck Deflections'!$AB$11),0.125),MROUND('Redeck Deflections'!$AB$11,0.125)*-1) -> 0 | X21: 1
B22: 1.1 | C22: ='Redeck Deflections'!$D$6*0.1 -> 11 | D22: =Reference!$C$349 -> 11 | J22: =SUM('Redeck Deflections'!$K$12:$O$12) -> -0.1781 | K22: =IF('Redeck Deflections'!$P$12<0,MROUND(ABS('Redeck Deflections'!$P$12),0.125),MROUND('Redeck Deflections'!$P$12,0.125)*-1) -> 0.125 | L22: 1.1 | N22: 1.1 | O22: ='Redeck Deflections'!$D$6*0.1 -> 11 | P22: =Reference!$C$349 -> 11 | V22: =SUM('Redeck Deflections'!$W$12:$AA$12) -> -0.1781 | W22: =IF('Redeck Deflections'!$AB$12<0,MROUND(ABS('Redeck Deflections'!$AB$12),0.125),MROUND('Redeck Deflections'!$AB$12,0.125)*-1) -> 0.125 | X22: 1.1
B23: 1.2 | C23: ='Redeck Deflections'!$D$6*0.2 -> 22 | D23: =Reference!$D$349+Reference!$D$349 -> 22 | J23: =SUM('Redeck Deflections'!$K$13:$O$13) -> -0.3256 | K23: =IF('Redeck Deflections'!$P$13<0,MROUND(ABS('Redeck Deflections'!$P$13),0.125),MROUND('Redeck Deflections'!$P$13,0.125)*-1) -> 0.375 | L23: 1.2 | N23: 1.2 | O23: ='Redeck Deflections'!$D$6*0.2 -> 22 | P23: =Reference!$D$349+Reference!$D$349 -> 22 | V23: =SUM('Redeck Deflections'!$W$13:$AA$13) -> -0.3256 | W23: =IF('Redeck Deflections'!$AB$13<0,MROUND(ABS('Redeck Deflections'!$AB$13),0.125),MROUND('Redeck Deflections'!$AB$13,0.125)*-1) -> 0.375 | X23: 1.2
B24: 1.3 | C24: ='Redeck Deflections'!$D$6*0.3 -> 33 | D24: =Reference!$D$350+Reference!$D$349 -> 33 | J24: =SUM('Redeck Deflections'!$K$14:$O$14) -> -0.4211 | K24: =IF('Redeck Deflections'!$P$14<0,MROUND(ABS('Redeck Deflections'!$P$14),0.125),MROUND('Redeck Deflections'!$P$14,0.125)*-1) -> 0.375 | L24: 1.3 | N24: 1.3 | O24: ='Redeck Deflections'!$D$6*0.3 -> 33 | P24: =Reference!$D$350+Reference!$D$349 -> 33 | V24: =SUM('Redeck Deflections'!$W$14:$AA$14) -> -0.4211 | W24: =IF('Redeck Deflections'!$AB$14<0,MROUND(ABS('Redeck Deflections'!$AB$14),0.125),MROUND('Redeck Deflections'!$AB$14,0.125)*-1) -> 0.375 | X24: 1.3
B25: 1.4 | C25: ='Redeck Deflections'!$D$6*0.4 -> 44 | D25: =Reference!$D$351+Reference!$D$349 -> 44 | J25: =SUM('Redeck Deflections'!$K$15:$O$15) -> -0.4537 | K25: =IF('Redeck Deflections'!$P$15<0,MROUND(ABS('Redeck Deflections'!$P$15),0.125),MROUND('Redeck Deflections'!$P$15,0.125)*-1) -> 0.5 | L25: 1.4 | N25: 1.4 | O25: ='Redeck Deflections'!$D$6*0.4 -> 44 | P25: =Reference!$D$351+Reference!$D$349 -> 44 | V25: =SUM('Redeck Deflections'!$W$15:$AA$15) -> -0.4537 | W25: =IF('Redeck Deflections'!$AB$15<0,MROUND(ABS('Redeck Deflections'!$AB$15),0.125),MROUND('Redeck Deflections'!$AB$15,0.125)*-1) -> 0.5 | X25: 1.4
B26: 1.5 | C26: ='Redeck Deflections'!$D$6*0.5 -> 55 | D26: =Reference!$D$352+Reference!$D$349 -> 55 | J26: =SUM('Redeck Deflections'!$K$16:$O$16) -> -0.4234 | K26: =IF('Redeck Deflections'!$P$16<0,MROUND(ABS('Redeck Deflections'!$P$16),0.125),MROUND('Redeck Deflections'!$P$16,0.125)*-1) -> 0.375 | L26: 1.5 | N26: 1.5 | O26: ='Redeck Deflections'!$D$6*0.5 -> 55 | P26: =Reference!$D$352+Reference!$D$349 -> 55 | V26: =SUM('Redeck Deflections'!$W$16:$AA$16) -> -0.4234 | W26: =IF('Redeck Deflections'!$AB$16<0,MROUND(ABS('Redeck Deflections'!$AB$16),0.125),MROUND('Redeck Deflections'!$AB$16,0.125)*-1) -> 0.375 | X26: 1.5
B27: 1.6 | C27: ='Redeck Deflections'!$D$6*0.6 -> 66 | D27: =Reference!$D$353+Reference!$D$349 -> 66 | J27: =SUM('Redeck Deflections'!$K$17:$O$17) -> -0.3401 | K27: =IF('Redeck Deflections'!$P$17<0,MROUND(ABS('Redeck Deflections'!$P$17),0.125),MROUND('Redeck Deflections'!$P$17,0.125)*-1) -> 0.375 | L27: 1.6 | N27: 1.6 | O27: ='Redeck Deflections'!$D$6*0.6 -> 66 | P27: =Reference!$D$353+Reference!$D$349 -> 66 | V27: =SUM('Redeck Deflections'!$W$17:$AA$17) -> -0.3401 | W27: =IF('Redeck Deflections'!$AB$17<0,MROUND(ABS('Redeck Deflections'!$AB$17),0.125),MROUND('Redeck Deflections'!$AB$17,0.125)*-1) -> 0.375 | X27: 1.6
B28: 1.7 | C28: ='Redeck Deflections'!$D$6*0.7 -> 77 | D28: =Reference!$D$354+Reference!$D$349 -> 77 | J28: =SUM('Redeck Deflections'!$K$18:$O$18) -> -0.2244 | K28: =IF('Redeck Deflections'!$P$18<0,MROUND(ABS('Redeck Deflections'!$P$18),0.125),MROUND('Redeck Deflections'!$P$18,0.125)*-1) -> 0.25 | L28: 1.7 | N28: 1.7 | O28: ='Redeck Deflections'!$D$6*0.7 -> 77 | P28: =Reference!$D$354+Reference!$D$349 -> 77 | V28: =SUM('Redeck Deflections'!$W$18:$AA$18) -> -0.2244 | W28: =IF('Redeck Deflections'!$AB$18<0,MROUND(ABS('Redeck Deflections'!$AB$18),0.125),MROUND('Redeck Deflections'!$AB$18,0.125)*-1) -> 0.25 | X28: 1.7
B29: 1.8 | C29: ='Redeck Deflections'!$D$6*0.8 -> 88 | D29: =Reference!$D$355+Reference!$D$349 -> 88 | J29: =SUM('Redeck Deflections'!$K$19:$O$19) -> -0.1076 | K29: =IF('Redeck Deflections'!$P$19<0,MROUND(ABS('Redeck Deflections'!$P$19),0.125),MROUND('Redeck Deflections'!$P$19,0.125)*-1) -> 0.125 | L29: 1.8 | N29: 1.8 | O29: ='Redeck Deflections'!$D$6*0.8 -> 88 | P29: =Reference!$D$355+Reference!$D$349 -> 88 | V29: =SUM('Redeck Deflections'!$W$19:$AA$19) -> -0.1076 | W29: =IF('Redeck Deflections'!$AB$19<0,MROUND(ABS('Redeck Deflections'!$AB$19),0.125),MROUND('Redeck Deflections'!$AB$19,0.125)*-1) -> 0.125 | X29: 1.8
B30: 1.9 | C30: ='Redeck Deflections'!$D$6*0.9 -> 99 | D30: =Reference!$D$356+Reference!$D$349 -> 99 | J30: =SUM('Redeck Deflections'!$K$20:$O$20) -> -0.0257 | K30: =IF('Redeck Deflections'!$P$20<0,MROUND(ABS('Redeck Deflections'!$P$20),0.125),MROUND('Redeck Deflections'!$P$20,0.125)*-1) -> 0 | L30: 1.9 | N30: 1.9 | O30: ='Redeck Deflections'!$D$6*0.9 -> 99 | P30: =Reference!$D$356+Reference!$D$349 -> 99 | V30: =SUM('Redeck Deflections'!$W$20:$AA$20) -> -0.0257 | W30: =IF('Redeck Deflections'!$AB$20<0,MROUND(ABS('Redeck Deflections'!$AB$20),0.125),MROUND('Redeck Deflections'!$AB$20,0.125)*-1) -> 0 | X30: 1.9
B31: 2 | C31: ='Redeck Deflections'!$D$6*1 -> 110 | D31: =Reference!$D$357+Reference!$D$349 -> 110 | J31: =SUM('Redeck Deflections'!$K$21:$O$21) -> 0 | K31: =IF('Redeck Deflections'!$P$21<0,MROUND(ABS('Redeck Deflections'!$P$21),0.125),MROUND('Redeck Deflections'!$P$21,0.125)*-1) -> 0 | L31: 2 | N31: 2 | O31: ='Redeck Deflections'!$D$6*1 -> 110 | P31: =Reference!$D$357+Reference!$D$349 -> 110 | V31: =SUM('Redeck Deflections'!$W$21:$AA$21) -> 0 | W31: =IF('Redeck Deflections'!$AB$21<0,MROUND(ABS('Redeck Deflections'!$AB$21),0.125),MROUND('Redeck Deflections'!$AB$21,0.125)*-1) -> 0 | X31: 2
B32: 2 | C32: 0 | D32: =Reference!$D$358 -> 110 | J32: =SUM('Redeck Deflections'!$K$22:$O$22) -> 0 | K32: =IF('Redeck Deflections'!$P$22<0,MROUND(ABS('Redeck Deflections'!$P$22),0.125),MROUND('Redeck Deflections'!$P$22,0.125)*-1) -> 0 | L32: 2 | N32: 2 | O32: 0 | P32: =Reference!$D$358 -> 110 | V32: =SUM('Redeck Deflections'!$W$22:$AA$22) -> 0 | W32: =IF('Redeck Deflections'!$AB$22<0,MROUND(ABS('Redeck Deflections'!$AB$22),0.125),MROUND('Redeck Deflections'!$AB$22,0.125)*-1) -> 0 | X32: 2
B33: 2.1 | C33: ='Redeck Deflections'!$E$6*0.1 -> 12 | D33: =Reference!$D$359+Reference!$C$360 -> 122 | J33: =SUM('Redeck Deflections'!$K$23:$O$23) -> -0.0806 | K33: =IF('Redeck Deflections'!$P$23<0,MROUND(ABS('Redeck Deflections'!$P$23),0.125),MROUND('Redeck Deflections'!$P$23,0.125)*-1) -> 0.125 | L33: 2.1 | N33: 2.1 | O33: ='Redeck Deflections'!$E$6*0.1 -> 12 | P33: =Reference!$D$359+Reference!$C$360 -> 122 | V33: =SUM('Redeck Deflections'!$W$23:$AA$23) -> -0.0806 | W33: =IF('Redeck Deflections'!$AB$23<0,MROUND(ABS('Redeck Deflections'!$AB$23),0.125),MROUND('Redeck Deflections'!$AB$23,0.125)*-1) -> 0.125 | X33: 2.1
B34: 2.2 | C34: ='Redeck Deflections'!$E$6*0.2 -> 24 | D34: =Reference!$C$361+Reference!$D$59 -> 134 | J34: =SUM('Redeck Deflections'!$K$24:$O$24) -> -0.2448 | K34: =IF('Redeck Deflections'!$P$24<0,MROUND(ABS('Redeck Deflections'!$P$24),0.125),MROUND('Redeck Deflections'!$P$24,0.125)*-1) -> 0.25 | L34: 2.2 | N34: 2.2 | O34: ='Redeck Deflections'!$E$6*0.2 -> 24 | P34: =Reference!$C$361+Reference!$D$59 -> 134 | V34: =SUM('Redeck Deflections'!$W$24:$AA$24) -> -0.2448 | W34: =IF('Redeck Deflections'!$AB$24<0,MROUND(ABS('Redeck Deflections'!$AB$24),0.125),MROUND('Redeck Deflections'!$AB$24,0.125)*-1) -> 0.25 | X34: 2.2
B35: 2.3 | C35: ='Redeck Deflections'!$E$6*0.3 -> 36 | D35: =Reference!$C$362+Reference!$D$359 -> 146 | J35: =SUM('Redeck Deflections'!$K$25:$O$25) -> -0.4339 | K35: =IF('Redeck Deflections'!$P$25<0,MROUND(ABS('Redeck Deflections'!$P$25),0.125),MROUND('Redeck Deflections'!$P$25,0.125)*-1) -> 0.375 | L35: 2.3 | N35: 2.3 | O35: ='Redeck Deflections'!$E$6*0.3 -> 36 | P35: =Reference!$C$362+Reference!$D$359 -> 146 | V35: =SUM('Redeck Deflections'!$W$25:$AA$25) -> -0.4339 | W35: =IF('Redeck Deflections'!$AB$25<0,MROUND(ABS('Redeck Deflections'!$AB$25),0.125),MROUND('Redeck Deflections'!$AB$25,0.125)*-1) -> 0.375 | X35: 2.3
B36: 2.4 | C36: ='Redeck Deflections'!$E$6*0.4 -> 48 | D36: =Reference!$C$363+Reference!$D$359 -> 158 | J36: =SUM('Redeck Deflections'!$K$26:$O$26) -> -0.5767 | K36: =IF('Redeck Deflections'!$P$26<0,MROUND(ABS('Redeck Deflections'!$P$26),0.125),MROUND('Redeck Deflections'!$P$26,0.125)*-1) -> 0.625 | L36: 2.4 | N36: 2.4 | O36: ='Redeck Deflections'!$E$6*0.4 -> 48 | P36: =Reference!$C$363+Reference!$D$359 -> 158 | V36: =SUM('Redeck Deflections'!$W$26:$AA$26) -> -0.5767 | W36: =IF('Redeck Deflections'!$AB$26<0,MROUND(ABS('Redeck Deflections'!$AB$26),0.125),MROUND('Redeck Deflections'!$AB$26,0.125)*-1) -> 0.625 | X36: 2.4
B37: 2.5 | C37: ='Redeck Deflections'!$E$6*0.5 -> 60 | D37: =Reference!$C$364+Reference!$D$359 -> 170 | J37: =SUM('Redeck Deflections'!$K$27:$O$27) -> -0.6291 | K37: =IF('Redeck Deflections'!$P$27<0,MROUND(ABS('Redeck Deflections'!$P$27),0.125),MROUND('Redeck Deflections'!$P$27,0.125)*-1) -> 0.625 | L37: 2.5 | N37: 2.5 | O37: ='Redeck Deflections'!$E$6*0.5 -> 60 | P37: =Reference!$C$364+Reference!$D$359 -> 170 | V37: =SUM('Redeck Deflections'!$W$27:$AA$27) -> -0.6291 | W37: =IF('Redeck Deflections'!$AB$27<0,MROUND(ABS('Redeck Deflections'!$AB$27),0.125),MROUND('Redeck Deflections'!$AB$27,0.125)*-1) -> 0.625 | X37: 2.5
B38: 2.6 | C38: ='Redeck Deflections'!$E$6*0.6 -> 72 | D38: =Reference!$C$365+Reference!$D$359 -> 182 | J38: =SUM('Redeck Deflections'!$K$28:$O$28) -> -0.5767 | K38: =IF('Redeck Deflections'!$P$28<0,MROUND(ABS('Redeck Deflections'!$P$28),0.125),MROUND('Redeck Deflections'!$P$28,0.125)*-1) -> 0.625 | L38: 2.6 | N38: 2.6 | O38: ='Redeck Deflections'!$E$6*0.6 -> 72 | P38: =Reference!$C$365+Reference!$D$359 -> 182 | V38: =SUM('Redeck Deflections'!$W$28:$AA$28) -> -0.5767 | W38: =IF('Redeck Deflections'!$AB$28<0,MROUND(ABS('Redeck Deflections'!$AB$28),0.125),MROUND('Redeck Deflections'!$AB$28,0.125)*-1) -> 0.625 | X38: 2.6
B39: 2.7 | C39: ='Redeck Deflections'!$E$6*0.7 -> 84 | D39: =Reference!$C$366+Reference!$D$359 -> 194 | J39: =SUM('Redeck Deflections'!$K$29:$O$29) -> -0.4339 | K39: =IF('Redeck Deflections'!$P$29<0,MROUND(ABS('Redeck Deflections'!$P$29),0.125),MROUND('Redeck Deflections'!$P$29,0.125)*-1) -> 0.375 | L39: 2.7 | N39: 2.7 | O39: ='Redeck Deflections'!$E$6*0.7 -> 84 | P39: =Reference!$C$366+Reference!$D$359 -> 194 | V39: =SUM('Redeck Deflections'!$W$29:$AA$29) -> -0.4339 | W39: =IF('Redeck Deflections'!$AB$29<0,MROUND(ABS('Redeck Deflections'!$AB$29),0.125),MROUND('Redeck Deflections'!$AB$29,0.125)*-1) -> 0.375 | X39: 2.7
B40: 2.8 | C40: ='Redeck Deflections'!$E$6*0.8 -> 96 | D40: =Reference!$C$367+Reference!$D$359 -> 206 | J40: =SUM('Redeck Deflections'!$K$30:$O$30) -> -0.2448 | K40: =IF('Redeck Deflections'!$P$30<0,MROUND(ABS('Redeck Deflections'!$P$30),0.125),MROUND('Redeck Deflections'!$P$30,0.125)*-1) -> 0.25 | L40: 2.8 | N40: 2.8 | O40: ='Redeck Deflections'!$E$6*0.8 -> 96 | P40: =Reference!$C$367+Reference!$D$359 -> 206 | V40: =SUM('Redeck Deflections'!$W$30:$AA$30) -> -0.2448 | W40: =IF('Redeck Deflections'!$AB$30<0,MROUND(ABS('Redeck Deflections'!$AB$30),0.125),MROUND('Redeck Deflections'!$AB$30,0.125)*-1) -> 0.25 | X40: 2.8
B41: 2.9 | C41: ='Redeck Deflections'!$E$6*0.9 -> 108 | D41: =Reference!$C$368+Reference!$D$359 -> 218 | J41: =SUM('Redeck Deflections'!$K$31:$O$31) -> -0.0806 | K41: =IF('Redeck Deflections'!$P$31<0,MROUND(ABS('Redeck Deflections'!$P$31),0.125),MROUND('Redeck Deflections'!$P$31,0.125)*-1) -> 0.125 | L41: 2.9 | N41: 2.9 | O41: ='Redeck Deflections'!$E$6*0.9 -> 108 | P41: =Reference!$C$368+Reference!$D$359 -> 218 | V41: =SUM('Redeck Deflections'!$W$31:$AA$31) -> -0.0806 | W41: =IF('Redeck Deflections'!$AB$31<0,MROUND(ABS('Redeck Deflections'!$AB$31),0.125),MROUND('Redeck Deflections'!$AB$31,0.125)*-1) -> 0.125 | X41: 2.9
B42: 3 | C42: ='Redeck Deflections'!$E$6*1 -> 120 | D42: =Reference!$C$369+Reference!$D$359 -> 230 | J42: =SUM('Redeck Deflections'!$K$32:$O$32) -> 0 | K42: =IF('Redeck Deflections'!$P$32<0,MROUND(ABS('Redeck Deflections'!$P$32),0.125),MROUND('Redeck Deflections'!$P$32,0.125)*-1) -> 0 | L42: 3 | N42: 3 | O42: ='Redeck Deflections'!$E$6*1 -> 120 | P42: =Reference!$C$369+Reference!$D$359 -> 230 | V42: =SUM('Redeck Deflections'!$W$32:$AA$32) -> 0 | W42: =IF('Redeck Deflections'!$AB$32<0,MROUND(ABS('Redeck Deflections'!$AB$32),0.125),MROUND('Redeck Deflections'!$AB$32,0.125)*-1) -> 0 | X42: 3
A45: 3 Span | B45: EXTERIOR GIRDERS | N45: INTERIOR GIRDERS
E46: Girder | F46: Intermediate diaphragms | G46: Concrete | I46: Barrier | J46: Total DL Deflection | Q46: Girder | R46: Intermediate diaphragms | S46: Concrete | U46: Barrier | V46: Total DL Deflection
B47: Tenth point | C47: Location | D47: Distance | E47: YDL-s1- Load Case 1 - Self Load (Stage1:D,DC) | F47: YDL-s1- Load Case 2 - Add'l Self Load (In Force/Length) (Stage 1:D,DC) | G47: YDL-s1- Load Case 3 - Haunch Load (Stage1:D,DC) | H47: YDL-s1- Load Case 4 - Concrete Deck Load (Stage1:D,DC) | I47: YDL-s2- Load Case 1 - Parapet Loads(DL2 - Barriers & Curbs: Stage 2:D,D~ | J47: Decimal Inches | K47: Nearest 1/8" | L47: Tenth point | N47: Tenth point | O47: Location | P47: Distance | Q47: YDL-s1- Load Case 1 - Self Load (Stage1:D,DC) | R47: YDL-s1- Load Case 2 - Add'l Self Load (In Force/Length) (Stage 1:D,DC) | S47: YDL-s1- Load Case 3 - Haunch Load (Stage1:D,DC) | T47: YDL-s1- Load Case 4 - Concrete Deck Load (Stage1:D,DC) | U47: YDL-s2- Load Case 1 - Parapet Loads(DL2 - Barriers & Curbs: Stage 2:D,D~ | V47: Decimal Inches | W47: Nearest 1/8" | X47: Tenth point
B48: 1 | C48: 0 | D48: 0 | E48: Copy and Paste Values from Virtis | J48: =SUM('Redeck Deflections'!$K$11:$O$11) -> 0 | K48: =IF('Redeck Deflections'!$P$11<0,MROUND(ABS('Redeck Deflections'!$P$11),0.125),MROUND('Redeck Deflections'!$P$11,0.125)*-1) -> 0 | L48: 1 | N48: 1 | O48: 0 | P48: 0 | Q48: Copy and Paste Values from Virtis | V48: =SUM('Redeck Deflections'!$W$11:$AA$11) -> 0 | W48: =IF('Redeck Deflections'!$AB$11<0,MROUND(ABS('Redeck Deflections'!$AB$11),0.125),MROUND('Redeck Deflections'!$AB$11,0.125)*-1) -> 0 | X48: 1
B49: 1.1 | C49: ='Redeck Deflections'!$D$6*0.1 -> 11 | D49: =Reference!$C$349 -> 11 | J49: =SUM('Redeck Deflections'!$K$12:$O$12) -> -0.1781 | K49: =IF('Redeck Deflections'!$P$12<0,MROUND(ABS('Redeck Deflections'!$P$12),0.125),MROUND('Redeck Deflections'!$P$12,0.125)*-1) -> 0.125 | L49: 1.1 | N49: 1.1 | O49: ='Redeck Deflections'!$D$6*0.1 -> 11 | P49: =Reference!$C$349 -> 11 | V49: =SUM('Redeck Deflections'!$W$12:$AA$12) -> -0.1781 | W49: =IF('Redeck Deflections'!$AB$12<0,MROUND(ABS('Redeck Deflections'!$AB$12),0.125),MROUND('Redeck Deflections'!$AB$12,0.125)*-1) -> 0.125 | X49: 1.1
B50: 1.2 | C50: ='Redeck Deflections'!$D$6*0.2 -> 22 | D50: =Reference!$D$349+Reference!$D$349 -> 22 | J50: =SUM('Redeck Deflections'!$K$13:$O$13) -> -0.3256 | K50: =IF('Redeck Deflections'!$P$13<0,MROUND(ABS('Redeck Deflections'!$P$13),0.125),MROUND('Redeck Deflections'!$P$13,0.125)*-1) -> 0.375 | L50: 1.2 | N50: 1.2 | O50: ='Redeck Deflections'!$D$6*0.2 -> 22 | P50: =Reference!$D$349+Reference!$D$349 -> 22 | V50: =SUM('Redeck Deflections'!$W$13:$AA$13) -> -0.3256 | W50: =IF('Redeck Deflections'!$AB$13<0,MROUND(ABS('Redeck Deflections'!$AB$13),0.125),MROUND('Redeck Deflections'!$AB$13,0.125)*-1) -> 0.375 | X50: 1.2
B51: 1.3 | C51: ='Redeck Deflections'!$D$6*0.3 -> 33 | D51: =Reference!$D$350+Reference!$D$349 -> 33 | J51: =SUM('Redeck Deflections'!$K$14:$O$14) -> -0.4211 | K51: =IF('Redeck Deflections'!$P$14<0,MROUND(ABS('Redeck Deflections'!$P$14),0.125),MROUND('Redeck Deflections'!$P$14,0.125)*-1) -> 0.375 | L51: 1.3 | N51: 1.3 | O51: ='Redeck Deflections'!$D$6*0.3 -> 33 | P51: =Reference!$D$350+Reference!$D$349 -> 33 | V51: =SUM('Redeck Deflections'!$W$14:$AA$14) -> -0.4211 | W51: =IF('Redeck Deflections'!$AB$14<0,MROUND(ABS('Redeck Deflections'!$AB$14),0.125),MROUND('Redeck Deflections'!$AB$14,0.125)*-1) -> 0.375 | X51: 1.3
B52: 1.4 | C52: ='Redeck Deflections'!$D$6*0.4 -> 44 | D52: =Reference!$D$351+Reference!$D$349 -> 44 | J52: =SUM('Redeck Deflections'!$K$15:$O$15) -> -0.4537 | K52: =IF('Redeck Deflections'!$P$15<0,MROUND(ABS('Redeck Deflections'!$P$15),0.125),MROUND('Redeck Deflections'!$P$15,0.125)*-1) -> 0.5 | L52: 1.4 | N52: 1.4 | O52: ='Redeck Deflections'!$D$6*0.4 -> 44 | P52: =Reference!$D$351+Reference!$D$349 -> 44 | V52: =SUM('Redeck Deflections'!$W$15:$AA$15) -> -0.4537 | W52: =IF('Redeck Deflections'!$AB$15<0,MROUND(ABS('Redeck Deflections'!$AB$15),0.125),MROUND('Redeck Deflections'!$AB$15,0.125)*-1) -> 0.5 | X52: 1.4
B53: 1.5 | C53: ='Redeck Deflections'!$D$6*0.5 -> 55 | D53: =Reference!$D$352+Reference!$D$349 -> 55 | J53: =SUM('Redeck Deflections'!$K$16:$O$16) -> -0.4234 | K53: =IF('Redeck Deflections'!$P$16<0,MROUND(ABS('Redeck Deflections'!$P$16),0.125),MROUND('Redeck Deflections'!$P$16,0.125)*-1) -> 0.375 | L53: 1.5 | N53: 1.5 | O53: ='Redeck Deflections'!$D$6*0.5 -> 55 | P53: =Reference!$D$352+Reference!$D$349 -> 55 | V53: =SUM('Redeck Deflections'!$W$16:$AA$16) -> -0.4234 | W53: =IF('Redeck Deflections'!$AB$16<0,MROUND(ABS('Redeck Deflections'!$AB$16),0.125),MROUND('Redeck Deflections'!$AB$16,0.125)*-1) -> 0.375 | X53: 1.5
B54: 1.6 | C54: ='Redeck Deflections'!$D$6*0.6 -> 66 | D54: =Reference!$D$353+Reference!$D$349 -> 66 | J54: =SUM('Redeck Deflections'!$K$17:$O$17) -> -0.3401 | K54: =IF('Redeck Deflections'!$P$17<0,MROUND(ABS('Redeck Deflections'!$P$17),0.125),MROUND('Redeck Deflections'!$P$17,0.125)*-1) -> 0.375 | L54: 1.6 | N54: 1.6 | O54: ='Redeck Deflections'!$D$6*0.6 -> 66 | P54: =Reference!$D$353+Reference!$D$349 -> 66 | V54: =SUM('Redeck Deflections'!$W$17:$AA$17) -> -0.3401 | W54: =IF('Redeck Deflections'!$AB$17<0,MROUND(ABS('Redeck Deflections'!$AB$17),0.125),MROUND('Redeck Deflections'!$AB$17,0.125)*-1) -> 0.375 | X54: 1.6
B55: 1.7 | C55: ='Redeck Deflections'!$D$6*0.7 -> 77 | D55: =Reference!$D$354+Reference!$D$349 -> 77 | J55: =SUM('Redeck Deflections'!$K$18:$O$18) -> -0.2244 | K55: =IF('Redeck Deflections'!$P$18<0,MROUND(ABS('Redeck Deflections'!$P$18),0.125),MROUND('Redeck Deflections'!$P$18,0.125)*-1) -> 0.25 | L55: 1.7 | N55: 1.7 | O55: ='Redeck Deflections'!$D$6*0.7 -> 77 | P55: =Reference!$D$354+Reference!$D$349 -> 77 | V55: =SUM('Redeck Deflections'!$W$18:$AA$18) -> -0.2244 | W55: =IF('Redeck Deflections'!$AB$18<0,MROUND(ABS('Redeck Deflections'!$AB$18),0.125),MROUND('Redeck Deflections'!$AB$18,0.125)*-1) -> 0.25 | X55: 1.7
B56: 1.8 | C56: ='Redeck Deflections'!$D$6*0.8 -> 88 | D56: =Reference!$D$355+Reference!$D$349 -> 88 | J56: =SUM('Redeck Deflections'!$K$19:$O$19) -> -0.1076 | K56: =IF('Redeck Deflections'!$P$19<0,MROUND(ABS('Redeck Deflections'!$P$19),0.125),MROUND('Redeck Deflections'!$P$19,0.125)*-1) -> 0.125 | L56: 1.8 | N56: 1.8 | O56: ='Redeck Deflections'!$D$6*0.8 -> 88 | P56: =Reference!$D$355+Reference!$D$349 -> 88 | V56: =SUM('Redeck Deflections'!$W$19:$AA$19) -> -0.1076 | W56: =IF('Redeck Deflections'!$AB$19<0,MROUND(ABS('Redeck Deflections'!$AB$19),0.125),MROUND('Redeck Deflections'!$AB$19,0.125)*-1) -> 0.125 | X56: 1.8
B57: 1.9 | C57: ='Redeck Deflections'!$D$6*0.9 -> 99 | D57: =Reference!$D$356+Reference!$D$349 -> 99 | J57: =SUM('Redeck Deflections'!$K$20:$O$20) -> -0.0257 | K57: =IF('Redeck Deflections'!$P$20<0,MROUND(ABS('Redeck Deflections'!$P$20),0.125),MROUND('Redeck Deflections'!$P$20,0.125)*-1) -> 0 | L57: 1.9 | N57: 1.9 | O57: ='Redeck Deflections'!$D$6*0.9 -> 99 | P57: =Reference!$D$356+Reference!$D$349 -> 99 | V57: =SUM('Redeck Deflections'!$W$20:$AA$20) -> -0.0257 | W57: =IF('Redeck Deflections'!$AB$20<0,MROUND(ABS('Redeck Deflections'!$AB$20),0.125),MROUND('Redeck Deflections'!$AB$20,0.125)*-1) -> 0 | X57: 1.9
B58: 2 | C58: ='Redeck Deflections'!$D$6*1 -> 110 | D58: =Reference!$D$357+Reference!$D$349 -> 110 | J58: =SUM('Redeck Deflections'!$K$21:$O$21) -> 0 | K58: =IF('Redeck Deflections'!$P$21<0,MROUND(ABS('Redeck Deflections'!$P$21),0.125),MROUND('Redeck Deflections'!$P$21,0.125)*-1) -> 0 | L58: 2 | N58: 2 | O58: ='Redeck Deflections'!$D$6*1 -> 110 | P58: =Reference!$D$357+Reference!$D$349 -> 110 | V58: =SUM('Redeck Deflections'!$W$21:$AA$21) -> 0 | W58: =IF('Redeck Deflections'!$AB$21<0,MROUND(ABS('Redeck Deflections'!$AB$21),0.125),MROUND('Redeck Deflections'!$AB$21,0.125)*-1) -> 0 | X58: 2
B59: 2 | C59: 0 | D59: =Reference!$D$358 -> 110 | J59: =SUM('Redeck Deflections'!$K$22:$O$22) -> 0 | K59: =IF('Redeck Deflections'!$P$22<0,MROUND(ABS('Redeck Deflections'!$P$22),0.125),MROUND('Redeck Deflections'!$P$22,0.125)*-1) -> 0 | L59: 2 | N59: 2 | O59: 0 | P59: =Reference!$D$358 -> 110 | V59: =SUM('Redeck Deflections'!$W$22:$AA$22) -> 0 | W59: =IF('Redeck Deflections'!$AB$22<0,MROUND(ABS('Redeck Deflections'!$AB$22),0.125),MROUND('Redeck Deflections'!$AB$22,0.125)*-1) -> 0 | X59: 2
B60: 2.1 | C60: ='Redeck Deflections'!$E$6*0.1 -> 12 | D60: =Reference!$D$359+Reference!$C$360 -> 122 | J60: =SUM('Redeck Deflections'!$K$23:$O$23) -> -0.0806 | K60: =IF('Redeck Deflections'!$P$23<0,MROUND(ABS('Redeck Deflections'!$P$23),0.125),MROUND('Redeck Deflections'!$P$23,0.125)*-1) -> 0.125 | L60: 2.1 | N60: 2.1 | O60: ='Redeck Deflections'!$E$6*0.1 -> 12 | P60: =Reference!$D$359+Reference!$C$360 -> 122 | V60: =SUM('Redeck Deflections'!$W$23:$AA$23) -> -0.0806 | W60: =IF('Redeck Deflections'!$AB$23<0,MROUND(ABS('Redeck Deflections'!$AB$23),0.125),MROUND('Redeck Deflections'!$AB$23,0.125)*-1) -> 0.125 | X60: 2.1
B61: 2.2 | C61: ='Redeck Deflections'!$E$6*0.2 -> 24 | D61: =Reference!$C$361+Reference!$D$59 -> 134 | J61: =SUM('Redeck Deflections'!$K$24:$O$24) -> -0.2448 | K61: =IF('Redeck Deflections'!$P$24<0,MROUND(ABS('Redeck Deflections'!$P$24),0.125),MROUND('Redeck Deflections'!$P$24,0.125)*-1) -> 0.25 | L61: 2.2 | N61: 2.2 | O61: ='Redeck Deflections'!$E$6*0.2 -> 24 | P61: =Reference!$C$361+Reference!$D$59 -> 134 | V61: =SUM('Redeck Deflections'!$W$24:$AA$24) -> -0.2448 | W61: =IF('Redeck Deflections'!$AB$24<0,MROUND(ABS('Redeck Deflections'!$AB$24),0.125),MROUND('Redeck Deflections'!$AB$24,0.125)*-1) -> 0.25 | X61: 2.2
B62: 2.3 | C62: ='Redeck Deflections'!$E$6*0.3 -> 36 | D62: =Reference!$C$362+Reference!$D$359 -> 146 | J62: =SUM('Redeck Deflections'!$K$25:$O$25) -> -0.4339 | K62: =IF('Redeck Deflections'!$P$25<0,MROUND(ABS('Redeck Deflections'!$P$25),0.125),MROUND('Redeck Deflections'!$P$25,0.125)*-1) -> 0.375 | L62: 2.3 | N62: 2.3 | O62: ='Redeck Deflections'!$E$6*0.3 -> 36 | P62: =Reference!$C$362+Reference!$D$359 -> 146 | V62: =SUM('Redeck Deflections'!$W$25:$AA$25) -> -0.4339 | W62: =IF('Redeck Deflections'!$AB$25<0,MROUND(ABS('Redeck Deflections'!$AB$25),0.125),MROUND('Redeck Deflections'!$AB$25,0.125)*-1) -> 0.375 | X62: 2.3
B63: 2.4 | C63: ='Redeck Deflections'!$E$6*0.4 -> 48 | D63: =Reference!$C$363+Reference!$D$359 -> 158 | J63: =SUM('Redeck Deflections'!$K$26:$O$26) -> -0.5767 | K63: =IF('Redeck Deflections'!$P$26<0,MROUND(ABS('Redeck Deflections'!$P$26),0.125),MROUND('Redeck Deflections'!$P$26,0.125)*-1) -> 0.625 | L63: 2.4 | N63: 2.4 | O63: ='Redeck Deflections'!$E$6*0.4 -> 48 | P63: =Reference!$C$363+Reference!$D$359 -> 158 | V63: =SUM('Redeck Deflections'!$W$26:$AA$26) -> -0.5767 | W63: =IF('Redeck Deflections'!$AB$26<0,MROUND(ABS('Redeck Deflections'!$AB$26),0.125),MROUND('Redeck Deflections'!$AB$26,0.125)*-1) -> 0.625 | X63: 2.4
B64: 2.5 | C64: ='Redeck Deflections'!$E$6*0.5 -> 60 | D64: =Reference!$C$364+Reference!$D$359 -> 170 | J64: =SUM('Redeck Deflections'!$K$27:$O$27) -> -0.6291 | K64: =IF('Redeck Deflections'!$P$27<0,MROUND(ABS('Redeck Deflections'!$P$27),0.125),MROUND('Redeck Deflections'!$P$27,0.125)*-1) -> 0.625 | L64: 2.5 | N64: 2.5 | O64: ='Redeck Deflections'!$E$6*0.5 -> 60 | P64: =Reference!$C$364+Reference!$D$359 -> 170 | V64: =SUM('Redeck Deflections'!$W$27:$AA$27) -> -0.6291 | W64: =IF('Redeck Deflections'!$AB$27<0,MROUND(ABS('Redeck Deflections'!$AB$27),0.125),MROUND('Redeck Deflections'!$AB$27,0.125)*-1) -> 0.625 | X64: 2.5
B65: 2.6 | C65: ='Redeck Deflections'!$E$6*0.6 -> 72 | D65: =Reference!$C$365+Reference!$D$359 -> 182 | J65: =SUM('Redeck Deflections'!$K$28:$O$28) -> -0.5767 | K65: =IF('Redeck Deflections'!$P$28<0,MROUND(ABS('Redeck Deflections'!$P$28),0.125),MROUND('Redeck Deflections'!$P$28,0.125)*-1) -> 0.625 | L65: 2.6 | N65: 2.6 | O65: ='Redeck Deflections'!$E$6*0.6 -> 72 | P65: =Reference!$C$365+Reference!$D$359 -> 182 | V65: =SUM('Redeck Deflections'!$W$28:$AA$28) -> -0.5767 | W65: =IF('Redeck Deflections'!$AB$28<0,MROUND(ABS('Redeck Deflections'!$AB$28),0.125),MROUND('Redeck Deflections'!$AB$28,0.125)*-1) -> 0.625 | X65: 2.6
B66: 2.7 | C66: ='Redeck Deflections'!$E$6*0.7 -> 84 | D66: =Reference!$C$366+Reference!$D$359 -> 194 | J66: =SUM('Redeck Deflections'!$K$29:$O$29) -> -0.4339 | K66: =IF('Redeck Deflections'!$P$29<0,MROUND(ABS('Redeck Deflections'!$P$29),0.125),MROUND('Redeck Deflections'!$P$29,0.125)*-1) -> 0.375 | L66: 2.7 | N66: 2.7 | O66: ='Redeck Deflections'!$E$6*0.7 -> 84 | P66: =Reference!$C$366+Reference!$D$359 -> 194 | V66: =SUM('Redeck Deflections'!$W$29:$AA$29) -> -0.4339 | W66: =IF('Redeck Deflections'!$AB$29<0,MROUND(ABS('Redeck Deflections'!$AB$29),0.125),MROUND('Redeck Deflections'!$AB$29,0.125)*-1) -> 0.375 | X66: 2.7
B67: 2.8 | C67: ='Redeck Deflections'!$E$6*0.8 -> 96 | D67: =Reference!$C$367+Reference!$D$359 -> 206 | J67: =SUM('Redeck Deflections'!$K$30:$O$30) -> -0.2448 | K67: =IF('Redeck Deflections'!$P$30<0,MROUND(ABS('Redeck Deflections'!$P$30),0.125),MROUND('Redeck Deflections'!$P$30,0.125)*-1) -> 0.25 | L67: 2.8 | N67: 2.8 | O67: ='Redeck Deflections'!$E$6*0.8 -> 96 | P67: =Reference!$C$367+Reference!$D$359 -> 206 | V67: =SUM('Redeck Deflections'!$W$30:$AA$30) -> -0.2448 | W67: =IF('Redeck Deflections'!$AB$30<0,MROUND(ABS('Redeck Deflections'!$AB$30),0.125),MROUND('Redeck Deflections'!$AB$30,0.125)*-1) -> 0.25 | X67: 2.8
B68: 2.9 | C68: ='Redeck Deflections'!$E$6*0.9 -> 108 | D68: =Reference!$C$368+Reference!$D$359 -> 218 | J68: =SUM('Redeck Deflections'!$K$31:$O$31) -> -0.0806 | K68: =IF('Redeck Deflections'!$P$31<0,MROUND(ABS('Redeck Deflections'!$P$31),0.125),MROUND('Redeck Deflections'!$P$31,0.125)*-1) -> 0.125 | L68: 2.9 | N68: 2.9 | O68: ='Redeck Deflections'!$E$6*0.9 -> 108 | P68: =Reference!$C$368+Reference!$D$359 -> 218 | V68: =SUM('Redeck Deflections'!$W$31:$AA$31) -> -0.0806 | W68: =IF('Redeck Deflections'!$AB$31<0,MROUND(ABS('Redeck Deflections'!$AB$31),0.125),MROUND('Redeck Deflections'!$AB$31,0.125)*-1) -> 0.125 | X68: 2.9
B69: 3 | C69: ='Redeck Deflections'!$E$6*1 -> 120 | D69: =Reference!$C$369+Reference!$D$359 -> 230 | J69: =SUM('Redeck Deflections'!$K$32:$O$32) -> 0 | K69: =IF('Redeck Deflections'!$P$32<0,MROUND(ABS('Redeck Deflections'!$P$32),0.125),MROUND('Redeck Deflections'!$P$32,0.125)*-1) -> 0 | L69: 3 | N69: 3 | O69: ='Redeck Deflections'!$E$6*1 -> 120 | P69: =Reference!$C$369+Reference!$D$359 -> 230 | V69: =SUM('Redeck Deflections'!$W$32:$AA$32) -> 0 | W69: =IF('Redeck Deflections'!$AB$32<0,MROUND(ABS('Redeck Deflections'!$AB$32),0.125),MROUND('Redeck Deflections'!$AB$32,0.125)*-1) -> 0 | X69: 3
B70: 3 | C70: 0 | D70: =Reference!$D$369 -> 230 | J70: =SUM('Redeck Deflections'!$K$33:$O$33) -> 0 | K70: =IF('Redeck Deflections'!$P$33<0,MROUND(ABS('Redeck Deflections'!$P$33),0.125),MROUND('Redeck Deflections'!$P$33,0.125)*-1) -> 0 | L70: 3 | N70: 3 | O70: 0 | P70: =Reference!$D$369 -> 230 | V70: =SUM('Redeck Deflections'!$W$33:$AA$33) -> 0 | W70: =IF('Redeck Deflections'!$AB$33<0,MROUND(ABS('Redeck Deflections'!$AB$33),0.125),MROUND('Redeck Deflections'!$AB$33,0.125)*-1) -> 0 | X70: 3
B71: 3.1 | C71: ='Redeck Deflections'!$F$6*0.1 -> 11 | D71: =Reference!$D$370+Reference!$C$371 -> 241 | J71: =SUM('Redeck Deflections'!$K$34:$O$34) -> -0.0257 | K71: =IF('Redeck Deflections'!$P$34<0,MROUND(ABS('Redeck Deflections'!$P$34),0.125),MROUND('Redeck Deflections'!$P$34,0.125)*-1) -> 0 | L71: 3.1 | N71: 3.1 | O71: ='Redeck Deflections'!$F$6*0.1 -> 11 | P71: =Reference!$D$370+Reference!$C$371 -> 241 | V71: =SUM('Redeck Deflections'!$W$34:$AA$34) -> -0.0257 | W71: =IF('Redeck Deflections'!$AB$34<0,MROUND(ABS('Redeck Deflections'!$AB$34),0.125),MROUND('Redeck Deflections'!$AB$34,0.125)*-1) -> 0 | X71: 3.1
B72: 3.2 | C72: ='Redeck Deflections'!$F$6*0.2 -> 22 | D72: =Reference!$C$372+Reference!$D$370 -> 252 | J72: =SUM('Redeck Deflections'!$K$35:$O$35) -> -0.1076 | K72: =IF('Redeck Deflections'!$P$35<0,MROUND(ABS('Redeck Deflections'!$P$35),0.125),MROUND('Redeck Deflections'!$P$35,0.125)*-1) -> 0.125 | L72: 3.2 | N72: 3.2 | O72: ='Redeck Deflections'!$F$6*0.2 -> 22 | P72: =Reference!$C$372+Reference!$D$370 -> 252 | V72: =SUM('Redeck Deflections'!$W$35:$AA$35) -> -0.1076 | W72: =IF('Redeck Deflections'!$AB$35<0,MROUND(ABS('Redeck Deflections'!$AB$35),0.125),MROUND('Redeck Deflections'!$AB$35,0.125)*-1) -> 0.125 | X72: 3.2
B73: 3.3 | C73: ='Redeck Deflections'!$F$6*0.3 -> 33 | D73: =Reference!$C$373+Reference!$D$370 -> 263 | J73: =SUM('Redeck Deflections'!$K$36:$O$36) -> -0.2244 | K73: =IF('Redeck Deflections'!$P$36<0,MROUND(ABS('Redeck Deflections'!$P$36),0.125),MROUND('Redeck Deflections'!$P$36,0.125)*-1) -> 0.25 | L73: 3.3 | N73: 3.3 | O73: ='Redeck Deflections'!$F$6*0.3 -> 33 | P73: =Reference!$C$373+Reference!$D$370 -> 263 | V73: =SUM('Redeck Deflections'!$W$36:$AA$36) -> -0.2244 | W73: =IF('Redeck Deflections'!$AB$36<0,MROUND(ABS('Redeck Deflections'!$AB$36),0.125),MROUND('Redeck Deflections'!$AB$36,0.125)*-1) -> 0.25 | X73: 3.3
B74: 3.4 | C74: ='Redeck Deflections'!$F$6*0.4 -> 44 | D74: =Reference!$C$374+Reference!$D$370 -> 274 | J74: =SUM('Redeck Deflections'!$K$37:$O$37) -> -0.3401 | K74: =IF('Redeck Deflections'!$P$37<0,MROUND(ABS('Redeck Deflections'!$P$37),0.125),MROUND('Redeck Deflections'!$P$37,0.125)*-1) -> 0.375 | L74: 3.4 | N74: 3.4 | O74: ='Redeck Deflections'!$F$6*0.4 -> 44 | P74: =Reference!$C$374+Reference!$D$370 -> 274 | V74: =SUM('Redeck Deflections'!$W$37:$AA$37) -> -0.3401 | W74: =IF('Redeck Deflections'!$AB$37<0,MROUND(ABS('Redeck Deflections'!$AB$37),0.125),MROUND('Redeck Deflections'!$AB$37,0.125)*-1) -> 0.375 | X74: 3.4
B75: 3.5 | C75: ='Redeck Deflections'!$F$6*0.5 -> 55 | D75: =Reference!$C$375+Reference!$D$370 -> 285 | J75: =SUM('Redeck Deflections'!$K$38:$O$38) -> -0.4234 | K75: =IF('Redeck Deflections'!$P$38<0,MROUND(ABS('Redeck Deflections'!$P$38),0.125),MROUND('Redeck Deflections'!$P$38,0.125)*-1) -> 0.375 | L75: 3.5 | N75: 3.5 | O75: ='Redeck Deflections'!$F$6*0.5 -> 55 | P75: =Reference!$C$375+Reference!$D$370 -> 285 | V75: =SUM('Redeck Deflections'!$W$38:$AA$38) -> -0.4234 | W75: =IF('Redeck Deflections'!$AB$38<0,MROUND(ABS('Redeck Deflections'!$AB$38),0.125),MROUND('Redeck Deflections'!$AB$38,0.125)*-1) -> 0.375 | X75: 3.5
B76: 3.6 | C76: ='Redeck Deflections'!$F$6*0.6 -> 66 | D76: =Reference!$C$376+Reference!$D$370 -> 296 | J76: =SUM('Redeck Deflections'!$K$39:$O$39) -> -0.4537 | K76: =IF('Redeck Deflections'!$P$39<0,MROUND(ABS('Redeck Deflections'!$P$39),0.125),MROUND('Redeck Deflections'!$P$39,0.125)*-1) -> 0.5 | L76: 3.6 | N76: 3.6 | O76: ='Redeck Deflections'!$F$6*0.6 -> 66 | P76: =Reference!$C$376+Reference!$D$370 -> 296 | V76: =SUM('Redeck Deflections'!$W$39:$AA$39) -> -0.4537 | W76: =IF('Redeck Deflections'!$AB$39<0,MROUND(ABS('Redeck Deflections'!$AB$39),0.125),MROUND('Redeck Deflections'!$AB$39,0.125)*-1) -> 0.5 | X76: 3.6
B77: 3.7 | C77: ='Redeck Deflections'!$F$6*0.7 -> 77 | D77: =Reference!$C$377+Reference!$D$370 -> 307 | J77: =SUM('Redeck Deflections'!$K$40:$O$40) -> -0.4211 | K77: =IF('Redeck Deflections'!$P$40<0,MROUND(ABS('Redeck Deflections'!$P$40),0.125),MROUND('Redeck Deflections'!$P$40,0.125)*-1) -> 0.375 | L77: 3.7 | N77: 3.7 | O77: ='Redeck Deflections'!$F$6*0.7 -> 77 | P77: =Reference!$C$377+Reference!$D$370 -> 307 | V77: =SUM('Redeck Deflections'!$W$40:$AA$40) -> -0.4211 | W77: =IF('Redeck Deflections'!$AB$40<0,MROUND(ABS('Redeck Deflections'!$AB$40),0.125),MROUND('Redeck Deflections'!$AB$40,0.125)*-1) -> 0.375 | X77: 3.7
B78: 3.8 | C78: ='Redeck Deflections'!$F$6*0.8 -> 88 | D78: =Reference!$C$378+Reference!$D$370 -> 318 | J78: =SUM('Redeck Deflections'!$K$41:$O$41) -> -0.3256 | K78: =IF('Redeck Deflections'!$P$41<0,MROUND(ABS('Redeck Deflections'!$P$41),0.125),MROUND('Redeck Deflections'!$P$41,0.125)*-1) -> 0.375 | L78: 3.8 | N78: 3.8 | O78: ='Redeck Deflections'!$F$6*0.8 -> 88 | P78: =Reference!$C$378+Reference!$D$370 -> 318 | V78: =SUM('Redeck Deflections'!$W$41:$AA$41) -> -0.3256 | W78: =IF('Redeck Deflections'!$AB$41<0,MROUND(ABS('Redeck Deflections'!$AB$41),0.125),MROUND('Redeck Deflections'!$AB$41,0.125)*-1) -> 0.375 | X78: 3.8
B79: 3.9 | C79: ='Redeck Deflections'!$F$6*0.9 -> 99 | D79: =Reference!$C$379+Reference!$D$370 -> 329 | J79: =SUM('Redeck Deflections'!$K$42:$O$42) -> -0.1781 | K79: =IF('Redeck Deflections'!$P$42<0,MROUND(ABS('Redeck Deflections'!$P$42),0.125),MROUND('Redeck Deflections'!$P$42,0.125)*-1) -> 0.125 | L79: 3.9 | N79: 3.9 | O79: ='Redeck Deflections'!$F$6*0.9 -> 99 | P79: =Reference!$C$379+Reference!$D$370 -> 329 | V79: =SUM('Redeck Deflections'!$W$42:$AA$42) -> -0.1781 | W79: =IF('Redeck Deflections'!$AB$42<0,MROUND(ABS('Redeck Deflections'!$AB$42),0.125),MROUND('Redeck Deflections'!$AB$42,0.125)*-1) -> 0.125 | X79: 3.9
B80: 4 | C80: ='Redeck Deflections'!$F$6*1 -> 110 | D80: =Reference!$C$380+Reference!$D$370 -> 340 | J80: =SUM('Redeck Deflections'!$K$43:$O$43) -> 0 | K80: =IF('Redeck Deflections'!$P$43<0,MROUND(ABS('Redeck Deflections'!$P$43),0.125),MROUND('Redeck Deflections'!$P$43,0.125)*-1) -> 0 | L80: 4 | N80: 4 | O80: ='Redeck Deflections'!$F$6*1 -> 110 | P80: =Reference!$C$380+Reference!$D$370 -> 340 | V80: =SUM('Redeck Deflections'!$W$43:$AA$43) -> 0 | W80: =IF('Redeck Deflections'!$AB$43<0,MROUND(ABS('Redeck Deflections'!$AB$43),0.125),MROUND('Redeck Deflections'!$AB$43,0.125)*-1) -> 0 | X80: 4
A83: 4 Span | B83: EXTERIOR GIRDERS | N83: INTERIOR GIRDERS
E84: Girder | F84: Intermediate diaphragms | G84: Concrete | I84: Barrier | J84: Total DL Deflection | Q84: Girder | R84: Intermediate diaphragms | S84: Concrete | U84: Barrier | V84: Total DL Deflection
B85: Tenth point | C85: Location | D85: Distance | E85: YDL-s1- Load Case 1 - Self Load (Stage1:D,DC) | F85: YDL-s1- Load Case 2 - Add'l Self Load (In Force/Length) (Stage 1:D,DC) | G85: YDL-s1- Load Case 3 - Haunch Load (Stage1:D,DC) | H85: YDL-s1- Load Case 4 - Concrete Deck Load (Stage1:D,DC) | I85: YDL-s2- Load Case 1 - Parapet Loads(DL2 - Barriers & Curbs: Stage 2:D,D~ | J85: Decimal Inches | K85: Nearest 1/8" | L85: Tenth point | N85: Tenth point | O85: Location | P85: Distance | Q85: YDL-s1- Load Case 1 - Self Load (Stage1:D,DC) | R85: YDL-s1- Load Case 2 - Add'l Self Load (In Force/Length) (Stage 1:D,DC) | S85: YDL-s1- Load Case 3 - Haunch Load (Stage1:D,DC) | T85: YDL-s1- Load Case 4 - Concrete Deck Load (Stage1:D,DC) | U85: YDL-s2- Load Case 1 - Parapet Loads(DL2 - Barriers & Curbs: Stage 2:D,D~ | V85: Decimal Inches | W85: Nearest 1/8" | X85: Tenth point
B86: 1 | C86: 0 | D86: 0 | E86: Copy and Paste Values from Virtis | J86: =SUM('Redeck Deflections'!$K$11:$O$11) -> 0 | K86: =IF('Redeck Deflections'!$P$11<0,MROUND(ABS('Redeck Deflections'!$P$11),0.125),MROUND('Redeck Deflections'!$P$11,0.125)*-1) -> 0 | L86: 1 | N86: 1 | O86: 0 | P86: 0 | Q86: Copy and Paste Values from Virtis | V86: =SUM('Redeck Deflections'!$W$11:$AA$11) -> 0 | W86: =IF('Redeck Deflections'!$AB$11<0,MROUND(ABS('Redeck Deflections'!$AB$11),0.125),MROUND('Redeck Deflections'!$AB$11,0.125)*-1) -> 0 | X86: 1
B87: 1.1 | C87: ='Redeck Deflections'!$D$6*0.1 -> 11 | D87: =Reference!$C$349 -> 11 | J87: =SUM('Redeck Deflections'!$K$12:$O$12) -> -0.1781 | K87: =IF('Redeck Deflections'!$P$12<0,MROUND(ABS('Redeck Deflections'!$P$12),0.125),MROUND('Redeck Deflections'!$P$12,0.125)*-1) -> 0.125 | L87: 1.1 | N87: 1.1 | O87: ='Redeck Deflections'!$D$6*0.1 -> 11 | P87: =Reference!$C$349 -> 11 | V87: =SUM('Redeck Deflections'!$W$12:$AA$12) -> -0.1781 | W87: =IF('Redeck Deflections'!$AB$12<0,MROUND(ABS('Redeck Deflections'!$AB$12),0.125),MROUND('Redeck Deflections'!$AB$12,0.125)*-1) -> 0.125 | X87: 1.1
B88: 1.2 | C88: ='Redeck Deflections'!$D$6*0.2 -> 22 | D88: =Reference!$D$349+Reference!$D$349 -> 22 | J88: =SUM('Redeck Deflections'!$K$13:$O$13) -> -0.3256 | K88: =IF('Redeck Deflections'!$P$13<0,MROUND(ABS('Redeck Deflections'!$P$13),0.125),MROUND('Redeck Deflections'!$P$13,0.125)*-1) -> 0.375 | L88: 1.2 | N88: 1.2 | O88: ='Redeck Deflections'!$D$6*0.2 -> 22 | P88: =Reference!$D$349+Reference!$D$349 -> 22 | V88: =SUM('Redeck Deflections'!$W$13:$AA$13) -> -0.3256 | W88: =IF('Redeck Deflections'!$AB$13<0,MROUND(ABS('Redeck Deflections'!$AB$13),0.125),MROUND('Redeck Deflections'!$AB$13,0.125)*-1) -> 0.375 | X88: 1.2
B89: 1.3 | C89: ='Redeck Deflections'!$D$6*0.3 -> 33 | D89: =Reference!$D$350+Reference!$D$349 -> 33 | J89: =SUM('Redeck Deflections'!$K$14:$O$14) -> -0.4211 | K89: =IF('Redeck Deflections'!$P$14<0,MROUND(ABS('Redeck Deflections'!$P$14),0.125),MROUND('Redeck Deflections'!$P$14,0.125)*-1) -> 0.375 | L89: 1.3 | N89: 1.3 | O89: ='Redeck Deflections'!$D$6*0.3 -> 33 | P89: =Reference!$D$350+Reference!$D$349 -> 33 | V89: =SUM('Redeck Deflections'!$W$14:$AA$14) -> -0.4211 | W89: =IF('Redeck Deflections'!$AB$14<0,MROUND(ABS('Redeck Deflections'!$AB$14),0.125),MROUND('Redeck Deflections'!$AB$14,0.125)*-1) -> 0.375 | X89: 1.3
B90: 1.4 | C90: ='Redeck Deflections'!$D$6*0.4 -> 44 | D90: =Reference!$D$351+Reference!$D$349 -> 44 | J90: =SUM('Redeck Deflections'!$K$15:$O$15) -> -0.4537 | K90: =IF('Redeck Deflections'!$P$15<0,MROUND(ABS('Redeck Deflections'!$P$15),0.125),MROUND('Redeck Deflections'!$P$15,0.125)*-1) -> 0.5 | L90: 1.4 | N90: 1.4 | O90: ='Redeck Deflections'!$D$6*0.4 -> 44 | P90: =Reference!$D$351+Reference!$D$349 -> 44 | V90: =SUM('Redeck Deflections'!$W$15:$AA$15) -> -0.4537 | W90: =IF('Redeck Deflections'!$AB$15<0,MROUND(ABS('Redeck Deflections'!$AB$15),0.125),MROUND('Redeck Deflections'!$AB$15,0.125)*-1) -> 0.5 | X90: 1.4
B91: 1.5 | C91: ='Redeck Deflections'!$D$6*0.5 -> 55 | D91: =Reference!$D$352+Reference!$D$349 -> 55 | J91: =SUM('Redeck Deflections'!$K$16:$O$16) -> -0.4234 | K91: =IF('Redeck Deflections'!$P$16<0,MROUND(ABS('Redeck Deflections'!$P$16),0.125),MROUND('Redeck Deflections'!$P$16,0.125)*-1) -> 0.375 | L91: 1.5 | N91: 1.5 | O91: ='Redeck Deflections'!$D$6*0.5 -> 55 | P91: =Reference!$D$352+Reference!$D$349 -> 55 | V91: =SUM('Redeck Deflections'!$W$16:$AA$16) -> -0.4234 | W91: =IF('Redeck Deflections'!$AB$16<0,MROUND(ABS('Redeck Deflections'!$AB$16),0.125),MROUND('Redeck Deflections'!$AB$16,0.125)*-1) -> 0.375 | X91: 1.5
B92: 1.6 | C92: ='Redeck Deflections'!$D$6*0.6 -> 66 | D92: =Reference!$D$353+Reference!$D$349 -> 66 | J92: =SUM('Redeck Deflections'!$K$17:$O$17) -> -0.3401 | K92: =IF('Redeck Deflections'!$P$17<0,MROUND(ABS('Redeck Deflections'!$P$17),0.125),MROUND('Redeck Deflections'!$P$17,0.125)*-1) -> 0.375 | L92: 1.6 | N92: 1.6 | O92: ='Redeck Deflections'!$D$6*0.6 -> 66 | P92: =Reference!$D$353+Reference!$D$349 -> 66 | V92: =SUM('Redeck Deflections'!$W$17:$AA$17) -> -0.3401 | W92: =IF('Redeck Deflections'!$AB$17<0,MROUND(ABS('Redeck Deflections'!$AB$17),0.125),MROUND('Redeck Deflections'!$AB$17,0.125)*-1) -> 0.375 | X92: 1.6
B93: 1.7 | C93: ='Redeck Deflections'!$D$6*0.7 -> 77 | D93: =Reference!$D$354+Reference!$D$349 -> 77 | J93: =SUM('Redeck Deflections'!$K$18:$O$18) -> -0.2244 | K93: =IF('Redeck Deflections'!$P$18<0,MROUND(ABS('Redeck Deflections'!$P$18),0.125),MROUND('Redeck Deflections'!$P$18,0.125)*-1) -> 0.25 | L93: 1.7 | N93: 1.7 | O93: ='Redeck Deflections'!$D$6*0.7 -> 77 | P93: =Reference!$D$354+Reference!$D$349 -> 77 | V93: =SUM('Redeck Deflections'!$W$18:$AA$18) -> -0.2244 | W93: =IF('Redeck Deflections'!$AB$18<0,MROUND(ABS('Redeck Deflections'!$AB$18),0.125),MROUND('Redeck Deflections'!$AB$18,0.125)*-1) -> 0.25 | X93: 1.7
B94: 1.8 | C94: ='Redeck Deflections'!$D$6*0.8 -> 88 | D94: =Reference!$D$355+Reference!$D$349 -> 88 | J94: =SUM('Redeck Deflections'!$K$19:$O$19) -> -0.1076 | K94: =IF('Redeck Deflections'!$P$19<0,MROUND(ABS('Redeck Deflections'!$P$19),0.125),MROUND('Redeck Deflections'!$P$19,0.125)*-1) -> 0.125 | L94: 1.8 | N94: 1.8 | O94: ='Redeck Deflections'!$D$6*0.8 -> 88 | P94: =Reference!$D$355+Reference!$D$349 -> 88 | V94: =SUM('Redeck Deflections'!$W$19:$AA$19) -> -0.1076 | W94: =IF('Redeck Deflections'!$AB$19<0,MROUND(ABS('Redeck Deflections'!$AB$19),0.125),MROUND('Redeck Deflections'!$AB$19,0.125)*-1) -> 0.125 | X94: 1.8
B95: 1.9 | C95: ='Redeck Deflections'!$D$6*0.9 -> 99 | D95: =Reference!$D$356+Reference!$D$349 -> 99 | J95: =SUM('Redeck Deflections'!$K$20:$O$20) -> -0.0257 | K95: =IF('Redeck Deflections'!$P$20<0,MROUND(ABS('Redeck Deflections'!$P$20),0.125),MROUND('Redeck Deflections'!$P$20,0.125)*-1) -> 0 | L95: 1.9 | N95: 1.9 | O95: ='Redeck Deflections'!$D$6*0.9 -> 99 | P95: =Reference!$D$356+Reference!$D$349 -> 99 | V95: =SUM('Redeck Deflections'!$W$20:$AA$20) -> -0.0257 | W95: =IF('Redeck Deflections'!$AB$20<0,MROUND(ABS('Redeck Deflections'!$AB$20),0.125),MROUND('Redeck Deflections'!$AB$20,0.125)*-1) -> 0 | X95: 1.9
B96: 2 | C96: ='Redeck Deflections'!$D$6*1 -> 110 | D96: =Reference!$D$357+Reference!$D$349 -> 110 | J96: =SUM('Redeck Deflections'!$K$21:$O$21) -> 0 | K96: =IF('Redeck Deflections'!$P$21<0,MROUND(ABS('Redeck Deflections'!$P$21),0.125),MROUND('Redeck Deflections'!$P$21,0.125)*-1) -> 0 | L96: 2 | N96: 2 | O96: ='Redeck Deflections'!$D$6*1 -> 110 | P96: =Reference!$D$357+Reference!$D$349 -> 110 | V96: =SUM('Redeck Deflections'!$W$21:$AA$21) -> 0 | W96: =IF('Redeck Deflections'!$AB$21<0,MROUND(ABS('Redeck Deflections'!$AB$21),0.125),MROUND('Redeck Deflections'!$AB$21,0.125)*-1) -> 0 | X96: 2
B97: 2 | C97: 0 | D97: =Reference!$D$358 -> 110 | J97: =SUM('Redeck Deflections'!$K$22:$O$22) -> 0 | K97: =IF('Redeck Deflections'!$P$22<0,MROUND(ABS('Redeck Deflections'!$P$22),0.125),MROUND('Redeck Deflections'!$P$22,0.125)*-1) -> 0 | L97: 2 | N97: 2 | O97: 0 | P97: =Reference!$D$358 -> 110 | V97: =SUM('Redeck Deflections'!$W$22:$AA$22) -> 0 | W97: =IF('Redeck Deflections'!$AB$22<0,MROUND(ABS('Redeck Deflections'!$AB$22),0.125),MROUND('Redeck Deflections'!$AB$22,0.125)*-1) -> 0 | X97: 2
B98: 2.1 | C98: ='Redeck Deflections'!$E$6*0.1 -> 12 | D98: =Reference!$D$359+Reference!$C$360 -> 122 | J98: =SUM('Redeck Deflections'!$K$23:$O$23) -> -0.0806 | K98: =IF('Redeck Deflections'!$P$23<0,MROUND(ABS('Redeck Deflections'!$P$23),0.125),MROUND('Redeck Deflections'!$P$23,0.125)*-1) -> 0.125 | L98: 2.1 | N98: 2.1 | O98: ='Redeck Deflections'!$E$6*0.1 -> 12 | P98: =Reference!$D$359+Reference!$C$360 -> 122 | V98: =SUM('Redeck Deflections'!$W$23:$AA$23) -> -0.0806 | W98: =IF('Redeck Deflections'!$AB$23<0,MROUND(ABS('Redeck Deflections'!$AB$23),0.125),MROUND('Redeck Deflections'!$AB$23,0.125)*-1) -> 0.125 | X98: 2.1
B99: 2.2 | C99: ='Redeck Deflections'!$E$6*0.2 -> 24 | D99: =Reference!$C$361+Reference!$D$59 -> 134 | J99: =SUM('Redeck Deflections'!$K$24:$O$24) -> -0.2448 | K99: =IF('Redeck Deflections'!$P$24<0,MROUND(ABS('Redeck Deflections'!$P$24),0.125),MROUND('Redeck Deflections'!$P$24,0.125)*-1) -> 0.25 | L99: 2.2 | N99: 2.2 | O99: ='Redeck Deflections'!$E$6*0.2 -> 24 | P99: =Reference!$C$361+Reference!$D$59 -> 134 | V99: =SUM('Redeck Deflections'!$W$24:$AA$24) -> -0.2448 | W99: =IF('Redeck Deflections'!$AB$24<0,MROUND(ABS('Redeck Deflections'!$AB$24),0.125),MROUND('Redeck Deflections'!$AB$24,0.125)*-1) -> 0.25 | X99: 2.2
B100: 2.3 | C100: ='Redeck Deflections'!$E$6*0.3 -> 36 | D100: =Reference!$C$362+Reference!$D$359 -> 146 | J100: =SUM('Redeck Deflections'!$K$25:$O$25) -> -0.4339 | K100: =IF('Redeck Deflections'!$P$25<0,MROUND(ABS('Redeck Deflections'!$P$25),0.125),MROUND('Redeck Deflections'!$P$25,0.125)*-1) -> 0.375 | L100: 2.3 | N100: 2.3 | O100: ='Redeck Deflections'!$E$6*0.3 -> 36 | P100: =Reference!$C$362+Reference!$D$359 -> 146 | V100: =SUM('Redeck Deflections'!$W$25:$AA$25) -> -0.4339 | W100: =IF('Redeck Deflections'!$AB$25<0,MROUND(ABS('Redeck Deflections'!$AB$25),0.125),MROUND('Redeck Deflections'!$AB$25,0.125)*-1) -> 0.375 | X100: 2.3
B101: 2.4 | C101: ='Redeck Deflections'!$E$6*0.4 -> 48 | D101: =Reference!$C$363+Reference!$D$359 -> 158 | J101: =SUM('Redeck Deflections'!$K$26:$O$26) -> -0.5767 | K101: =IF('Redeck Deflections'!$P$26<0,MROUND(ABS('Redeck Deflections'!$P$26),0.125),MROUND('Redeck Deflections'!$P$26,0.125)*-1) -> 0.625 | L101: 2.4 | N101: 2.4 | O101: ='Redeck Deflections'!$E$6*0.4 -> 48 | P101: =Reference!$C$363+Reference!$D$359 -> 158 | V101: =SUM('Redeck Deflections'!$W$26:$AA$26) -> -0.5767 | W101: =IF('Redeck Deflections'!$AB$26<0,MROUND(ABS('Redeck Deflections'!$AB$26),0.125),MROUND('Redeck Deflections'!$AB$26,0.125)*-1) -> 0.625 | X101: 2.4
B102: 2.5 | C102: ='Redeck Deflections'!$E$6*0.5 -> 60 | D102: =Reference!$C$364+Reference!$D$359 -> 170 | J102: =SUM('Redeck Deflections'!$K$27:$O$27) -> -0.6291 | K102: =IF('Redeck Deflections'!$P$27<0,MROUND(ABS('Redeck Deflections'!$P$27),0.125),MROUND('Redeck Deflections'!$P$27,0.125)*-1) -> 0.625 | L102: 2.5 | N102: 2.5 | O102: ='Redeck Deflections'!$E$6*0.5 -> 60 | P102: =Reference!$C$364+Reference!$D$359 -> 170 | V102: =SUM('Redeck Deflections'!$W$27:$AA$27) -> -0.6291 | W102: =IF('Redeck Deflections'!$AB$27<0,MROUND(ABS('Redeck Deflections'!$AB$27),0.125),MROUND('Redeck Deflections'!$AB$27,0.125)*-1) -> 0.625 | X102: 2.5
B103: 2.6 | C103: ='Redeck Deflections'!$E$6*0.6 -> 72 | D103: =Reference!$C$365+Reference!$D$359 -> 182 | J103: =SUM('Redeck Deflections'!$K$28:$O$28) -> -0.5767 | K103: =IF('Redeck Deflections'!$P$28<0,MROUND(ABS('Redeck Deflections'!$P$28),0.125),MROUND('Redeck Deflections'!$P$28,0.125)*-1) -> 0.625 | L103: 2.6 | N103: 2.6 | O103: ='Redeck Deflections'!$E$6*0.6 -> 72 | P103: =Reference!$C$365+Reference!$D$359 -> 182 | V103: =SUM('Redeck Deflections'!$W$28:$AA$28) -> -0.5767 | W103: =IF('Redeck Deflections'!$AB$28<0,MROUND(ABS('Redeck Deflections'!$AB$28),0.125),MROUND('Redeck Deflections'!$AB$28,0.125)*-1) -> 0.625 | X103: 2.6
B104: 2.7 | C104: ='Redeck Deflections'!$E$6*0.7 -> 84 | D104: =Reference!$C$366+Reference!$D$359 -> 194 | J104: =SUM('Redeck Deflections'!$K$29:$O$29) -> -0.4339 | K104: =IF('Redeck Deflections'!$P$29<0,MROUND(ABS('Redeck Deflections'!$P$29),0.125),MROUND('Redeck Deflections'!$P$29,0.125)*-1) -> 0.375 | L104: 2.7 | N104: 2.7 | O104: ='Redeck Deflections'!$E$6*0.7 -> 84 | P104: =Reference!$C$366+Reference!$D$359 -> 194 | V104: =SUM('Redeck Deflections'!$W$29:$AA$29) -> -0.4339 | W104: =IF('Redeck Deflections'!$AB$29<0,MROUND(ABS('Redeck Deflections'!$AB$29),0.125),MROUND('Redeck Deflections'!$AB$29,0.125)*-1) -> 0.375 | X104: 2.7
B105: 2.8 | C105: ='Redeck Deflections'!$E$6*0.8 -> 96 | D105: =Reference!$C$367+Reference!$D$359 -> 206 | J105: =SUM('Redeck Deflections'!$K$30:$O$30) -> -0.2448 | K105: =IF('Redeck Deflections'!$P$30<0,MROUND(ABS('Redeck Deflections'!$P$30),0.125),MROUND('Redeck Deflections'!$P$30,0.125)*-1) -> 0.25 | L105: 2.8 | N105: 2.8 | O105: ='Redeck Deflections'!$E$6*0.8 -> 96 | P105: =Reference!$C$367+Reference!$D$359 -> 206 | V105: =SUM('Redeck Deflections'!$W$30:$AA$30) -> -0.2448 | W105: =IF('Redeck Deflections'!$AB$30<0,MROUND(ABS('Redeck Deflections'!$AB$30),0.125),MROUND('Redeck Deflections'!$AB$30,0.125)*-1) -> 0.25 | X105: 2.8
B106: 2.9 | C106: ='Redeck Deflections'!$E$6*0.9 -> 108 | D106: =Reference!$C$368+Reference!$D$359 -> 218 | J106: =SUM('Redeck Deflections'!$K$31:$O$31) -> -0.0806 | K106: =IF('Redeck Deflections'!$P$31<0,MROUND(ABS('Redeck Deflections'!$P$31),0.125),MROUND('Redeck Deflections'!$P$31,0.125)*-1) -> 0.125 | L106: 2.9 | N106: 2.9 | O106: ='Redeck Deflections'!$E$6*0.9 -> 108 | P106: =Reference!$C$368+Reference!$D$359 -> 218 | V106: =SUM('Redeck Deflections'!$W$31:$AA$31) -> -0.0806 | W106: =IF('Redeck Deflections'!$AB$31<0,MROUND(ABS('Redeck Deflections'!$AB$31),0.125),MROUND('Redeck Deflections'!$AB$31,0.125)*-1) -> 0.125 | X106: 2.9
B107: 3 | C107: ='Redeck Deflections'!$E$6*1 -> 120 | D107: =Reference!$C$369+Reference!$D$359 -> 230 | J107: =SUM('Redeck Deflections'!$K$32:$O$32) -> 0 | K107: =IF('Redeck Deflections'!$P$32<0,MROUND(ABS('Redeck Deflections'!$P$32),0.125),MROUND('Redeck Deflections'!$P$32,0.125)*-1) -> 0 | L107: 3 | N107: 3 | O107: ='Redeck Deflections'!$E$6*1 -> 120 | P107: =Reference!$C$369+Reference!$D$359 -> 230 | V107: =SUM('Redeck Deflections'!$W$32:$AA$32) -> 0 | W107: =IF('Redeck Deflections'!$AB$32<0,MROUND(ABS('Redeck Deflections'!$AB$32),0.125),MROUND('Redeck Deflections'!$AB$32,0.125)*-1) -> 0 | X107: 3
B108: 3 | C108: 0 | D108: =Reference!$D$369 -> 230 | J108: =SUM('Redeck Deflections'!$K$33:$O$33) -> 0 | K108: =IF('Redeck Deflections'!$P$33<0,MROUND(ABS('Redeck Deflections'!$P$33),0.125),MROUND('Redeck Deflections'!$P$33,0.125)*-1) -> 0 | L108: 3 | N108: 3 | O108: 0 | P108: =Reference!$D$369 -> 230 | V108: =SUM('Redeck Deflections'!$W$33:$AA$33) -> 0 | W108: =IF('Redeck Deflections'!$AB$33<0,MROUND(ABS('Redeck Deflections'!$AB$33),0.125),MROUND('Redeck Deflections'!$AB$33,0.125)*-1) -> 0 | X108: 3
B109: 3.1 | C109: ='Redeck Deflections'!$F$6*0.1 -> 11 | D109: =Reference!$D$370+Reference!$C$371 -> 241 | J109: =SUM('Redeck Deflections'!$K$34:$O$34) -> -0.0257 | K109: =IF('Redeck Deflections'!$P$34<0,MROUND(ABS('Redeck Deflections'!$P$34),0.125),MROUND('Redeck Deflections'!$P$34,0.125)*-1) -> 0 | L109: 3.1 | N109: 3.1 | O109: ='Redeck Deflections'!$F$6*0.1 -> 11 | P109: =Reference!$D$370+Reference!$C$371 -> 241 | V109: =SUM('Redeck Deflections'!$W$34:$AA$34) -> -0.0257 | W109: =IF('Redeck Deflections'!$AB$34<0,MROUND(ABS('Redeck Deflections'!$AB$34),0.125),MROUND('Redeck Deflections'!$AB$34,0.125)*-1) -> 0 | X109: 3.1
B110: 3.2 | C110: ='Redeck Deflections'!$F$6*0.2 -> 22 | D110: =Reference!$C$372+Reference!$D$370 -> 252 | J110: =SUM('Redeck Deflections'!$K$35:$O$35) -> -0.1076 | K110: =IF('Redeck Deflections'!$P$35<0,MROUND(ABS('Redeck Deflections'!$P$35),0.125),MROUND('Redeck Deflections'!$P$35,0.125)*-1) -> 0.125 | L110: 3.2 | N110: 3.2 | O110: ='Redeck Deflections'!$F$6*0.2 -> 22 | P110: =Reference!$C$372+Reference!$D$370 -> 252 | V110: =SUM('Redeck Deflections'!$W$35:$AA$35) -> -0.1076 | W110: =IF('Redeck Deflections'!$AB$35<0,MROUND(ABS('Redeck Deflections'!$AB$35),0.125),MROUND('Redeck Deflections'!$AB$35,0.125)*-1) -> 0.125 | X110: 3.2
B111: 3.3 | C111: ='Redeck Deflections'!$F$6*0.3 -> 33 | D111: =Reference!$C$373+Reference!$D$370 -> 263 | J111: =SUM('Redeck Deflections'!$K$36:$O$36) -> -0.2244 | K111: =IF('Redeck Deflections'!$P$36<0,MROUND(ABS('Redeck Deflections'!$P$36),0.125),MROUND('Redeck Deflections'!$P$36,0.125)*-1) -> 0.25 | L111: 3.3 | N111: 3.3 | O111: ='Redeck Deflections'!$F$6*0.3 -> 33 | P111: =Reference!$C$373+Reference!$D$370 -> 263 | V111: =SUM('Redeck Deflections'!$W$36:$AA$36) -> -0.2244 | W111: =IF('Redeck Deflections'!$AB$36<0,MROUND(ABS('Redeck Deflections'!$AB$36),0.125),MROUND('Redeck Deflections'!$AB$36,0.125)*-1) -> 0.25 | X111: 3.3
B112: 3.4 | C112: ='Redeck Deflections'!$F$6*0.4 -> 44 | D112: =Reference!$C$374+Reference!$D$370 -> 274 | J112: =SUM('Redeck Deflections'!$K$37:$O$37) -> -0.3401 | K112: =IF('Redeck Deflections'!$P$37<0,MROUND(ABS('Redeck Deflections'!$P$37),0.125),MROUND('Redeck Deflections'!$P$37,0.125)*-1) -> 0.375 | L112: 3.4 | N112: 3.4 | O112: ='Redeck Deflections'!$F$6*0.4 -> 44 | P112: =Reference!$C$374+Reference!$D$370 -> 274 | V112: =SUM('Redeck Deflections'!$W$37:$AA$37) -> -0.3401 | W112: =IF('Redeck Deflections'!$AB$37<0,MROUND(ABS('Redeck Deflections'!$AB$37),0.125),MROUND('Redeck Deflections'!$AB$37,0.125)*-1) -> 0.375 | X112: 3.4
B113: 3.5 | C113: ='Redeck Deflections'!$F$6*0.5 -> 55 | D113: =Reference!$C$375+Reference!$D$370 -> 285 | J113: =SUM('Redeck Deflections'!$K$38:$O$38) -> -0.4234 | K113: =IF('Redeck Deflections'!$P$38<0,MROUND(ABS('Redeck Deflections'!$P$38),0.125),MROUND('Redeck Deflections'!$P$38,0.125)*-1) -> 0.375 | L113: 3.5 | N113: 3.5 | O113: ='Redeck Deflections'!$F$6*0.5 -> 55 | P113: =Reference!$C$375+Reference!$D$370 -> 285 | V113: =SUM('Redeck Deflections'!$W$38:$AA$38) -> -0.4234 | W113: =IF('Redeck Deflections'!$AB$38<0,MROUND(ABS('Redeck Deflections'!$AB$38),0.125),MROUND('Redeck Deflections'!$AB$38,0.125)*-1) -> 0.375 | X113: 3.5
B114: 3.6 | C114: ='Redeck Deflections'!$F$6*0.6 -> 66 | D114: =Reference!$C$376+Reference!$D$370 -> 296 | J114: =SUM('Redeck Deflections'!$K$39:$O$39) -> -0.4537 | K114: =IF('Redeck Deflections'!$P$39<0,MROUND(ABS('Redeck Deflections'!$P$39),0.125),MROUND('Redeck Deflections'!$P$39,0.125)*-1) -> 0.5 | L114: 3.6 | N114: 3.6 | O114: ='Redeck Deflections'!$F$6*0.6 -> 66 | P114: =Reference!$C$376+Reference!$D$370 -> 296 | V114: =SUM('Redeck Deflections'!$W$39:$AA$39) -> -0.4537 | W114: =IF('Redeck Deflections'!$AB$39<0,MROUND(ABS('Redeck Deflections'!$AB$39),0.125),MROUND('Redeck Deflections'!$AB$39,0.125)*-1) -> 0.5 | X114: 3.6
B115: 3.7 | C115: ='Redeck Deflections'!$F$6*0.7 -> 77 | D115: =Reference!$C$377+Reference!$D$370 -> 307 | J115: =SUM('Redeck Deflections'!$K$40:$O$40) -> -0.4211 | K115: =IF('Redeck Deflections'!$P$40<0,MROUND(ABS('Redeck Deflections'!$P$40),0.125),MROUND('Redeck Deflections'!$P$40,0.125)*-1) -> 0.375 | L115: 3.7 | N115: 3.7 | O115: ='Redeck Deflections'!$F$6*0.7 -> 77 | P115: =Reference!$C$377+Reference!$D$370 -> 307 | V115: =SUM('Redeck Deflections'!$W$40:$AA$40) -> -0.4211 | W115: =IF('Redeck Deflections'!$AB$40<0,MROUND(ABS('Redeck Deflections'!$AB$40),0.125),MROUND('Redeck Deflections'!$AB$40,0.125)*-1) -> 0.375 | X115: 3.7
B116: 3.8 | C116: ='Redeck Deflections'!$F$6*0.8 -> 88 | D116: =Reference!$C$378+Reference!$D$370 -> 318 | J116: =SUM('Redeck Deflections'!$K$41:$O$41) -> -0.3256 | K116: =IF('Redeck Deflections'!$P$41<0,MROUND(ABS('Redeck Deflections'!$P$41),0.125),MROUND('Redeck Deflections'!$P$41,0.125)*-1) -> 0.375 | L116: 3.8 | N116: 3.8 | O116: ='Redeck Deflections'!$F$6*0.8 -> 88 | P116: =Reference!$C$378+Reference!$D$370 -> 318 | V116: =SUM('Redeck Deflections'!$W$41:$AA$41) -> -0.3256 | W116: =IF('Redeck Deflections'!$AB$41<0,MROUND(ABS('Redeck Deflections'!$AB$41),0.125),MROUND('Redeck Deflections'!$AB$41,0.125)*-1) -> 0.375 | X116: 3.8
B117: 3.9 | C117: ='Redeck Deflections'!$F$6*0.9 -> 99 | D117: =Reference!$C$379+Reference!$D$370 -> 329 | J117: =SUM('Redeck Deflections'!$K$42:$O$42) -> -0.1781 | K117: =IF('Redeck Deflections'!$P$42<0,MROUND(ABS('Redeck Deflections'!$P$42),0.125),MROUND('Redeck Deflections'!$P$42,0.125)*-1) -> 0.125 | L117: 3.9 | N117: 3.9 | O117: ='Redeck Deflections'!$F$6*0.9 -> 99 | P117: =Reference!$C$379+Reference!$D$370 -> 329 | V117: =SUM('Redeck Deflections'!$W$42:$AA$42) -> -0.1781 | W117: =IF('Redeck Deflections'!$AB$42<0,MROUND(ABS('Redeck Deflections'!$AB$42),0.125),MROUND('Redeck Deflections'!$AB$42,0.125)*-1) -> 0.125 | X117: 3.9
B118: 4 | C118: ='Redeck Deflections'!$F$6*1 -> 110 | D118: =Reference!$C$380+Reference!$D$370 -> 340 | J118: =SUM('Redeck Deflections'!$K$43:$O$43) -> 0 | K118: =IF('Redeck Deflections'!$P$43<0,MROUND(ABS('Redeck Deflections'!$P$43),0.125),MROUND('Redeck Deflections'!$P$43,0.125)*-1) -> 0 | L118: 4 | N118: 4 | O118: ='Redeck Deflections'!$F$6*1 -> 110 | P118: =Reference!$C$380+Reference!$D$370 -> 340 | V118: =SUM('Redeck Deflections'!$W$43:$AA$43) -> 0 | W118: =IF('Redeck Deflections'!$AB$43<0,MROUND(ABS('Redeck Deflections'!$AB$43),0.125),MROUND('Redeck Deflections'!$AB$43,0.125)*-1) -> 0 | X118: 4
B119: 4 | C119: 0 | D119: =Reference!$D$380 -> 340 | J119: =SUM('Redeck Deflections'!$K$44:$O$44) -> 0 | K119: =IF('Redeck Deflections'!$P$44<0,MROUND(ABS('Redeck Deflections'!$P$44),0.125),MROUND('Redeck Deflections'!$P$44,0.125)*-1) -> 0 | L119: 4 | N119: 4 | O119: 0 | P119: =Reference!$D$380 -> 340 | V119: =SUM('Redeck Deflections'!$W$44:$AA$44) -> 0 | W119: =IF('Redeck Deflections'!$AB$44<0,MROUND(ABS('Redeck Deflections'!$AB$44),0.125),MROUND('Redeck Deflections'!$AB$44,0.125)*-1) -> 0 | X119: 4
B120: 4.1 | C120: ='Redeck Deflections'!$G$6*0.1 -> 0 | D120: =Reference!$D$381+Reference!$C$382 -> 340 | J120: =SUM('Redeck Deflections'!$K$45:$O$45) -> 0 | K120: =IF('Redeck Deflections'!$P$45<0,MROUND(ABS('Redeck Deflections'!$P$45),0.125),MROUND('Redeck Deflections'!$P$45,0.125)*-1) -> 0 | L120: 4.1 | N120: 4.1 | O120: ='Redeck Deflections'!$G$6*0.1 -> 0 | P120: =Reference!$D$381+Reference!$C$382 -> 340 | V120: =SUM('Redeck Deflections'!$W$45:$AA$45) -> 0 | W120: =IF('Redeck Deflections'!$AB$45<0,MROUND(ABS('Redeck Deflections'!$AB$45),0.125),MROUND('Redeck Deflections'!$AB$45,0.125)*-1) -> 0 | X120: 4.1
B121: 4.2 | C121: ='Redeck Deflections'!$G$6*0.2 -> 0 | D121: =Reference!$C$383+Reference!$D$381 -> 340 | J121: =SUM('Redeck Deflections'!$K$46:$O$46) -> 0 | K121: =IF('Redeck Deflections'!$P$46<0,MROUND(ABS('Redeck Deflections'!$P$46),0.125),MROUND('Redeck Deflections'!$P$46,0.125)*-1) -> 0 | L121: 4.2 | N121: 4.2 | O121: ='Redeck Deflections'!$G$6*0.2 -> 0 | P121: =Reference!$C$383+Reference!$D$381 -> 340 | V121: =SUM('Redeck Deflections'!$W$46:$AA$46) -> 0 | W121: =IF('Redeck Deflections'!$AB$46<0,MROUND(ABS('Redeck Deflections'!$AB$46),0.125),MROUND('Redeck Deflections'!$AB$46,0.125)*-1) -> 0 | X121: 4.2
B122: 4.3 | C122: ='Redeck Deflections'!$G$6*0.3 -> 0 | D122: =Reference!$C$384+Reference!$D$381 -> 340 | J122: =SUM('Redeck Deflections'!$K$47:$O$47) -> 0 | K122: =IF('Redeck Deflections'!$P$47<0,MROUND(ABS('Redeck Deflections'!$P$47),0.125),MROUND('Redeck Deflections'!$P$47,0.125)*-1) -> 0 | L122: 4.3 | N122: 4.3 | O122: ='Redeck Deflections'!$G$6*0.3 -> 0 | P122: =Reference!$C$384+Reference!$D$381 -> 340 | V122: =SUM('Redeck Deflections'!$W$47:$AA$47) -> 0 | W122: =IF('Redeck Deflections'!$AB$47<0,MROUND(ABS('Redeck Deflections'!$AB$47),0.125),MROUND('Redeck Deflections'!$AB$47,0.125)*-1) -> 0 | X122: 4.3
B123: 4.4 | C123: ='Redeck Deflections'!$G$6*0.4 -> 0 | D123: =Reference!$C$385+Reference!$D$381 -> 340 | J123: =SUM('Redeck Deflections'!$K$48:$O$48) -> 0 | K123: =IF('Redeck Deflections'!$P$48<0,MROUND(ABS('Redeck Deflections'!$P$48),0.125),MROUND('Redeck Deflections'!$P$48,0.125)*-1) -> 0 | L123: 4.4 | N123: 4.4 | O123: ='Redeck Deflections'!$G$6*0.4 -> 0 | P123: =Reference!$C$385+Reference!$D$381 -> 340 | V123: =SUM('Redeck Deflections'!$W$48:$AA$48) -> 0 | W123: =IF('Redeck Deflections'!$AB$48<0,MROUND(ABS('Redeck Deflections'!$AB$48),0.125),MROUND('Redeck Deflections'!$AB$48,0.125)*-1) -> 0 | X123: 4.4
B124: 4.5 | C124: ='Redeck Deflections'!$G$6*0.5 -> 0 | D124: =Reference!$C$386+Reference!$D$381 -> 340 | J124: =SUM('Redeck Deflections'!$K$49:$O$49) -> 0 | K124: =IF('Redeck Deflections'!$P$49<0,MROUND(ABS('Redeck Deflections'!$P$49),0.125),MROUND('Redeck Deflections'!$P$49,0.125)*-1) -> 0 | L124: 4.5 | N124: 4.5 | O124: ='Redeck Deflections'!$G$6*0.5 -> 0 | P124: =Reference!$C$386+Reference!$D$381 -> 340 | V124: =SUM('Redeck Deflections'!$W$49:$AA$49) -> 0 | W124: =IF('Redeck Deflections'!$AB$49<0,MROUND(ABS('Redeck Deflections'!$AB$49),0.125),MROUND('Redeck Deflections'!$AB$49,0.125)*-1) -> 0 | X124: 4.5
B125: 4.6 | C125: ='Redeck Deflections'!$G$6*0.6 -> 0 | D125: =Reference!$C$387+Reference!$D$381 -> 340 | J125: =SUM('Redeck Deflections'!$K$50:$O$50) -> 0 | K125: =IF('Redeck Deflections'!$P$50<0,MROUND(ABS('Redeck Deflections'!$P$50),0.125),MROUND('Redeck Deflections'!$P$50,0.125)*-1) -> 0 | L125: 4.6 | N125: 4.6 | O125: ='Redeck Deflections'!$G$6*0.6 -> 0 | P125: =Reference!$C$387+Reference!$D$381 -> 340 | V125: =SUM('Redeck Deflections'!$W$50:$AA$50) -> 0 | W125: =IF('Redeck Deflections'!$AB$50<0,MROUND(ABS('Redeck Deflections'!$AB$50),0.125),MROUND('Redeck Deflections'!$AB$50,0.125)*-1) -> 0 | X125: 4.6
B126: 4.7 | C126: ='Redeck Deflections'!$G$6*0.7 -> 0 | D126: =Reference!$C$388+Reference!$D$381 -> 340 | J126: =SUM('Redeck Deflections'!$K$51:$O$51) -> 0 | K126: =IF('Redeck Deflections'!$P$51<0,MROUND(ABS('Redeck Deflections'!$P$51),0.125),MROUND('Redeck Deflections'!$P$51,0.125)*-1) -> 0 | L126: 4.7 | N126: 4.7 | O126: ='Redeck Deflections'!$G$6*0.7 -> 0 | P126: =Reference!$C$388+Reference!$D$381 -> 340 | V126: =SUM('Redeck Deflections'!$W$51:$AA$51) -> 0 | W126: =IF('Redeck Deflections'!$AB$51<0,MROUND(ABS('Redeck Deflections'!$AB$51),0.125),MROUND('Redeck Deflections'!$AB$51,0.125)*-1) -> 0 | X126: 4.7
B127: 4.8 | C127: ='Redeck Deflections'!$G$6*0.8 -> 0 | D127: =Reference!$C$389+Reference!$D$381 -> 340 | J127: =SUM('Redeck Deflections'!$K$52:$O$52) -> 0 | K127: =IF('Redeck Deflections'!$P$52<0,MROUND(ABS('Redeck Deflections'!$P$52),0.125),MROUND('Redeck Deflections'!$P$52,0.125)*-1) -> 0 | L127: 4.8 | N127: 4.8 | O127: ='Redeck Deflections'!$G$6*0.8 -> 0 | P127: =Reference!$C$389+Reference!$D$381 -> 340 | V127: =SUM('Redeck Deflections'!$W$52:$AA$52) -> 0 | W127: =IF('Redeck Deflections'!$AB$52<0,MROUND(ABS('Redeck Deflections'!$AB$52),0.125),MROUND('Redeck Deflections'!$AB$52,0.125)*-1) -> 0 | X127: 4.8
B128: 4.9 | C128: ='Redeck Deflections'!$G$6*0.9 -> 0 | D128: =Reference!$C$390+Reference!$D$381 -> 340 | J128: =SUM('Redeck Deflections'!$K$53:$O$53) -> 0 | K128: =IF('Redeck Deflections'!$P$53<0,MROUND(ABS('Redeck Deflections'!$P$53),0.125),MROUND('Redeck Deflections'!$P$53,0.125)*-1) -> 0 | L128: 4.9 | N128: 4.9 | O128: ='Redeck Deflections'!$G$6*0.9 -> 0 | P128: =Reference!$C$390+Reference!$D$381 -> 340 | V128: =SUM('Redeck Deflections'!$W$53:$AA$53) -> 0 | W128: =IF('Redeck Deflections'!$AB$53<0,MROUND(ABS('Redeck Deflections'!$AB$53),0.125),MROUND('Redeck Deflections'!$AB$53,0.125)*-1) -> 0 | X128: 4.9
B129: 5 | C129: ='Redeck Deflections'!$G$6*1 -> 0 | D129: =Reference!$C$391+Reference!$D$381 -> 340 | J129: =SUM('Redeck Deflections'!$K$54:$O$54) -> 0 | K129: =IF('Redeck Deflections'!$P$54<0,MROUND(ABS('Redeck Deflections'!$P$54),0.125),MROUND('Redeck Deflections'!$P$54,0.125)*-1) -> 0 | L129: 5 | N129: 5 | O129: ='Redeck Deflections'!$G$6*1 -> 0 | P129: =Reference!$C$391+Reference!$D$381 -> 340 | V129: =SUM('Redeck Deflections'!$W$54:$AA$54) -> 0 | W129: =IF('Redeck Deflections'!$AB$54<0,MROUND(ABS('Redeck Deflections'!$AB$54),0.125),MROUND('Redeck Deflections'!$AB$54,0.125)*-1) -> 0 | X129: 5
A132: 5 Span | B132: EXTERIOR GIRDERS | N132: INTERIOR GIRDERS
E133: Girder | F133: Intermediate diaphragms | G133: Concrete | I133: Barrier | J133: Total DL Deflection | Q133: Girder | R133: Intermediate diaphragms | S133: Concrete | U133: Barrier | V133: Total DL Deflection
B134: Tenth point | C134: Location | D134: Distance | E134: YDL-s1- Load Case 1 - Self Load (Stage1:D,DC) | F134: YDL-s1- Load Case 2 - Add'l Self Load (In Force/Length) (Stage 1:D,DC) | G134: YDL-s1- Load Case 3 - Haunch Load (Stage1:D,DC) | H134: YDL-s1- Load Case 4 - Concrete Deck Load (Stage1:D,DC) | I134: YDL-s2- Load Case 1 - Parapet Loads(DL2 - Barriers & Curbs: Stage 2:D,D~ | J134: Decimal Inches | K134: Nearest 1/8" | L134: Tenth point | N134: Tenth point | O134: Location | P134: Distance | Q134: YDL-s1- Load Case 1 - Self Load (Stage1:D,DC) | R134: YDL-s1- Load Case 2 - Add'l Self Load (In Force/Length) (Stage 1:D,DC) | S134: YDL-s1- Load Case 3 - Haunch Load (Stage1:D,DC) | T134: YDL-s1- Load Case 4 - Concrete Deck Load (Stage1:D,DC) | U134: YDL-s2- Load Case 1 - Parapet Loads(DL2 - Barriers & Curbs: Stage 2:D,D~ | V134: Decimal Inches | W134: Nearest 1/8" | X134: Tenth point
B135: 1 | C135: 0 | D135: 0 | E135: Copy and Paste Values from Virtis | J135: =SUM('Redeck Deflections'!$K$11:$O$11) -> 0 | K135: =IF('Redeck Deflections'!$P$11<0,MROUND(ABS('Redeck Deflections'!$P$11),0.125),MROUND('Redeck Deflections'!$P$11,0.125)*-1) -> 0 | L135: 1 | N135: 1 | O135: 0 | P135: 0 | Q135: Copy and Paste Values from Virtis | V135: =SUM('Redeck Deflections'!$W$11:$AA$11) -> 0 | W135: =IF('Redeck Deflections'!$AB$11<0,MROUND(ABS('Redeck Deflections'!$AB$11),0.125),MROUND('Redeck Deflections'!$AB$11,0.125)*-1) -> 0 | X135: 1
B136: 1.1 | C136: ='Redeck Deflections'!$D$6*0.1 -> 11 | D136: =Reference!$C$349 -> 11 | J136: =SUM('Redeck Deflections'!$K$12:$O$12) -> -0.1781 | K136: =IF('Redeck Deflections'!$P$12<0,MROUND(ABS('Redeck Deflections'!$P$12),0.125),MROUND('Redeck Deflections'!$P$12,0.125)*-1) -> 0.125 | L136: 1.1 | N136: 1.1 | O136: ='Redeck Deflections'!$D$6*0.1 -> 11 | P136: =Reference!$C$349 -> 11 | V136: =SUM('Redeck Deflections'!$W$12:$AA$12) -> -0.1781 | W136: =IF('Redeck Deflections'!$AB$12<0,MROUND(ABS('Redeck Deflections'!$AB$12),0.125),MROUND('Redeck Deflections'!$AB$12,0.125)*-1) -> 0.125 | X136: 1.1
B137: 1.2 | C137: ='Redeck Deflections'!$D$6*0.2 -> 22 | D137: =Reference!$D$349+Reference!$D$349 -> 22 | J137: =SUM('Redeck Deflections'!$K$13:$O$13) -> -0.3256 | K137: =IF('Redeck Deflections'!$P$13<0,MROUND(ABS('Redeck Deflections'!$P$13),0.125),MROUND('Redeck Deflections'!$P$13,0.125)*-1) -> 0.375 | L137: 1.2 | N137: 1.2 | O137: ='Redeck Deflections'!$D$6*0.2 -> 22 | P137: =Reference!$D$349+Reference!$D$349 -> 22 | V137: =SUM('Redeck Deflections'!$W$13:$AA$13) -> -0.3256 | W137: =IF('Redeck Deflections'!$AB$13<0,MROUND(ABS('Redeck Deflections'!$AB$13),0.125),MROUND('Redeck Deflections'!$AB$13,0.125)*-1) -> 0.375 | X137: 1.2
B138: 1.3 | C138: ='Redeck Deflections'!$D$6*0.3 -> 33 | D138: =Reference!$D$350+Reference!$D$349 -> 33 | J138: =SUM('Redeck Deflections'!$K$14:$O$14) -> -0.4211 | K138: =IF('Redeck Deflections'!$P$14<0,MROUND(ABS('Redeck Deflections'!$P$14),0.125),MROUND('Redeck Deflections'!$P$14,0.125)*-1) -> 0.375 | L138: 1.3 | N138: 1.3 | O138: ='Redeck Deflections'!$D$6*0.3 -> 33 | P138: =Reference!$D$350+Reference!$D$349 -> 33 | V138: =SUM('Redeck Deflections'!$W$14:$AA$14) -> -0.4211 | W138: =IF('Redeck Deflections'!$AB$14<0,MROUND(ABS('Redeck Deflections'!$AB$14),0.125),MROUND('Redeck Deflections'!$AB$14,0.125)*-1) -> 0.375 | X138: 1.3
B139: 1.4 | C139: ='Redeck Deflections'!$D$6*0.4 -> 44 | D139: =Reference!$D$351+Reference!$D$349 -> 44 | J139: =SUM('Redeck Deflections'!$K$15:$O$15) -> -0.4537 | K139: =IF('Redeck Deflections'!$P$15<0,MROUND(ABS('Redeck Deflections'!$P$15),0.125),MROUND('Redeck Deflections'!$P$15,0.125)*-1) -> 0.5 | L139: 1.4 | N139: 1.4 | O139: ='Redeck Deflections'!$D$6*0.4 -> 44 | P139: =Reference!$D$351+Reference!$D$349 -> 44 | V139: =SUM('Redeck Deflections'!$W$15:$AA$15) -> -0.4537 | W139: =IF('Redeck Deflections'!$AB$15<0,MROUND(ABS('Redeck Deflections'!$AB$15),0.125),MROUND('Redeck Deflections'!$AB$15,0.125)*-1) -> 0.5 | X139: 1.4
B140: 1.5 | C140: ='Redeck Deflections'!$D$6*0.5 -> 55 | D140: =Reference!$D$352+Reference!$D$349 -> 55 | J140: =SUM('Redeck Deflections'!$K$16:$O$16) -> -0.4234 | K140: =IF('Redeck Deflections'!$P$16<0,MROUND(ABS('Redeck Deflections'!$P$16),0.125),MROUND('Redeck Deflections'!$P$16,0.125)*-1) -> 0.375 | L140: 1.5 | N140: 1.5 | O140: ='Redeck Deflections'!$D$6*0.5 -> 55 | P140: =Reference!$D$352+Reference!$D$349 -> 55 | V140: =SUM('Redeck Deflections'!$W$16:$AA$16) -> -0.4234 | W140: =IF('Redeck Deflections'!$AB$16<0,MROUND(ABS('Redeck Deflections'!$AB$16),0.125),MROUND('Redeck Deflections'!$AB$16,0.125)*-1) -> 0.375 | X140: 1.5
B141: 1.6 | C141: ='Redeck Deflections'!$D$6*0.6 -> 66 | D141: =Reference!$D$353+Reference!$D$349 -> 66 | J141: =SUM('Redeck Deflections'!$K$17:$O$17) -> -0.3401 | K141: =IF('Redeck Deflections'!$P$17<0,MROUND(ABS('Redeck Deflections'!$P$17),0.125),MROUND('Redeck Deflections'!$P$17,0.125)*-1) -> 0.375 | L141: 1.6 | N141: 1.6 | O141: ='Redeck Deflections'!$D$6*0.6 -> 66 | P141: =Reference!$D$353+Reference!$D$349 -> 66 | V141: =SUM('Redeck Deflections'!$W$17:$AA$17) -> -0.3401 | W141: =IF('Redeck Deflections'!$AB$17<0,MROUND(ABS('Redeck Deflections'!$AB$17),0.125),MROUND('Redeck Deflections'!$AB$17,0.125)*-1) -> 0.375 | X141: 1.6
B142: 1.7 | C142: ='Redeck Deflections'!$D$6*0.7 -> 77 | D142: =Reference!$D$354+Reference!$D$349 -> 77 | J142: =SUM('Redeck Deflections'!$K$18:$O$18) -> -0.2244 | K142: =IF('Redeck Deflections'!$P$18<0,MROUND(ABS('Redeck Deflections'!$P$18),0.125),MROUND('Redeck Deflections'!$P$18,0.125)*-1) -> 0.25 | L142: 1.7 | N142: 1.7 | O142: ='Redeck Deflections'!$D$6*0.7 -> 77 | P142: =Reference!$D$354+Reference!$D$349 -> 77 | V142: =SUM('Redeck Deflections'!$W$18:$AA$18) -> -0.2244 | W142: =IF('Redeck Deflections'!$AB$18<0,MROUND(ABS('Redeck Deflections'!$AB$18),0.125),MROUND('Redeck Deflections'!$AB$18,0.125)*-1) -> 0.25 | X142: 1.7
B143: 1.8 | C143: ='Redeck Deflections'!$D$6*0.8 -> 88 | D143: =Reference!$D$355+Reference!$D$349 -> 88 | J143: =SUM('Redeck Deflections'!$K$19:$O$19) -> -0.1076 | K143: =IF('Redeck Deflections'!$P$19<0,MROUND(ABS('Redeck Deflections'!$P$19),0.125),MROUND('Redeck Deflections'!$P$19,0.125)*-1) -> 0.125 | L143: 1.8 | N143: 1.8 | O143: ='Redeck Deflections'!$D$6*0.8 -> 88 | P143: =Reference!$D$355+Reference!$D$349 -> 88 | V143: =SUM('Redeck Deflections'!$W$19:$AA$19) -> -0.1076 | W143: =IF('Redeck Deflections'!$AB$19<0,MROUND(ABS('Redeck Deflections'!$AB$19),0.125),MROUND('Redeck Deflections'!$AB$19,0.125)*-1) -> 0.125 | X143: 1.8
B144: 1.9 | C144: ='Redeck Deflections'!$D$6*0.9 -> 99 | D144: =Reference!$D$356+Reference!$D$349 -> 99 | J144: =SUM('Redeck Deflections'!$K$20:$O$20) -> -0.0257 | K144: =IF('Redeck Deflections'!$P$20<0,MROUND(ABS('Redeck Deflections'!$P$20),0.125),MROUND('Redeck Deflections'!$P$20,0.125)*-1) -> 0 | L144: 1.9 | N144: 1.9 | O144: ='Redeck Deflections'!$D$6*0.9 -> 99 | P144: =Reference!$D$356+Reference!$D$349 -> 99 | V144: =SUM('Redeck Deflections'!$W$20:$AA$20) -> -0.0257 | W144: =IF('Redeck Deflections'!$AB$20<0,MROUND(ABS('Redeck Deflections'!$AB$20),0.125),MROUND('Redeck Deflections'!$AB$20,0.125)*-1) -> 0 | X144: 1.9
B145: 2 | C145: ='Redeck Deflections'!$D$6*1 -> 110 | D145: =Reference!$D$357+Reference!$D$349 -> 110 | J145: =SUM('Redeck Deflections'!$K$21:$O$21) -> 0 | K145: =IF('Redeck Deflections'!$P$21<0,MROUND(ABS('Redeck Deflections'!$P$21),0.125),MROUND('Redeck Deflections'!$P$21,0.125)*-1) -> 0 | L145: 2 | N145: 2 | O145: ='Redeck Deflections'!$D$6*1 -> 110 | P145: =Reference!$D$357+Reference!$D$349 -> 110 | V145: =SUM('Redeck Deflections'!$W$21:$AA$21) -> 0 | W145: =IF('Redeck Deflections'!$AB$21<0,MROUND(ABS('Redeck Deflections'!$AB$21),0.125),MROUND('Redeck Deflections'!$AB$21,0.125)*-1) -> 0 | X145: 2
B146: 2 | C146: 0 | D146: =Reference!$D$358 -> 110 | J146: =SUM('Redeck Deflections'!$K$22:$O$22) -> 0 | K146: =IF('Redeck Deflections'!$P$22<0,MROUND(ABS('Redeck Deflections'!$P$22),0.125),MROUND('Redeck Deflections'!$P$22,0.125)*-1) -> 0 | L146: 2 | N146: 2 | O146: 0 | P146: =Reference!$D$358 -> 110 | V146: =SUM('Redeck Deflections'!$W$22:$AA$22) -> 0 | W146: =IF('Redeck Deflections'!$AB$22<0,MROUND(ABS('Redeck Deflections'!$AB$22),0.125),MROUND('Redeck Deflections'!$AB$22,0.125)*-1) -> 0 | X146: 2
B147: 2.1 | C147: ='Redeck Deflections'!$E$6*0.1 -> 12 | D147: =Reference!$D$359+Reference!$C$360 -> 122 | J147: =SUM('Redeck Deflections'!$K$23:$O$23) -> -0.0806 | K147: =IF('Redeck Deflections'!$P$23<0,MROUND(ABS('Redeck Deflections'!$P$23),0.125),MROUND('Redeck Deflections'!$P$23,0.125)*-1) -> 0.125 | L147: 2.1 | N147: 2.1 | O147: ='Redeck Deflections'!$E$6*0.1 -> 12 | P147: =Reference!$D$359+Reference!$C$360 -> 122 | V147: =SUM('Redeck Deflections'!$W$23:$AA$23) -> -0.0806 | W147: =IF('Redeck Deflections'!$AB$23<0,MROUND(ABS('Redeck Deflections'!$AB$23),0.125),MROUND('Redeck Deflections'!$AB$23,0.125)*-1) -> 0.125 | X147: 2.1
B148: 2.2 | C148: ='Redeck Deflections'!$E$6*0.2 -> 24 | D148: =Reference!$C$361+Reference!$D$59 -> 134 | J148: =SUM('Redeck Deflections'!$K$24:$O$24) -> -0.2448 | K148: =IF('Redeck Deflections'!$P$24<0,MROUND(ABS('Redeck Deflections'!$P$24),0.125),MROUND('Redeck Deflections'!$P$24,0.125)*-1) -> 0.25 | L148: 2.2 | N148: 2.2 | O148: ='Redeck Deflections'!$E$6*0.2 -> 24 | P148: =Reference!$C$361+Reference!$D$59 -> 134 | V148: =SUM('Redeck Deflections'!$W$24:$AA$24) -> -0.2448 | W148: =IF('Redeck Deflections'!$AB$24<0,MROUND(ABS('Redeck Deflections'!$AB$24),0.125),MROUND('Redeck Deflections'!$AB$24,0.125)*-1) -> 0.25 | X148: 2.2
B149: 2.3 | C149: ='Redeck Deflections'!$E$6*0.3 -> 36 | D149: =Reference!$C$362+Reference!$D$359 -> 146 | J149: =SUM('Redeck Deflections'!$K$25:$O$25) -> -0.4339 | K149: =IF('Redeck Deflections'!$P$25<0,MROUND(ABS('Redeck Deflections'!$P$25),0.125),MROUND('Redeck Deflections'!$P$25,0.125)*-1) -> 0.375 | L149: 2.3 | N149: 2.3 | O149: ='Redeck Deflections'!$E$6*0.3 -> 36 | P149: =Reference!$C$362+Reference!$D$359 -> 146 | V149: =SUM('Redeck Deflections'!$W$25:$AA$25) -> -0.4339 | W149: =IF('Redeck Deflections'!$AB$25<0,MROUND(ABS('Redeck Deflections'!$AB$25),0.125),MROUND('Redeck Deflections'!$AB$25,0.125)*-1) -> 0.375 | X149: 2.3
B150: 2.4 | C150: ='Redeck Deflections'!$E$6*0.4 -> 48 | D150: =Reference!$C$363+Reference!$D$359 -> 158 | J150: =SUM('Redeck Deflections'!$K$26:$O$26) -> -0.5767 | K150: =IF('Redeck Deflections'!$P$26<0,MROUND(ABS('Redeck Deflections'!$P$26),0.125),MROUND('Redeck Deflections'!$P$26,0.125)*-1) -> 0.625 | L150: 2.4 | N150: 2.4 | O150: ='Redeck Deflections'!$E$6*0.4 -> 48 | P150: =Reference!$C$363+Reference!$D$359 -> 158 | V150: =SUM('Redeck Deflections'!$W$26:$AA$26) -> -0.5767 | W150: =IF('Redeck Deflections'!$AB$26<0,MROUND(ABS('Redeck Deflections'!$AB$26),0.125),MROUND('Redeck Deflections'!$AB$26,0.125)*-1) -> 0.625 | X150: 2.4
B151: 2.5 | C151: ='Redeck Deflections'!$E$6*0.5 -> 60 | D151: =Reference!$C$364+Reference!$D$359 -> 170 | J151: =SUM('Redeck Deflections'!$K$27:$O$27) -> -0.6291 | K151: =IF('Redeck Deflections'!$P$27<0,MROUND(ABS('Redeck Deflections'!$P$27),0.125),MROUND('Redeck Deflections'!$P$27,0.125)*-1) -> 0.625 | L151: 2.5 | N151: 2.5 | O151: ='Redeck Deflections'!$E$6*0.5 -> 60 | P151: =Reference!$C$364+Reference!$D$359 -> 170 | V151: =SUM('Redeck Deflections'!$W$27:$AA$27) -> -0.6291 | W151: =IF('Redeck Deflections'!$AB$27<0,MROUND(ABS('Redeck Deflections'!$AB$27),0.125),MROUND('Redeck Deflections'!$AB$27,0.125)*-1) -> 0.625 | X151: 2.5
B152: 2.6 | C152: ='Redeck Deflections'!$E$6*0.6 -> 72 | D152: =Reference!$C$365+Reference!$D$359 -> 182 | J152: =SUM('Redeck Deflections'!$K$28:$O$28) -> -0.5767 | K152: =IF('Redeck Deflections'!$P$28<0,MROUND(ABS('Redeck Deflections'!$P$28),0.125),MROUND('Redeck Deflections'!$P$28,0.125)*-1) -> 0.625 | L152: 2.6 | N152: 2.6 | O152: ='Redeck Deflections'!$E$6*0.6 -> 72 | P152: =Reference!$C$365+Reference!$D$359 -> 182 | V152: =SUM('Redeck Deflections'!$W$28:$AA$28) -> -0.5767 | W152: =IF('Redeck Deflections'!$AB$28<0,MROUND(ABS('Redeck Deflections'!$AB$28),0.125),MROUND('Redeck Deflections'!$AB$28,0.125)*-1) -> 0.625 | X152: 2.6
B153: 2.7 | C153: ='Redeck Deflections'!$E$6*0.7 -> 84 | D153: =Reference!$C$366+Reference!$D$359 -> 194 | J153: =SUM('Redeck Deflections'!$K$29:$O$29) -> -0.4339 | K153: =IF('Redeck Deflections'!$P$29<0,MROUND(ABS('Redeck Deflections'!$P$29),0.125),MROUND('Redeck Deflections'!$P$29,0.125)*-1) -> 0.375 | L153: 2.7 | N153: 2.7 | O153: ='Redeck Deflections'!$E$6*0.7 -> 84 | P153: =Reference!$C$366+Reference!$D$359 -> 194 | V153: =SUM('Redeck Deflections'!$W$29:$AA$29) -> -0.4339 | W153: =IF('Redeck Deflections'!$AB$29<0,MROUND(ABS('Redeck Deflections'!$AB$29),0.125),MROUND('Redeck Deflections'!$AB$29,0.125)*-1) -> 0.375 | X153: 2.7
B154: 2.8 | C154: ='Redeck Deflections'!$E$6*0.8 -> 96 | D154: =Reference!$C$367+Reference!$D$359 -> 206 | J154: =SUM('Redeck Deflections'!$K$30:$O$30) -> -0.2448 | K154: =IF('Redeck Deflections'!$P$30<0,MROUND(ABS('Redeck Deflections'!$P$30),0.125),MROUND('Redeck Deflections'!$P$30,0.125)*-1) -> 0.25 | L154: 2.8 | N154: 2.8 | O154: ='Redeck Deflections'!$E$6*0.8 -> 96 | P154: =Reference!$C$367+Reference!$D$359 -> 206 | V154: =SUM('Redeck Deflections'!$W$30:$AA$30) -> -0.2448 | W154: =IF('Redeck Deflections'!$AB$30<0,MROUND(ABS('Redeck Deflections'!$AB$30),0.125),MROUND('Redeck Deflections'!$AB$30,0.125)*-1) -> 0.25 | X154: 2.8
B155: 2.9 | C155: ='Redeck Deflections'!$E$6*0.9 -> 108 | D155: =Reference!$C$368+Reference!$D$359 -> 218 | J155: =SUM('Redeck Deflections'!$K$31:$O$31) -> -0.0806 | K155: =IF('Redeck Deflections'!$P$31<0,MROUND(ABS('Redeck Deflections'!$P$31),0.125),MROUND('Redeck Deflections'!$P$31,0.125)*-1) -> 0.125 | L155: 2.9 | N155: 2.9 | O155: ='Redeck Deflections'!$E$6*0.9 -> 108 | P155: =Reference!$C$368+Reference!$D$359 -> 218 | V155: =SUM('Redeck Deflections'!$W$31:$AA$31) -> -0.0806 | W155: =IF('Redeck Deflections'!$AB$31<0,MROUND(ABS('Redeck Deflections'!$AB$31),0.125),MROUND('Redeck Deflections'!$AB$31,0.125)*-1) -> 0.125 | X155: 2.9
B156: 3 | C156: ='Redeck Deflections'!$E$6*1 -> 120 | D156: =Reference!$C$369+Reference!$D$359 -> 230 | J156: =SUM('Redeck Deflections'!$K$32:$O$32) -> 0 | K156: =IF('Redeck Deflections'!$P$32<0,MROUND(ABS('Redeck Deflections'!$P$32),0.125),MROUND('Redeck Deflections'!$P$32,0.125)*-1) -> 0 | L156: 3 | N156: 3 | O156: ='Redeck Deflections'!$E$6*1 -> 120 | P156: =Reference!$C$369+Reference!$D$359 -> 230 | V156: =SUM('Redeck Deflections'!$W$32:$AA$32) -> 0 | W156: =IF('Redeck Deflections'!$AB$32<0,MROUND(ABS('Redeck Deflections'!$AB$32),0.125),MROUND('Redeck Deflections'!$AB$32,0.125)*-1) -> 0 | X156: 3
B157: 3 | C157: 0 | D157: =Reference!$D$369 -> 230 | J157: =SUM('Redeck Deflections'!$K$33:$O$33) -> 0 | K157: =IF('Redeck Deflections'!$P$33<0,MROUND(ABS('Redeck Deflections'!$P$33),0.125),MROUND('Redeck Deflections'!$P$33,0.125)*-1) -> 0 | L157: 3 | N157: 3 | O157: 0 | P157: =Reference!$D$369 -> 230 | V157: =SUM('Redeck Deflections'!$W$33:$AA$33) -> 0 | W157: =IF('Redeck Deflections'!$AB$33<0,MROUND(ABS('Redeck Deflections'!$AB$33),0.125),MROUND('Redeck Deflections'!$AB$33,0.125)*-1) -> 0 | X157: 3
B158: 3.1 | C158: ='Redeck Deflections'!$F$6*0.1 -> 11 | D158: =Reference!$D$370+Reference!$C$371 -> 241 | J158: =SUM('Redeck Deflections'!$K$34:$O$34) -> -0.0257 | K158: =IF('Redeck Deflections'!$P$34<0,MROUND(ABS('Redeck Deflections'!$P$34),0.125),MROUND('Redeck Deflections'!$P$34,0.125)*-1) -> 0 | L158: 3.1 | N158: 3.1 | O158: ='Redeck Deflections'!$F$6*0.1 -> 11 | P158: =Reference!$D$370+Reference!$C$371 -> 241 | V158: =SUM('Redeck Deflections'!$W$34:$AA$34) -> -0.0257 | W158: =IF('Redeck Deflections'!$AB$34<0,MROUND(ABS('Redeck Deflections'!$AB$34),0.125),MROUND('Redeck Deflections'!$AB$34,0.125)*-1) -> 0 | X158: 3.1
B159: 3.2 | C159: ='Redeck Deflections'!$F$6*0.2 -> 22 | D159: =Reference!$C$372+Reference!$D$370 -> 252 | J159: =SUM('Redeck Deflections'!$K$35:$O$35) -> -0.1076 | K159: =IF('Redeck Deflections'!$P$35<0,MROUND(ABS('Redeck Deflections'!$P$35),0.125),MROUND('Redeck Deflections'!$P$35,0.125)*-1) -> 0.125 | L159: 3.2 | N159: 3.2 | O159: ='Redeck Deflections'!$F$6*0.2 -> 22 | P159: =Reference!$C$372+Reference!$D$370 -> 252 | V159: =SUM('Redeck Deflections'!$W$35:$AA$35) -> -0.1076 | W159: =IF('Redeck Deflections'!$AB$35<0,MROUND(ABS('Redeck Deflections'!$AB$35),0.125),MROUND('Redeck Deflections'!$AB$35,0.125)*-1) -> 0.125 | X159: 3.2
B160: 3.3 | C160: ='Redeck Deflections'!$F$6*0.3 -> 33 | D160: =Reference!$C$373+Reference!$D$370 -> 263 | J160: =SUM('Redeck Deflections'!$K$36:$O$36) -> -0.2244 | K160: =IF('Redeck Deflections'!$P$36<0,MROUND(ABS('Redeck Deflections'!$P$36),0.125),MROUND('Redeck Deflections'!$P$36,0.125)*-1) -> 0.25 | L160: 3.3 | N160: 3.3 | O160: ='Redeck Deflections'!$F$6*0.3 -> 33 | P160: =Reference!$C$373+Reference!$D$370 -> 263 | V160: =SUM('Redeck Deflections'!$W$36:$AA$36) -> -0.2244 | W160: =IF('Redeck Deflections'!$AB$36<0,MROUND(ABS('Redeck Deflections'!$AB$36),0.125),MROUND('Redeck Deflections'!$AB$36,0.125)*-1) -> 0.25 | X160: 3.3
B161: 3.4 | C161: ='Redeck Deflections'!$F$6*0.4 -> 44 | D161: =Reference!$C$374+Reference!$D$370 -> 274 | J161: =SUM('Redeck Deflections'!$K$37:$O$37) -> -0.3401 | K161: =IF('Redeck Deflections'!$P$37<0,MROUND(ABS('Redeck Deflections'!$P$37),0.125),MROUND('Redeck Deflections'!$P$37,0.125)*-1) -> 0.375 | L161: 3.4 | N161: 3.4 | O161: ='Redeck Deflections'!$F$6*0.4 -> 44 | P161: =Reference!$C$374+Reference!$D$370 -> 274 | V161: =SUM('Redeck Deflections'!$W$37:$AA$37) -> -0.3401 | W161: =IF('Redeck Deflections'!$AB$37<0,MROUND(ABS('Redeck Deflections'!$AB$37),0.125),MROUND('Redeck Deflections'!$AB$37,0.125)*-1) -> 0.375 | X161: 3.4
B162: 3.5 | C162: ='Redeck Deflections'!$F$6*0.5 -> 55 | D162: =Reference!$C$375+Reference!$D$370 -> 285 | J162: =SUM('Redeck Deflections'!$K$38:$O$38) -> -0.4234 | K162: =IF('Redeck Deflections'!$P$38<0,MROUND(ABS('Redeck Deflections'!$P$38),0.125),MROUND('Redeck Deflections'!$P$38,0.125)*-1) -> 0.375 | L162: 3.5 | N162: 3.5 | O162: ='Redeck Deflections'!$F$6*0.5 -> 55 | P162: =Reference!$C$375+Reference!$D$370 -> 285 | V162: =SUM('Redeck Deflections'!$W$38:$AA$38) -> -0.4234 | W162: =IF('Redeck Deflections'!$AB$38<0,MROUND(ABS('Redeck Deflections'!$AB$38),0.125),MROUND('Redeck Deflections'!$AB$38,0.125)*-1) -> 0.375 | X162: 3.5
B163: 3.6 | C163: ='Redeck Deflections'!$F$6*0.6 -> 66 | D163: =Reference!$C$376+Reference!$D$370 -> 296 | J163: =SUM('Redeck Deflections'!$K$39:$O$39) -> -0.4537 | K163: =IF('Redeck Deflections'!$P$39<0,MROUND(ABS('Redeck Deflections'!$P$39),0.125),MROUND('Redeck Deflections'!$P$39,0.125)*-1) -> 0.5 | L163: 3.6 | N163: 3.6 | O163: ='Redeck Deflections'!$F$6*0.6 -> 66 | P163: =Reference!$C$376+Reference!$D$370 -> 296 | V163: =SUM('Redeck Deflections'!$W$39:$AA$39) -> -0.4537 | W163: =IF('Redeck Deflections'!$AB$39<0,MROUND(ABS('Redeck Deflections'!$AB$39),0.125),MROUND('Redeck Deflections'!$AB$39,0.125)*-1) -> 0.5 | X163: 3.6
B164: 3.7 | C164: ='Redeck Deflections'!$F$6*0.7 -> 77 | D164: =Reference!$C$377+Reference!$D$370 -> 307 | J164: =SUM('Redeck Deflections'!$K$40:$O$40) -> -0.4211 | K164: =IF('Redeck Deflections'!$P$40<0,MROUND(ABS('Redeck Deflections'!$P$40),0.125),MROUND('Redeck Deflections'!$P$40,0.125)*-1) -> 0.375 | L164: 3.7 | N164: 3.7 | O164: ='Redeck Deflections'!$F$6*0.7 -> 77 | P164: =Reference!$C$377+Reference!$D$370 -> 307 | V164: =SUM('Redeck Deflections'!$W$40:$AA$40) -> -0.4211 | W164: =IF('Redeck Deflections'!$AB$40<0,MROUND(ABS('Redeck Deflections'!$AB$40),0.125),MROUND('Redeck Deflections'!$AB$40,0.125)*-1) -> 0.375 | X164: 3.7
B165: 3.8 | C165: ='Redeck Deflections'!$F$6*0.8 -> 88 | D165: =Reference!$C$378+Reference!$D$370 -> 318 | J165: =SUM('Redeck Deflections'!$K$41:$O$41) -> -0.3256 | K165: =IF('Redeck Deflections'!$P$41<0,MROUND(ABS('Redeck Deflections'!$P$41),0.125),MROUND('Redeck Deflections'!$P$41,0.125)*-1) -> 0.375 | L165: 3.8 | N165: 3.8 | O165: ='Redeck Deflections'!$F$6*0.8 -> 88 | P165: =Reference!$C$378+Reference!$D$370 -> 318 | V165: =SUM('Redeck Deflections'!$W$41:$AA$41) -> -0.3256 | W165: =IF('Redeck Deflections'!$AB$41<0,MROUND(ABS('Redeck Deflections'!$AB$41),0.125),MROUND('Redeck Deflections'!$AB$41,0.125)*-1) -> 0.375 | X165: 3.8
B166: 3.9 | C166: ='Redeck Deflections'!$F$6*0.9 -> 99 | D166: =Reference!$C$379+Reference!$D$370 -> 329 | J166: =SUM('Redeck Deflections'!$K$42:$O$42) -> -0.1781 | K166: =IF('Redeck Deflections'!$P$42<0,MROUND(ABS('Redeck Deflections'!$P$42),0.125),MROUND('Redeck Deflections'!$P$42,0.125)*-1) -> 0.125 | L166: 3.9 | N166: 3.9 | O166: ='Redeck Deflections'!$F$6*0.9 -> 99 | P166: =Reference!$C$379+Reference!$D$370 -> 329 | V166: =SUM('Redeck Deflections'!$W$42:$AA$42) -> -0.1781 | W166: =IF('Redeck Deflections'!$AB$42<0,MROUND(ABS('Redeck Deflections'!$AB$42),0.125),MROUND('Redeck Deflections'!$AB$42,0.125)*-1) -> 0.125 | X166: 3.9
B167: 4 | C167: ='Redeck Deflections'!$F$6*1 -> 110 | D167: =Reference!$C$380+Reference!$D$370 -> 340 | J167: =SUM('Redeck Deflections'!$K$43:$O$43) -> 0 | K167: =IF('Redeck Deflections'!$P$43<0,MROUND(ABS('Redeck Deflections'!$P$43),0.125),MROUND('Redeck Deflections'!$P$43,0.125)*-1) -> 0 | L167: 4 | N167: 4 | O167: ='Redeck Deflections'!$F$6*1 -> 110 | P167: =Reference!$C$380+Reference!$D$370 -> 340 | V167: =SUM('Redeck Deflections'!$W$43:$AA$43) -> 0 | W167: =IF('Redeck Deflections'!$AB$43<0,MROUND(ABS('Redeck Deflections'!$AB$43),0.125),MROUND('Redeck Deflections'!$AB$43,0.125)*-1) -> 0 | X167: 4
B168: 4 | C168: 0 | D168: =Reference!$D$380 -> 340 | J168: =SUM('Redeck Deflections'!$K$44:$O$44) -> 0 | K168: =IF('Redeck Deflections'!$P$44<0,MROUND(ABS('Redeck Deflections'!$P$44),0.125),MROUND('Redeck Deflections'!$P$44,0.125)*-1) -> 0 | L168: 4 | N168: 4 | O168: 0 | P168: =Reference!$D$380 -> 340 | V168: =SUM('Redeck Deflections'!$W$44:$AA$44) -> 0 | W168: =IF('Redeck Deflections'!$AB$44<0,MROUND(ABS('Redeck Deflections'!$AB$44),0.125),MROUND('Redeck Deflections'!$AB$44,0.125)*-1) -> 0 | X168: 4
B169: 4.1 | C169: ='Redeck Deflections'!$G$6*0.1 -> 0 | D169: =Reference!$D$381+Reference!$C$382 -> 340 | J169: =SUM('Redeck Deflections'!$K$45:$O$45) -> 0 | K169: =IF('Redeck Deflections'!$P$45<0,MROUND(ABS('Redeck Deflections'!$P$45),0.125),MROUND('Redeck Deflections'!$P$45,0.125)*-1) -> 0 | L169: 4.1 | N169: 4.1 | O169: ='Redeck Deflections'!$G$6*0.1 -> 0 | P169: =Reference!$D$381+Reference!$C$382 -> 340 | V169: =SUM('Redeck Deflections'!$W$45:$AA$45) -> 0 | W169: =IF('Redeck Deflections'!$AB$45<0,MROUND(ABS('Redeck Deflections'!$AB$45),0.125),MROUND('Redeck Deflections'!$AB$45,0.125)*-1) -> 0 | X169: 4.1
B170: 4.2 | C170: ='Redeck Deflections'!$G$6*0.2 -> 0 | D170: =Reference!$C$383+Reference!$D$381 -> 340 | J170: =SUM('Redeck Deflections'!$K$46:$O$46) -> 0 | K170: =IF('Redeck Deflections'!$P$46<0,MROUND(ABS('Redeck Deflections'!$P$46),0.125),MROUND('Redeck Deflections'!$P$46,0.125)*-1) -> 0 | L170: 4.2 | N170: 4.2 | O170: ='Redeck Deflections'!$G$6*0.2 -> 0 | P170: =Reference!$C$383+Reference!$D$381 -> 340 | V170: =SUM('Redeck Deflections'!$W$46:$AA$46) -> 0 | W170: =IF('Redeck Deflections'!$AB$46<0,MROUND(ABS('Redeck Deflections'!$AB$46),0.125),MROUND('Redeck Deflections'!$AB$46,0.125)*-1) -> 0 | X170: 4.2
B171: 4.3 | C171: ='Redeck Deflections'!$G$6*0.3 -> 0 | D171: =Reference!$C$384+Reference!$D$381 -> 340 | J171: =SUM('Redeck Deflections'!$K$47:$O$47) -> 0 | K171: =IF('Redeck Deflections'!$P$47<0,MROUND(ABS('Redeck Deflections'!$P$47),0.125),MROUND('Redeck Deflections'!$P$47,0.125)*-1) -> 0 | L171: 4.3 | N171: 4.3 | O171: ='Redeck Deflections'!$G$6*0.3 -> 0 | P171: =Reference!$C$384+Reference!$D$381 -> 340 | V171: =SUM('Redeck Deflections'!$W$47:$AA$47) -> 0 | W171: =IF('Redeck Deflections'!$AB$47<0,MROUND(ABS('Redeck Deflections'!$AB$47),0.125),MROUND('Redeck Deflections'!$AB$47,0.125)*-1) -> 0 | X171: 4.3
B172: 4.4 | C172: ='Redeck Deflections'!$G$6*0.4 -> 0 | D172: =Reference!$C$385+Reference!$D$381 -> 340 | J172: =SUM('Redeck Deflections'!$K$48:$O$48) -> 0 | K172: =IF('Redeck Deflections'!$P$48<0,MROUND(ABS('Redeck Deflections'!$P$48),0.125),MROUND('Redeck Deflections'!$P$48,0.125)*-1) -> 0 | L172: 4.4 | N172: 4.4 | O172: ='Redeck Deflections'!$G$6*0.4 -> 0 | P172: =Reference!$C$385+Reference!$D$381 -> 340 | V172: =SUM('Redeck Deflections'!$W$48:$AA$48) -> 0 | W172: =IF('Redeck Deflections'!$AB$48<0,MROUND(ABS('Redeck Deflections'!$AB$48),0.125),MROUND('Redeck Deflections'!$AB$48,0.125)*-1) -> 0 | X172: 4.4
B173: 4.5 | C173: ='Redeck Deflections'!$G$6*0.5 -> 0 | D173: =Reference!$C$386+Reference!$D$381 -> 340 | J173: =SUM('Redeck Deflections'!$K$49:$O$49) -> 0 | K173: =IF('Redeck Deflections'!$P$49<0,MROUND(ABS('Redeck Deflections'!$P$49),0.125),MROUND('Redeck Deflections'!$P$49,0.125)*-1) -> 0 | L173: 4.5 | N173: 4.5 | O173: ='Redeck Deflections'!$G$6*0.5 -> 0 | P173: =Reference!$C$386+Reference!$D$381 -> 340 | V173: =SUM('Redeck Deflections'!$W$49:$AA$49) -> 0 | W173: =IF('Redeck Deflections'!$AB$49<0,MROUND(ABS('Redeck Deflections'!$AB$49),0.125),MROUND('Redeck Deflections'!$AB$49,0.125)*-1) -> 0 | X173: 4.5
B174: 4.6 | C174: ='Redeck Deflections'!$G$6*0.6 -> 0 | D174: =Reference!$C$387+Reference!$D$381 -> 340 | J174: =SUM('Redeck Deflections'!$K$50:$O$50) -> 0 | K174: =IF('Redeck Deflections'!$P$50<0,MROUND(ABS('Redeck Deflections'!$P$50),0.125),MROUND('Redeck Deflections'!$P$50,0.125)*-1) -> 0 | L174: 4.6 | N174: 4.6 | O174: ='Redeck Deflections'!$G$6*0.6 -> 0 | P174: =Reference!$C$387+Reference!$D$381 -> 340 | V174: =SUM('Redeck Deflections'!$W$50:$AA$50) -> 0 | W174: =IF('Redeck Deflections'!$AB$50<0,MROUND(ABS('Redeck Deflections'!$AB$50),0.125),MROUND('Redeck Deflections'!$AB$50,0.125)*-1) -> 0 | X174: 4.6
B175: 4.7 | C175: ='Redeck Deflections'!$G$6*0.7 -> 0 | D175: =Reference!$C$388+Reference!$D$381 -> 340 | J175: =SUM('Redeck Deflections'!$K$51:$O$51) -> 0 | K175: =IF('Redeck Deflections'!$P$51<0,MROUND(ABS('Redeck Deflections'!$P$51),0.125),MROUND('Redeck Deflections'!$P$51,0.125)*-1) -> 0 | L175: 4.7 | N175: 4.7 | O175: ='Redeck Deflections'!$G$6*0.7 -> 0 | P175: =Reference!$C$388+Reference!$D$381 -> 340 | V175: =SUM('Redeck Deflections'!$W$51:$AA$51) -> 0 | W175: =IF('Redeck Deflections'!$AB$51<0,MROUND(ABS('Redeck Deflections'!$AB$51),0.125),MROUND('Redeck Deflections'!$AB$51,0.125)*-1) -> 0 | X175: 4.7
B176: 4.8 | C176: ='Redeck Deflections'!$G$6*0.8 -> 0 | D176: =Reference!$C$389+Reference!$D$381 -> 340 | J176: =SUM('Redeck Deflections'!$K$52:$O$52) -> 0 | K176: =IF('Redeck Deflections'!$P$52<0,MROUND(ABS('Redeck Deflections'!$P$52),0.125),MROUND('Redeck Deflections'!$P$52,0.125)*-1) -> 0 | L176: 4.8 | N176: 4.8 | O176: ='Redeck Deflections'!$G$6*0.8 -> 0 | P176: =Reference!$C$389+Reference!$D$381 -> 340 | V176: =SUM('Redeck Deflections'!$W$52:$AA$52) -> 0 | W176: =IF('Redeck Deflections'!$AB$52<0,MROUND(ABS('Redeck Deflections'!$AB$52),0.125),MROUND('Redeck Deflections'!$AB$52,0.125)*-1) -> 0 | X176: 4.8
B177: 4.9 | C177: ='Redeck Deflections'!$G$6*0.9 -> 0 | D177: =Reference!$C$390+Reference!$D$381 -> 340 | J177: =SUM('Redeck Deflections'!$K$53:$O$53) -> 0 | K177: =IF('Redeck Deflections'!$P$53<0,MROUND(ABS('Redeck Deflections'!$P$53),0.125),MROUND('Redeck Deflections'!$P$53,0.125)*-1) -> 0 | L177: 4.9 | N177: 4.9 | O177: ='Redeck Deflections'!$G$6*0.9 -> 0 | P177: =Reference!$C$390+Reference!$D$381 -> 340 | V177: =SUM('Redeck Deflections'!$W$53:$AA$53) -> 0 | W177: =IF('Redeck Deflections'!$AB$53<0,MROUND(ABS('Redeck Deflections'!$AB$53),0.125),MROUND('Redeck Deflections'!$AB$53,0.125)*-1) -> 0 | X177: 4.9
B178: 5 | C178: ='Redeck Deflections'!$G$6*1 -> 0 | D178: =Reference!$C$391+Reference!$D$381 -> 340 | J178: =SUM('Redeck Deflections'!$K$54:$O$54) -> 0 | K178: =IF('Redeck Deflections'!$P$54<0,MROUND(ABS('Redeck Deflections'!$P$54),0.125),MROUND('Redeck Deflections'!$P$54,0.125)*-1) -> 0 | L178: 5 | N178: 5 | O178: ='Redeck Deflections'!$G$6*1 -> 0 | P178: =Reference!$C$391+Reference!$D$381 -> 340 | V178: =SUM('Redeck Deflections'!$W$54:$AA$54) -> 0 | W178: =IF('Redeck Deflections'!$AB$54<0,MROUND(ABS('Redeck Deflections'!$AB$54),0.125),MROUND('Redeck Deflections'!$AB$54,0.125)*-1) -> 0 | X178: 5
B179: 5 | C179: 0 | D179: =Reference!$D$391 -> 340 | J179: =SUM('Redeck Deflections'!$K$55:$O$55) -> 0 | K179: =IF('Redeck Deflections'!$P$55<0,MROUND(ABS('Redeck Deflections'!$P$55),0.125),MROUND('Redeck Deflections'!$P$55,0.125)*-1) -> 0 | L179: 5 | N179: 5 | O179: 0 | P179: =Reference!$D$391 -> 340 | V179: =SUM('Redeck Deflections'!$W$55:$AA$55) -> 0 | W179: =IF('Redeck Deflections'!$AB$55<0,MROUND(ABS('Redeck Deflections'!$AB$55),0.125),MROUND('Redeck Deflections'!$AB$55,0.125)*-1) -> 0 | X179: 5
B180: 5.1 | C180: ='Redeck Deflections'!$H$6*0.1 -> 0 | D180: =Reference!$D$392+Reference!$C$393 -> 340 | J180: =SUM('Redeck Deflections'!$K$56:$O$56) -> 0 | K180: =IF('Redeck Deflections'!$P$56<0,MROUND(ABS('Redeck Deflections'!$P$56),0.125),MROUND('Redeck Deflections'!$P$56,0.125)*-1) -> 0 | L180: 5.1 | N180: 5.1 | O180: ='Redeck Deflections'!$H$6*0.1 -> 0 | P180: =Reference!$D$392+Reference!$C$393 -> 340 | V180: =SUM('Redeck Deflections'!$W$56:$AA$56) -> 0 | W180: =IF('Redeck Deflections'!$AB$56<0,MROUND(ABS('Redeck Deflections'!$AB$56),0.125),MROUND('Redeck Deflections'!$AB$56,0.125)*-1) -> 0 | X180: 5.1
B181: 5.2 | C181: ='Redeck Deflections'!$H$6*0.2 -> 0 | D181: =Reference!$C$394+Reference!$D$392 -> 340 | J181: =SUM('Redeck Deflections'!$K$57:$O$57) -> 0 | K181: =IF('Redeck Deflections'!$P$57<0,MROUND(ABS('Redeck Deflections'!$P$57),0.125),MROUND('Redeck Deflections'!$P$57,0.125)*-1) -> 0 | L181: 5.2 | N181: 5.2 | O181: ='Redeck Deflections'!$H$6*0.2 -> 0 | P181: =Reference!$C$394+Reference!$D$392 -> 340 | V181: =SUM('Redeck Deflections'!$W$57:$AA$57) -> 0 | W181: =IF('Redeck Deflections'!$AB$57<0,MROUND(ABS('Redeck Deflections'!$AB$57),0.125),MROUND('Redeck Deflections'!$AB$57,0.125)*-1) -> 0 | X181: 5.2
B182: 5.3 | C182: ='Redeck Deflections'!$H$6*0.3 -> 0 | D182: =Reference!$C$395+Reference!$D$392 -> 340 | J182: =SUM('Redeck Deflections'!$K$58:$O$58) -> 0 | K182: =IF('Redeck Deflections'!$P$58<0,MROUND(ABS('Redeck Deflections'!$P$58),0.125),MROUND('Redeck Deflections'!$P$58,0.125)*-1) -> 0 | L182: 5.3 | N182: 5.3 | O182: ='Redeck Deflections'!$H$6*0.3 -> 0 | P182: =Reference!$C$395+Reference!$D$392 -> 340 | V182: =SUM('Redeck Deflections'!$W$58:$AA$58) -> 0 | W182: =IF('Redeck Deflections'!$AB$58<0,MROUND(ABS('Redeck Deflections'!$AB$58),0.125),MROUND('Redeck Deflections'!$AB$58,0.125)*-1) -> 0 | X182: 5.3
B183: 5.4 | C183: ='Redeck Deflections'!$H$6*0.4 -> 0 | D183: =Reference!$C$396+Reference!$D$392 -> 340 | J183: =SUM('Redeck Deflections'!$K$59:$O$59) -> 0 | K183: =IF('Redeck Deflections'!$P$59<0,MROUND(ABS('Redeck Deflections'!$P$59),0.125),MROUND('Redeck Deflections'!$P$59,0.125)*-1) -> 0 | L183: 5.4 | N183: 5.4 | O183: ='Redeck Deflections'!$H$6*0.4 -> 0 | P183: =Reference!$C$396+Reference!$D$392 -> 340 | V183: =SUM('Redeck Deflections'!$W$59:$AA$59) -> 0 | W183: =IF('Redeck Deflections'!$AB$59<0,MROUND(ABS('Redeck Deflections'!$AB$59),0.125),MROUND('Redeck Deflections'!$AB$59,0.125)*-1) -> 0 | X183: 5.4
B184: 5.5 | C184: ='Redeck Deflections'!$H$6*0.5 -> 0 | D184: =Reference!$C$397+Reference!$D$392 -> 340 | J184: =SUM('Redeck Deflections'!$K$60:$O$60) -> 0 | K184: =IF('Redeck Deflections'!$P$60<0,MROUND(ABS('Redeck Deflections'!$P$60),0.125),MROUND('Redeck Deflections'!$P$60,0.125)*-1) -> 0 | L184: 5.5 | N184: 5.5 | O184: ='Redeck Deflections'!$H$6*0.5 -> 0 | P184: =Reference!$C$397+Reference!$D$392 -> 340 | V184: =SUM('Redeck Deflections'!$W$60:$AA$60) -> 0 | W184: =IF('Redeck Deflections'!$AB$60<0,MROUND(ABS('Redeck Deflections'!$AB$60),0.125),MROUND('Redeck Deflections'!$AB$60,0.125)*-1) -> 0 | X184: 5.5
B185: 5.6 | C185: ='Redeck Deflections'!$H$6*0.6 -> 0 | D185: =Reference!$C$398+Reference!$D$392 -> 340 | J185: =SUM('Redeck Deflections'!$K$61:$O$61) -> 0 | K185: =IF('Redeck Deflections'!$P$61<0,MROUND(ABS('Redeck Deflections'!$P$61),0.125),MROUND('Redeck Deflections'!$P$61,0.125)*-1) -> 0 | L185: 5.6 | N185: 5.6 | O185: ='Redeck Deflections'!$H$6*0.6 -> 0 | P185: =Reference!$C$398+Reference!$D$392 -> 340 | V185: =SUM('Redeck Deflections'!$W$61:$AA$61) -> 0 | W185: =IF('Redeck Deflections'!$AB$61<0,MROUND(ABS('Redeck Deflections'!$AB$61),0.125),MROUND('Redeck Deflections'!$AB$61,0.125)*-1) -> 0 | X185: 5.6
B186: 5.7 | C186: ='Redeck Deflections'!$H$6*0.7 -> 0 | D186: =Reference!$C$399+Reference!$D$392 -> 340 | J186: =SUM('Redeck Deflections'!$K$62:$O$62) -> 0 | K186: =IF('Redeck Deflections'!$P$62<0,MROUND(ABS('Redeck Deflections'!$P$62),0.125),MROUND('Redeck Deflections'!$P$62,0.125)*-1) -> 0 | L186: 5.7 | N186: 5.7 | O186: ='Redeck Deflections'!$H$6*0.7 -> 0 | P186: =Reference!$C$399+Reference!$D$392 -> 340 | V186: =SUM('Redeck Deflections'!$W$62:$AA$62) -> 0 | W186: =IF('Redeck Deflections'!$AB$62<0,MROUND(ABS('Redeck Deflections'!$AB$62),0.125),MROUND('Redeck Deflections'!$AB$62,0.125)*-1) -> 0 | X186: 5.7
B187: 5.8 | C187: ='Redeck Deflections'!$H$6*0.8 -> 0 | D187: =Reference!$C$400+Reference!$D$392 -> 340 | J187: =SUM('Redeck Deflections'!$K$63:$O$63) -> 0 | K187: =IF('Redeck Deflections'!$P$63<0,MROUND(ABS('Redeck Deflections'!$P$63),0.125),MROUND('Redeck Deflections'!$P$63,0.125)*-1) -> 0 | L187: 5.8 | N187: 5.8 | O187: ='Redeck Deflections'!$H$6*0.8 -> 0 | P187: =Reference!$C$400+Reference!$D$392 -> 340 | V187: =SUM('Redeck Deflections'!$W$63:$AA$63) -> 0 | W187: =IF('Redeck Deflections'!$AB$63<0,MROUND(ABS('Redeck Deflections'!$AB$63),0.125),MROUND('Redeck Deflections'!$AB$63,0.125)*-1) -> 0 | X187: 5.8
B188: 5.9 | C188: ='Redeck Deflections'!$H$6*0.9 -> 0 | D188: =Reference!$C$401+Reference!$D$392 -> 340 | J188: =SUM('Redeck Deflections'!$K$64:$O$64) -> 0 | K188: =IF('Redeck Deflections'!$P$64<0,MROUND(ABS('Redeck Deflections'!$P$64),0.125),MROUND('Redeck Deflections'!$P$64,0.125)*-1) -> 0 | L188: 5.9 | N188: 5.9 | O188: ='Redeck Deflections'!$H$6*0.9 -> 0 | P188: =Reference!$C$401+Reference!$D$392 -> 340 | V188: =SUM('Redeck Deflections'!$W$64:$AA$64) -> 0 | W188: =IF('Redeck Deflections'!$AB$64<0,MROUND(ABS('Redeck Deflections'!$AB$64),0.125),MROUND('Redeck Deflections'!$AB$64,0.125)*-1) -> 0 | X188: 5.9
B189: 6 | C189: ='Redeck Deflections'!$H$6*1 -> 0 | D189: =Reference!$C$402+Reference!$D$392 -> 340 | J189: =SUM('Redeck Deflections'!$K$65:$O$65) -> 0 | K189: =IF('Redeck Deflections'!$P$65<0,MROUND(ABS('Redeck Deflections'!$P$65),0.125),MROUND('Redeck Deflections'!$P$65,0.125)*-1) -> 0 | L189: 6 | N189: 6 | O189: ='Redeck Deflections'!$H$6*1 -> 0 | P189: =Reference!$C$402+Reference!$D$392 -> 340 | V189: =SUM('Redeck Deflections'!$W$65:$AA$65) -> 0 | W189: =IF('Redeck Deflections'!$AB$65<0,MROUND(ABS('Redeck Deflections'!$AB$65),0.125),MROUND('Redeck Deflections'!$AB$65,0.125)*-1) -> 0 | X189: 6
A192: 6 Span | B192: EXTERIOR GIRDERS | N192: INTERIOR GIRDERS
E193: Girder | F193: Intermediate diaphragms | G193: Concrete | I193: Barrier | J193: Total DL Deflection | Q193: Girder | R193: Intermediate diaphragms | S193: Concrete | U193: Barrier | V193: Total DL Deflection
B194: Tenth point | C194: Location | D194: Distance | E194: YDL-s1- Load Case 1 - Self Load (Stage1:D,DC) | F194: YDL-s1- Load Case 2 - Add'l Self Load (In Force/Length) (Stage 1:D,DC) | G194: YDL-s1- Load Case 3 - Haunch Load (Stage1:D,DC) | H194: YDL-s1- Load Case 4 - Concrete Deck Load (Stage1:D,DC) | I194: YDL-s2- Load Case 1 - Parapet Loads(DL2 - Barriers & Curbs: Stage 2:D,D~ | J194: Decimal Inches | K194: Nearest 1/8" | L194: Tenth point | N194: Tenth point | O194: Location | P194: Distance | Q194: YDL-s1- Load Case 1 - Self Load (Stage1:D,DC) | R194: YDL-s1- Load Case 2 - Add'l Self Load (In Force/Length) (Stage 1:D,DC) | S194: YDL-s1- Load Case 3 - Haunch Load (Stage1:D,DC) | T194: YDL-s1- Load Case 4 - Concrete Deck Load (Stage1:D,DC) | U194: YDL-s2- Load Case 1 - Parapet Loads(DL2 - Barriers & Curbs: Stage 2:D,D~ | V194: Decimal Inches | W194: Nearest 1/8" | X194: Tenth point
B195: 1 | C195: 0 | D195: 0 | E195: Copy and Paste Values from Virtis | J195: =SUM('Redeck Deflections'!$K$11:$O$11) -> 0 | K195: =IF('Redeck Deflections'!$P$11<0,MROUND(ABS('Redeck Deflections'!$P$11),0.125),MROUND('Redeck Deflections'!$P$11,0.125)*-1) -> 0 | L195: 1 | N195: 1 | O195: 0 | P195: 0 | Q195: Copy and Paste Values from Virtis | V195: =SUM('Redeck Deflections'!$W$11:$AA$11) -> 0 | W195: =IF('Redeck Deflections'!$AB$11<0,MROUND(ABS('Redeck Deflections'!$AB$11),0.125),MROUND('Redeck Deflections'!$AB$11,0.125)*-1) -> 0 | X195: 1
B196: 1.1 | C196: ='Redeck Deflections'!$D$6*0.1 -> 11 | D196: =Reference!$C$349 -> 11 | J196: =SUM('Redeck Deflections'!$K$12:$O$12) -> -0.1781 | K196: =IF('Redeck Deflections'!$P$12<0,MROUND(ABS('Redeck Deflections'!$P$12),0.125),MROUND('Redeck Deflections'!$P$12,0.125)*-1) -> 0.125 | L196: 1.1 | N196: 1.1 | O196: ='Redeck Deflections'!$D$6*0.1 -> 11 | P196: =Reference!$C$349 -> 11 | V196: =SUM('Redeck Deflections'!$W$12:$AA$12) -> -0.1781 | W196: =IF('Redeck Deflections'!$AB$12<0,MROUND(ABS('Redeck Deflections'!$AB$12),0.125),MROUND('Redeck Deflections'!$AB$12,0.125)*-1) -> 0.125 | X196: 1.1
B197: 1.2 | C197: ='Redeck Deflections'!$D$6*0.2 -> 22 | D197: =Reference!$D$349+Reference!$D$349 -> 22 | J197: =SUM('Redeck Deflections'!$K$13:$O$13) -> -0.3256 | K197: =IF('Redeck Deflections'!$P$13<0,MROUND(ABS('Redeck Deflections'!$P$13),0.125),MROUND('Redeck Deflections'!$P$13,0.125)*-1) -> 0.375 | L197: 1.2 | N197: 1.2 | O197: ='Redeck Deflections'!$D$6*0.2 -> 22 | P197: =Reference!$D$349+Reference!$D$349 -> 22 | V197: =SUM('Redeck Deflections'!$W$13:$AA$13) -> -0.3256 | W197: =IF('Redeck Deflections'!$AB$13<0,MROUND(ABS('Redeck Deflections'!$AB$13),0.125),MROUND('Redeck Deflections'!$AB$13,0.125)*-1) -> 0.375 | X197: 1.2
B198: 1.3 | C198: ='Redeck Deflections'!$D$6*0.3 -> 33 | D198: =Reference!$D$350+Reference!$D$349 -> 33 | J198: =SUM('Redeck Deflections'!$K$14:$O$14) -> -0.4211 | K198: =IF('Redeck Deflections'!$P$14<0,MROUND(ABS('Redeck Deflections'!$P$14),0.125),MROUND('Redeck Deflections'!$P$14,0.125)*-1) -> 0.375 | L198: 1.3 | N198: 1.3 | O198: ='Redeck Deflections'!$D$6*0.3 -> 33 | P198: =Reference!$D$350+Reference!$D$349 -> 33 | V198: =SUM('Redeck Deflections'!$W$14:$AA$14) -> -0.4211 | W198: =IF('Redeck Deflections'!$AB$14<0,MROUND(ABS('Redeck Deflections'!$AB$14),0.125),MROUND('Redeck Deflections'!$AB$14,0.125)*-1) -> 0.375 | X198: 1.3
B199: 1.4 | C199: ='Redeck Deflections'!$D$6*0.4 -> 44 | D199: =Reference!$D$351+Reference!$D$349 -> 44 | J199: =SUM('Redeck Deflections'!$K$15:$O$15) -> -0.4537 | K199: =IF('Redeck Deflections'!$P$15<0,MROUND(ABS('Redeck Deflections'!$P$15),0.125),MROUND('Redeck Deflections'!$P$15,0.125)*-1) -> 0.5 | L199: 1.4 | N199: 1.4 | O199: ='Redeck Deflections'!$D$6*0.4 -> 44 | P199: =Reference!$D$351+Reference!$D$349 -> 44 | V199: =SUM('Redeck Deflections'!$W$15:$AA$15) -> -0.4537 | W199: =IF('Redeck Deflections'!$AB$15<0,MROUND(ABS('Redeck Deflections'!$AB$15),0.125),MROUND('Redeck Deflections'!$AB$15,0.125)*-1) -> 0.5 | X199: 1.4
B200: 1.5 | C200: ='Redeck Deflections'!$D$6*0.5 -> 55 | D200: =Reference!$D$352+Reference!$D$349 -> 55 | J200: =SUM('Redeck Deflections'!$K$16:$O$16) -> -0.4234 | K200: =IF('Redeck Deflections'!$P$16<0,MROUND(ABS('Redeck Deflections'!$P$16),0.125),MROUND('Redeck Deflections'!$P$16,0.125)*-1) -> 0.375 | L200: 1.5 | N200: 1.5 | O200: ='Redeck Deflections'!$D$6*0.5 -> 55 | P200: =Reference!$D$352+Reference!$D$349 -> 55 | V200: =SUM('Redeck Deflections'!$W$16:$AA$16) -> -0.4234 | W200: =IF('Redeck Deflections'!$AB$16<0,MROUND(ABS('Redeck Deflections'!$AB$16),0.125),MROUND('Redeck Deflections'!$AB$16,0.125)*-1) -> 0.375 | X200: 1.5
B201: 1.6 | C201: ='Redeck Deflections'!$D$6*0.6 -> 66 | D201: =Reference!$D$353+Reference!$D$349 -> 66 | J201: =SUM('Redeck Deflections'!$K$17:$O$17) -> -0.3401 | K201: =IF('Redeck Deflections'!$P$17<0,MROUND(ABS('Redeck Deflections'!$P$17),0.125),MROUND('Redeck Deflections'!$P$17,0.125)*-1) -> 0.375 | L201: 1.6 | N201: 1.6 | O201: ='Redeck Deflections'!$D$6*0.6 -> 66 | P201: =Reference!$D$353+Reference!$D$349 -> 66 | V201: =SUM('Redeck Deflections'!$W$17:$AA$17) -> -0.3401 | W201: =IF('Redeck Deflections'!$AB$17<0,MROUND(ABS('Redeck Deflections'!$AB$17),0.125),MROUND('Redeck Deflections'!$AB$17,0.125)*-1) -> 0.375 | X201: 1.6
B202: 1.7 | C202: ='Redeck Deflections'!$D$6*0.7 -> 77 | D202: =Reference!$D$354+Reference!$D$349 -> 77 | J202: =SUM('Redeck Deflections'!$K$18:$O$18) -> -0.2244 | K202: =IF('Redeck Deflections'!$P$18<0,MROUND(ABS('Redeck Deflections'!$P$18),0.125),MROUND('Redeck Deflections'!$P$18,0.125)*-1) -> 0.25 | L202: 1.7 | N202: 1.7 | O202: ='Redeck Deflections'!$D$6*0.7 -> 77 | P202: =Reference!$D$354+Reference!$D$349 -> 77 | V202: =SUM('Redeck Deflections'!$W$18:$AA$18) -> -0.2244 | W202: =IF('Redeck Deflections'!$AB$18<0,MROUND(ABS('Redeck Deflections'!$AB$18),0.125),MROUND('Redeck Deflections'!$AB$18,0.125)*-1) -> 0.25 | X202: 1.7
B203: 1.8 | C203: ='Redeck Deflections'!$D$6*0.8 -> 88 | D203: =Reference!$D$355+Reference!$D$349 -> 88 | J203: =SUM('Redeck Deflections'!$K$19:$O$19) -> -0.1076 | K203: =IF('Redeck Deflections'!$P$19<0,MROUND(ABS('Redeck Deflections'!$P$19),0.125),MROUND('Redeck Deflections'!$P$19,0.125)*-1) -> 0.125 | L203: 1.8 | N203: 1.8 | O203: ='Redeck Deflections'!$D$6*0.8 -> 88 | P203: =Reference!$D$355+Reference!$D$349 -> 88 | V203: =SUM('Redeck Deflections'!$W$19:$AA$19) -> -0.1076 | W203: =IF('Redeck Deflections'!$AB$19<0,MROUND(ABS('Redeck Deflections'!$AB$19),0.125),MROUND('Redeck Deflections'!$AB$19,0.125)*-1) -> 0.125 | X203: 1.8
B204: 1.9 | C204: ='Redeck Deflections'!$D$6*0.9 -> 99 | D204: =Reference!$D$356+Reference!$D$349 -> 99 | J204: =SUM('Redeck Deflections'!$K$20:$O$20) -> -0.0257 | K204: =IF('Redeck Deflections'!$P$20<0,MROUND(ABS('Redeck Deflections'!$P$20),0.125),MROUND('Redeck Deflections'!$P$20,0.125)*-1) -> 0 | L204: 1.9 | N204: 1.9 | O204: ='Redeck Deflections'!$D$6*0.9 -> 99 | P204: =Reference!$D$356+Reference!$D$349 -> 99 | V204: =SUM('Redeck Deflections'!$W$20:$AA$20) -> -0.0257 | W204: =IF('Redeck Deflections'!$AB$20<0,MROUND(ABS('Redeck Deflections'!$AB$20),0.125),MROUND('Redeck Deflections'!$AB$20,0.125)*-1) -> 0 | X204: 1.9
B205: 2 | C205: ='Redeck Deflections'!$D$6*1 -> 110 | D205: =Reference!$D$357+Reference!$D$349 -> 110 | J205: =SUM('Redeck Deflections'!$K$21:$O$21) -> 0 | K205: =IF('Redeck Deflections'!$P$21<0,MROUND(ABS('Redeck Deflections'!$P$21),0.125),MROUND('Redeck Deflections'!$P$21,0.125)*-1) -> 0 | L205: 2 | N205: 2 | O205: ='Redeck Deflections'!$D$6*1 -> 110 | P205: =Reference!$D$357+Reference!$D$349 -> 110 | V205: =SUM('Redeck Deflections'!$W$21:$AA$21) -> 0 | W205: =IF('Redeck Deflections'!$AB$21<0,MROUND(ABS('Redeck Deflections'!$AB$21),0.125),MROUND('Redeck Deflections'!$AB$21,0.125)*-1) -> 0 | X205: 2
B206: 2 | C206: 0 | D206: =Reference!$D$358 -> 110 | J206: =SUM('Redeck Deflections'!$K$22:$O$22) -> 0 | K206: =IF('Redeck Deflections'!$P$22<0,MROUND(ABS('Redeck Deflections'!$P$22),0.125),MROUND('Redeck Deflections'!$P$22,0.125)*-1) -> 0 | L206: 2 | N206: 2 | O206: 0 | P206: =Reference!$D$358 -> 110 | V206: =SUM('Redeck Deflections'!$W$22:$AA$22) -> 0 | W206: =IF('Redeck Deflections'!$AB$22<0,MROUND(ABS('Redeck Deflections'!$AB$22),0.125),MROUND('Redeck Deflections'!$AB$22,0.125)*-1) -> 0 | X206: 2
B207: 2.1 | C207: ='Redeck Deflections'!$E$6*0.1 -> 12 | D207: =Reference!$D$359+Reference!$C$360 -> 122 | J207: =SUM('Redeck Deflections'!$K$23:$O$23) -> -0.0806 | K207: =IF('Redeck Deflections'!$P$23<0,MROUND(ABS('Redeck Deflections'!$P$23),0.125),MROUND('Redeck Deflections'!$P$23,0.125)*-1) -> 0.125 | L207: 2.1 | N207: 2.1 | O207: ='Redeck Deflections'!$E$6*0.1 -> 12 | P207: =Reference!$D$359+Reference!$C$360 -> 122 | V207: =SUM('Redeck Deflections'!$W$23:$AA$23) -> -0.0806 | W207: =IF('Redeck Deflections'!$AB$23<0,MROUND(ABS('Redeck Deflections'!$AB$23),0.125),MROUND('Redeck Deflections'!$AB$23,0.125)*-1) -> 0.125 | X207: 2.1
B208: 2.2 | C208: ='Redeck Deflections'!$E$6*0.2 -> 24 | D208: =Reference!$C$361+Reference!$D$59 -> 134 | J208: =SUM('Redeck Deflections'!$K$24:$O$24) -> -0.2448 | K208: =IF('Redeck Deflections'!$P$24<0,MROUND(ABS('Redeck Deflections'!$P$24),0.125),MROUND('Redeck Deflections'!$P$24,0.125)*-1) -> 0.25 | L208: 2.2 | N208: 2.2 | O208: ='Redeck Deflections'!$E$6*0.2 -> 24 | P208: =Reference!$C$361+Reference!$D$59 -> 134 | V208: =SUM('Redeck Deflections'!$W$24:$AA$24) -> -0.2448 | W208: =IF('Redeck Deflections'!$AB$24<0,MROUND(ABS('Redeck Deflections'!$AB$24),0.125),MROUND('Redeck Deflections'!$AB$24,0.125)*-1) -> 0.25 | X208: 2.2
B209: 2.3 | C209: ='Redeck Deflections'!$E$6*0.3 -> 36 | D209: =Reference!$C$362+Reference!$D$359 -> 146 | J209: =SUM('Redeck Deflections'!$K$25:$O$25) -> -0.4339 | K209: =IF('Redeck Deflections'!$P$25<0,MROUND(ABS('Redeck Deflections'!$P$25),0.125),MROUND('Redeck Deflections'!$P$25,0.125)*-1) -> 0.375 | L209: 2.3 | N209: 2.3 | O209: ='Redeck Deflections'!$E$6*0.3 -> 36 | P209: =Reference!$C$362+Reference!$D$359 -> 146 | V209: =SUM('Redeck Deflections'!$W$25:$AA$25) -> -0.4339 | W209: =IF('Redeck Deflections'!$AB$25<0,MROUND(ABS('Redeck Deflections'!$AB$25),0.125),MROUND('Redeck Deflections'!$AB$25,0.125)*-1) -> 0.375 | X209: 2.3
B210: 2.4 | C210: ='Redeck Deflections'!$E$6*0.4 -> 48 | D210: =Reference!$C$363+Reference!$D$359 -> 158 | J210: =SUM('Redeck Deflections'!$K$26:$O$26) -> -0.5767 | K210: =IF('Redeck Deflections'!$P$26<0,MROUND(ABS('Redeck Deflections'!$P$26),0.125),MROUND('Redeck Deflections'!$P$26,0.125)*-1) -> 0.625 | L210: 2.4 | N210: 2.4 | O210: ='Redeck Deflections'!$E$6*0.4 -> 48 | P210: =Reference!$C$363+Reference!$D$359 -> 158 | V210: =SUM('Redeck Deflections'!$W$26:$AA$26) -> -0.5767 | W210: =IF('Redeck Deflections'!$AB$26<0,MROUND(ABS('Redeck Deflections'!$AB$26),0.125),MROUND('Redeck Deflections'!$AB$26,0.125)*-1) -> 0.625 | X210: 2.4
B211: 2.5 | C211: ='Redeck Deflections'!$E$6*0.5 -> 60 | D211: =Reference!$C$364+Reference!$D$359 -> 170 | J211: =SUM('Redeck Deflections'!$K$27:$O$27) -> -0.6291 | K211: =IF('Redeck Deflections'!$P$27<0,MROUND(ABS('Redeck Deflections'!$P$27),0.125),MROUND('Redeck Deflections'!$P$27,0.125)*-1) -> 0.625 | L211: 2.5 | N211: 2.5 | O211: ='Redeck Deflections'!$E$6*0.5 -> 60 | P211: =Reference!$C$364+Reference!$D$359 -> 170 | V211: =SUM('Redeck Deflections'!$W$27:$AA$27) -> -0.6291 | W211: =IF('Redeck Deflections'!$AB$27<0,MROUND(ABS('Redeck Deflections'!$AB$27),0.125),MROUND('Redeck Deflections'!$AB$27,0.125)*-1) -> 0.625 | X211: 2.5
... 220 more rows
